﻿Body Name,Supplier Code,Supplier Name,Transaction Ref/No,Their Ref,Date Paid,Gross Value (Detail),VAT Amount,7CCC - Level 7 Cost Centre Code,7CCN - Level 7 Cost Centre Name,9AC - Level 9 Account Code,9AN - Level 9 Account Name,4CCN - Level 4 Cost Centre Name
Blackpool Council,1066073,Blackpool Coastal Housing,570762,30001920,7/16/2021,269.58,44.93,FMAJ,Garages,1064,Delegated Maintenance,Resources
Blackpool Council,1120513,Univar Solutions B.V,570773,92255939,7/28/2021,332.13,55.35,LEISUR,Leisure Management,3060,Chemicals,Community & Env Services
Blackpool Council,1120513,Univar Solutions B.V,571774,92265483,7/1/2021,332.13,55.35,LEISUR,Leisure Management,3060,Chemicals,Community & Env Services
Blackpool Council,1120513,Univar Solutions B.V,571778,92266812,7/1/2021,374.08,62.35,LEISUR,Leisure Management,3060,Chemicals,Community & Env Services
Blackpool Council,1080575,Eps Supplies Ltd,572306,INV-18787,7/9/2021,260.52,43.42,JEA,Senior Management,4812,Initial Loan Equipment,Children'S Services
Blackpool Council,1013705,Stadia Sports/ Broxap Limited,572387,INV275435,7/29/2021,3618,0,ZM0018,Highways & Engineering,9773,Orders Received Not Invoiced,Blackpool Services
Blackpool Council,1013705,Stadia Sports/ Broxap Limited,572387,INV275435,7/29/2021,4341.6,723.6,ZM0018,Highways & Engineering,9511A,Stocks Efin,Blackpool Services
Blackpool Council,1071928,Civica Uk Limited,572523,C/XP217620,7/14/2021,3210,0,BG0041,Pcc Elections,3415,Election Fees,Governance & Partnerships
Blackpool Council,1102823,Wilde Consultants Limited,572788,21186,7/27/2021,3729.6,621.6,TRA,Traffic Management,4501,Private Contractors,Community & Env Services
Blackpool Council,1006143,Yorkshire Purchasing Organisation,572816,SI-1125085,7/12/2021,345,57.5,EDDIV,Education Diversity,3020,Furniture - Purchase,Children'S Services
Blackpool Council,1120588,G2 Recruitment Solutions,572940,81221,7/23/2021,3120,520,AEE,Estates,0981,Professional Fees,Resources
Blackpool Council,1006449,Tmp (Uk) Ltd,573214,100001279110,7/2/2021,603.43,100.57,TRA,Traffic Management,4501,Private Contractors,Community & Env Services
Blackpool Council,1006449,Tmp (Uk) Ltd,573215,100001279111,7/2/2021,567.94,94.66,TRA,Traffic Management,4501,Private Contractors,Community & Env Services
Blackpool Council,1086621,Barnfield Investment Properties Ltd,573229,INV01193,7/1/2021,7804.8,1300.8,PJHA,"Depot, Management & Admin",3401,General Services,Places
Blackpool Council,1013011,Tennant Uk Cleaning Solutions Ltd,573251,963913710,7/2/2021,368.16,61.36,SCLEAN,Street Cleaning,4501,Private Contractors,Community & Env Services
Blackpool Council,1088636,Tarmac Building Products Ltd,573263,SI01981387,7/2/2021,1162,0,ZM0018,Highways & Engineering,9773,Orders Received Not Invoiced,Blackpool Services
Blackpool Council,1088636,Tarmac Building Products Ltd,573263,SI01981387,7/2/2021,1394.4,232.4,ZM0018,Highways & Engineering,9511A,Stocks Efin,Blackpool Services
Blackpool Council,1006449,Tmp (Uk) Ltd,573274,100001279223,7/2/2021,283.97,47.33,TRA,Traffic Management,4501,Private Contractors,Community & Env Services
Blackpool Council,1006449,Tmp (Uk) Ltd,573275,100001279224,7/2/2021,283.97,47.33,TRA,Traffic Management,4501,Private Contractors,Community & Env Services
Blackpool Council,1119493,Centerprise International Ltd,573298,90259681,7/2/2021,561.42,93.57,CS0739,Ict Refresh,6525,I.T. Hardware Purchase,Capital - Resources
Blackpool Council,1101740,Ken Taylor Supplies Limited,573404,0334840,7/2/2021,276,46,ZM0018,Highways & Engineering,9511A,Stocks Efin,Blackpool Services
Blackpool Council,1114832,Able 2 Occupational Therapy Services Ltd,573422,INV-30416,7/5/2021,720,0,FC1404,Blue Badge Reform,3401,General Services,Resources
Blackpool Council,1011730,Metric Group Limited,573426,C59618,7/1/2021,16229.04,2704.84,PARADM,Parking Administration,2002,Repairs And Maintenance,Budgets Outside Cash Limits
Blackpool Council,1129634,Av-Id,573468,157,7/1/2021,2445.6,407.6,FGAA,Ict Corporate Services,3531,Computer-H'Ware Purchase,Resources
Blackpool Council,1129634,Av-Id,573469,158,7/1/2021,2208,368,FGAA,Ict Corporate Services,3531,Computer-H'Ware Purchase,Resources
Blackpool Council,1116473,Smart Distribution Solutions,573470,55962,7/1/2021,6876,1146,PBF,Communications,3801,Other Expenses,Places
Blackpool Council,1119493,Centerprise International Ltd,573476,90259796,7/7/2021,3337.78,556.3,FGAC,Ict Technical Support,3531,Computer-H'Ware Purchase,Resources
Blackpool Council,1094424,The Networking People,573487,SI109530,7/2/2021,1140,190,FGAA,Ict Corporate Services,3531,Computer-H'Ware Purchase,Resources
Blackpool Council,1065232,Back Care Solutions Ltd,573488,91475,7/5/2021,456.78,76.13,BEA,Democratic Services & Admin,3001,Office Equipment Purchase,Governance & Partnerships
Blackpool Council,1011730,Metric Group Limited,573510,173194,7/7/2021,290.88,48.48,PARADM,Parking Administration,3801,Other Expenses,Budgets Outside Cash Limits
Blackpool Council,1063803,Global Media Group Services Ltd,573514,C-INV010265,7/28/2021,4828.8,804.8,BSTPRJ,Better Start Projects,3401,General Services,Better Start Projects
Blackpool Council,1063803,Global Media Group Services Ltd,573516,C-INV010264,7/28/2021,8548.8,1424.8,BSTPRJ,Better Start Projects,3401,General Services,Better Start Projects
Blackpool Council,1063803,Global Media Group Services Ltd,573517,C-INV010266,7/28/2021,19200,3200,BSTPRJ,Better Start Projects,3401,General Services,Better Start Projects
Blackpool Council,1120630,Dar Consulting,573518,SI-243,7/6/2021,6360,1060,ENGINE,Engineering,1012,Premises Maint-Priv.Contractor,Community & Env Services
Blackpool Council,1010114,Braunability Uk Ltd,573521,0000095415,7/8/2021,1050.25,175.04,INTRAD,Integrated Transport Admin,3010,Safety Equipment,Community & Env Services
Blackpool Council,1103692,Calico Enterprise Limited,573537,SINV20/00003332,7/7/2021,1296,216,FC1802,Social Fund - Client,5210,Community Care Support,Resources
Blackpool Council,1006449,Tmp (Uk) Ltd,573551,100001279852,7/14/2021,922.9,153.82,TRA,Traffic Management,4501,Private Contractors,Community & Env Services
Blackpool Council,1006449,Tmp (Uk) Ltd,573552,100001279851,7/14/2021,496.94,82.82,TRA,Traffic Management,4501,Private Contractors,Community & Env Services
Blackpool Council,1091465,Dm Orthotics Limited,573599,4910,7/2/2021,551.04,0,MTE,Undefined Age Group,5401,Aids To Daily Living,Adult & Families
Blackpool Council,1111496,Bes Healthcare Ltd,573600,INVBES155399,7/1/2021,854.88,142.48,MTE,Undefined Age Group,5401,Aids To Daily Living,Adult & Families
Blackpool Council,1057663,Wilde Recruitment Ltd,573618,38159,7/2/2021,345.24,57.54,CTAHHA,Tramway Emergency Works,6501,Contract Payments,Capital - Commnctn & Regen
Blackpool Council,1129762,Tp Transcription Ltd,573623,TP-3899,7/2/2021,566.28,94.38,EP8007,Tic Maternity Pathway,3401,General Services,Tic Maternity Pathway
Blackpool Council,1129762,Tp Transcription Ltd,573624,TP-3912,7/1/2021,257.4,42.9,EP8007,Tic Maternity Pathway,3401,General Services,Tic Maternity Pathway
Blackpool Council,1071928,Civica Uk Limited,573635,C/PY218803,7/9/2021,822,137,DOMPFI,Domestic Waste & Waste Pfi,3532,Comp-Running & License Costs,Community & Env Services
Blackpool Council,1129634,Av-Id,573638,161,7/9/2021,10218.6,1703.1,FGAA,Ict Corporate Services,3531,Computer-H'Ware Purchase,Resources
Blackpool Council,1007228,Rigby Taylor Ltd,573644,RSIN0376692,7/8/2021,585,97.5,EA8201,Parks Green Open Space,3041,Other Materials,Community & Env Services
Blackpool Council,1009223,Ggp Systems Limited,573657,591,7/9/2021,1080,180,FGAB,Ict E-Government,3532,Comp-Running & License Costs,Resources
Blackpool Council,1106616,Boingboing Resilience Cic,573659,659,7/1/2021,6200.52,1033.42,HS0003,Headstart Commissioning,3401,General Services,Children'S Services
Blackpool Council,1106616,Boingboing Resilience Cic,573660,660,7/1/2021,9015.6,1502.6,HS0007,Young People & Comm'Y Engagemt,4501,Private Contractors,Children'S Services
Blackpool Council,1106616,Boingboing Resilience Cic,573661,661,7/1/2021,50702.4,8450.4,HS0003,Headstart Commissioning,3401,General Services,Children'S Services
Blackpool Council,1094424,The Networking People,573714,SI109548,7/9/2021,8400,1400,FGAA,Ict Corporate Services,3532,Comp-Running & License Costs,Resources
Blackpool Council,1006351,Versalift Distributors (Uk) Ltd,573717,28272,7/9/2021,9600,1600,PJHA,"Depot, Management & Admin",0911,Training Expenses,Places
Blackpool Council,1102823,Wilde Consultants Limited,573720,21267,7/27/2021,4728.6,788.1,TRA,Traffic Management,4501,Private Contractors,Community & Env Services
Blackpool Council,1107019,Axiell Alm Ltd,573721,810783,7/2/2021,2463.55,410.59,AHH,Heritage,3532,Comp-Running & License Costs,Places
Blackpool Council,1010027,Saint-Gobain Ltd T/A Chadwicks,573725,0963/00184156,7/6/2021,1040.33,173.39,CEMCRE,Cems Crems Etc,3801,Other Expenses,Governance & Partnerships
Blackpool Council,1121655,Hills Fine Foods Ltd,573737,178695,7/6/2021,273,45.5,CATERG,Catering Services,3101,Provisions,Community & Env Services
Blackpool Council,1120588,G2 Recruitment Solutions,573749,81514,7/15/2021,1452,242,HJA,Growth,0791,Temp/Relief (Bureau Staff),Places
Blackpool Council,1120588,G2 Recruitment Solutions,573750,81795,7/15/2021,1776,296,HJA,Growth,0791,Temp/Relief (Bureau Staff),Places
Blackpool Council,1120588,G2 Recruitment Solutions,573752,82145,7/15/2021,1704,284,HJA,Growth,0791,Temp/Relief (Bureau Staff),Places
Blackpool Council,1098899,Browne Jacobson Llp,573769,IN-000082848,7/2/2021,2520,420,FL1259,Pfi Management Costs,4501,Private Contractors,Community & Env Services
Blackpool Council,1102823,Wilde Consultants Limited,573779,21282,7/15/2021,3802.86,633.81,CTZZZZ,Non Specific Contingency Code,6501,Contract Payments,Capital - Comm & Environ
Blackpool Council,1106052,The Consultation Institute,573850,66614,7/8/2021,354,59,PBAD,Corporate Dev & Engagement,0981,Professional Fees,Chief Executive
Blackpool Council,1074968,P N Grundy Ltd,573851,786,7/9/2021,300,0,FK0071,Corporate Training,3426,Course Fees,Chief Executive
Blackpool Council,1114857,University Of Brighton,573870,U0146163,7/8/2021,8272,0,HS0002,Headstart Evaluation,3401,General Services,Children'S Services
Blackpool Council,1114857,University Of Brighton,573870,U0146163,7/8/2021,4368,0,HS0002,Headstart Evaluation,3601,Subsistence,Children'S Services
Blackpool Council,1121194,REDACTED PERSONAL DATA,573871,HS17,7/2/2021,2346.25,0,HS0003,Headstart Commissioning,3401,General Services,Children'S Services
Blackpool Council,1062176,Gmbg Ltd T/A Civils & Lintels,573874,FNW/334063,7/9/2021,309.1,51.52,SCHEME,Highways Schemes,3041,Other Materials,Community & Env Services
Blackpool Council,1008889,Improvement & Dev Agency For Local Gov,573875,40224104,7/9/2021,402,67,BCA,Corp And Member Services,0911,Training Expenses,Governance & Partnerships
Blackpool Council,1114036,Odlings Ltd T/A The Columbaria Co,573886,INV0077961,7/2/2021,553.2,92.2,CEMCRE,Cems Crems Etc,3454,Remove And Refix Memorials,Governance & Partnerships
Blackpool Council,1098651,Direct Parts Supply Ltd T/A Gym-Fit,573891,42917,7/2/2021,592.2,98.7,LEISUR,Leisure Management,3801,Other Expenses,Community & Env Services
Blackpool Council,1018184,Blackpool Skip Hire Ltd,573915,9925,7/13/2021,283.5,47.25,SCLEAN,Street Cleaning,4514,Contract 'E',Community & Env Services
Blackpool Council,1043114,Federation Of Burial Cremation Authorities,573918,M/MEO13/02-2021,7/9/2021,1124.16,187.36,CEMCRE,Cems Crems Etc,3711,Subscriptions,Governance & Partnerships
Blackpool Council,1128481,Beatfreeks T/A Beatfreeks Consulting Ltd,573932,BF21.81,7/9/2021,8250,1375,PBF,Communications,0917,Other Exps,Places
Blackpool Council,1123071,Whistlejacket London Limited,574062,INV-0595,7/9/2021,2558.4,426.4,HJA,Growth,3315,Marketing,Places
Blackpool Council,1017832,Dick Leigh Chainsaw Specialist,574073,003652,7/12/2021,299.26,49.88,EA8201,Parks Green Open Space,3041,Other Materials,Community & Env Services
Blackpool Council,1120513,Univar Solutions B.V,574078,92292874,7/9/2021,332.14,55.36,LEISUR,Leisure Management,3060,Chemicals,Community & Env Services
Blackpool Council,1006449,Tmp (Uk) Ltd,574079,100001280648,7/15/2021,887.4,147.9,TRA,Traffic Management,4501,Private Contractors,Community & Env Services
Blackpool Council,1006449,Tmp (Uk) Ltd,574080,100001280647,7/15/2021,283.97,47.33,TRA,Traffic Management,4501,Private Contractors,Community & Env Services
Blackpool Council,1006449,Tmp (Uk) Ltd,574081,100001280646,7/15/2021,283.97,47.33,TRA,Traffic Management,4501,Private Contractors,Community & Env Services
Blackpool Council,1110938,Cogniva Limited,574084,21/014,7/15/2021,8448,1408,CTABYA,Ltp Scheme 19/20,6501,Contract Payments,Capital - Commnctn & Regen
Blackpool Council,1054541,P&A Medical Ltd,574085,35659,7/15/2021,916.2,152.7,FK0013,Corporate Health,3065,Drugs & Medical Requisites,Chief Executive
Blackpool Council,1012841,J & J Ashcroft Ltd,574088,230345,7/30/2021,466.8,77.8,SCHEME,Highways Schemes,3041,Other Materials,Community & Env Services
Blackpool Council,1123170,Studio Treble Ltd,574107,345,7/9/2021,5122.5,853.75,AHH,Heritage,3533,Computer S/W Purchases,Places
Blackpool Council,1120513,Univar Solutions B.V,574110,92293947,7/14/2021,440.58,73.43,LEISUR,Leisure Management,3060,Chemicals,Community & Env Services
Blackpool Council,1080157,Achievable Training Limited,574123,200107,7/14/2021,900,0,JA0505,Children'S Training,3426,Course Fees,Children'S Services
Blackpool Council,1044156,Pell Frischmann,574135,64017217,7/1/2021,2364,394,TRA,Traffic Management,4501,Private Contractors,Community & Env Services
Blackpool Council,1007023,Access Uk Ltd - Selima,574136,1082259,7/7/2021,39148.8,6524.8,FB0181,Payroll General,3532,Comp-Running & License Costs,Resources
Blackpool Council,1123071,Whistlejacket London Limited,574137,INV-0602,7/16/2021,583.2,97.2,HJA,Growth,3315,Marketing,Places
Blackpool Council,1067110,Thames Card Technology Ltd,574142,032498,7/16/2021,1698.24,283.04,LEISUR,Leisure Management,3101,Provisions,Community & Env Services
Blackpool Council,1012841,J & J Ashcroft Ltd,574148,230519,7/16/2021,769.04,128.17,SCHEME,Highways Schemes,3041,Other Materials,Community & Env Services
Blackpool Council,1012841,J & J Ashcroft Ltd,574149,230518,7/30/2021,466.8,77.8,SCHEME,Highways Schemes,3041,Other Materials,Community & Env Services
Blackpool Council,1084671,Autocross Euroshel Limited,574150,8353,7/1/2021,4104,684,FP4801,Bus Shelters,3401,General Services,Places
Blackpool Council,1084671,Autocross Euroshel Limited,574153,8354,7/1/2021,10920,1820,FP4801,Bus Shelters,3401,General Services,Places
Blackpool Council,1071432,Cpi - Crisis Preventions Insititute,574154,CUK0027620,7/14/2021,1800,300,JA0505,Children'S Training,3426,Course Fees,Children'S Services
Blackpool Council,1011837,Cemex Uk Materials Ltd,574164,3012913239,7/9/2021,318.72,53.12,ENGINE,Engineering,3041,Other Materials,Community & Env Services
Blackpool Council,1011837,Cemex Uk Materials Ltd,574165,3012910049,7/9/2021,442.22,73.7,ENGINE,Engineering,3041,Other Materials,Community & Env Services
Blackpool Council,1011837,Cemex Uk Materials Ltd,574166,3012902434,7/7/2021,1695.92,282.65,ENGINE,Engineering,3041,Other Materials,Community & Env Services
Blackpool Council,1011837,Cemex Uk Materials Ltd,574167,3012907707,7/8/2021,374.5,62.42,ENGINE,Engineering,3041,Other Materials,Community & Env Services
Blackpool Council,1006576,The Helping Hand Company Ltd,574202,413127,7/16/2021,1832.4,0,ZM0018,Highways & Engineering,9773,Orders Received Not Invoiced,Blackpool Services
Blackpool Council,1006576,The Helping Hand Company Ltd,574202,413127,7/16/2021,2198.88,366.48,ZM0018,Highways & Engineering,9511A,Stocks Efin,Blackpool Services
Blackpool Council,1117328,Northwest Radio Communications Ltd,574217,63667,7/16/2021,715.2,119.2,LEISUR,Leisure Management,3201,Clothing & Uniforms,Community & Env Services
Blackpool Council,1081133,Lavat Consulting Limited T/A Pstax,574221,108500,7/8/2021,1836,306,FBBCA,Accountancy,3413,Consultants,Resources
Blackpool Council,1106482,Charles Alexander T/A Everything Branded,574223,CAD046931,7/16/2021,420,70,AHHBA,Blackpool Museum,3315,Marketing,Places
Blackpool Council,1094424,The Networking People,574224,SI109542,7/7/2021,8692.58,1448.76,FGAA,Ict Corporate Services,3527,Communication Lines,Resources
Blackpool Council,1094424,The Networking People,574224,SI109542,7/7/2021,2439.48,406.58,TSICT,Transforming Schools Ict,3527,Communication Lines,Resources
Blackpool Council,1094424,The Networking People,574225,SI109550,7/9/2021,3114.06,519.01,FGAA,Ict Corporate Services,3521,Landline - Line Rental,Resources
Blackpool Council,1120775,Standard Fuel Oils,574226,157152,7/8/2021,28596.85,4766.14,ZF0001,"Insurance,Dso,Banking",9511A,Stocks Efin,Total Reconciliations
Blackpool Council,1115707,Korn Ferry Hay Group Limited,574230,1195063079,7/16/2021,1440,240,PAAA,C.E. Management,0917,Other Exps,Chief Executive
Blackpool Council,1114551,Getech Ltd,574259,762446,7/16/2021,672,112,FGAC,Ict Technical Support,3532,Comp-Running & License Costs,Resources
Blackpool Council,1114541,Integrity Print Ltd,574263,1309621,7/21/2021,1209.6,201.6,PARADM,Parking Administration,3302,Stationery,Budgets Outside Cash Limits
Blackpool Council,1094424,The Networking People,574266,SI109557,7/9/2021,1980,330,FGAA,Ict Corporate Services,3531,Computer-H'Ware Purchase,Resources
Blackpool Council,1103692,Calico Enterprise Limited,574270,SINV20/00003338,7/9/2021,1335,222.5,FC1802,Social Fund - Client,5210,Community Care Support,Resources
Blackpool Council,1103692,Calico Enterprise Limited,574271,SINV20/00003335,7/9/2021,976,0,FC1802,Social Fund - Client,5210,Community Care Support,Resources
Blackpool Council,1103692,Calico Enterprise Limited,574272,SINV20/00003337,7/9/2021,1803,184.5,FC1802,Social Fund - Client,5210,Community Care Support,Resources
Blackpool Council,1103692,Calico Enterprise Limited,574273,SINV20/00003336,7/9/2021,1607,120,FC1802,Social Fund - Client,5210,Community Care Support,Resources
Blackpool Council,1129634,Av-Id,574277,162,7/21/2021,1188,198,FGAA,Ict Corporate Services,3531,Computer-H'Ware Purchase,Resources
Blackpool Council,1120588,G2 Recruitment Solutions,574279,83984,7/9/2021,1596,266,HJA,Growth,0791,Temp/Relief (Bureau Staff),Places
Blackpool Council,1120588,G2 Recruitment Solutions,574281,84276,7/16/2021,1776,296,HJA,Growth,0791,Temp/Relief (Bureau Staff),Places
Blackpool Council,1123071,Whistlejacket London Limited,574282,INV-0603,7/5/2021,10920,1820,HJA,Growth,3315,Marketing,Places
Blackpool Council,1120588,G2 Recruitment Solutions,574283,84286,7/21/2021,1776,296,AEE,Estates,0981,Professional Fees,Resources
Blackpool Council,1117351,Open Text,574284,9002555700,7/21/2021,489.74,81.62,CTAHHA,Tramway Emergency Works,6506,Consultants Fees,Capital - Commnctn & Regen
Blackpool Council,1095113,Pearce Clinical Psychology Services Ltd,574287,923,7/6/2021,2596,0,FK0013,Corporate Health,0992,Medical Fees (Employee),Chief Executive
Blackpool Council,1125370,Durrocoat Ltd,574290,4218,7/12/2021,2400,400,PJLA,Maintenance,3308,Servicing,Places
Blackpool Council,1114036,Odlings Ltd T/A The Columbaria Co,574294,INV0078171,7/14/2021,553.2,92.2,CEMCRE,Cems Crems Etc,3454,Remove And Refix Memorials,Governance & Partnerships
Blackpool Council,1094355,Les Mills Fitness Uk Ltd,574297,LMUK-SIV-082886,7/7/2021,315,52.5,LEISUR,Leisure Management,3801,Other Expenses,Community & Env Services
Blackpool Council,1094355,Les Mills Fitness Uk Ltd,574298,LMUK-SIV-083053,7/7/2021,357,59.5,LEISUR,Leisure Management,3801,Other Expenses,Community & Env Services
Blackpool Council,1007986,Millercare Limited,574322,14843,7/26/2021,325.2,54.2,APDBBB,Arc,3012,Other Equipment,Adult & Families
Blackpool Council,1024186,Solon Security,574327,SI21005914,7/9/2021,422.64,70.44,PYSA,Community Safety,3313,General Expenses,Community & Env Services
Blackpool Council,1027733,William Smith & Sons (Barnard Castle) Ltd,574328,606587,7/5/2021,409.38,68.23,SCHEME,Highways Schemes,3041,Other Materials,Community & Env Services
Blackpool Council,1009079,Pearson Education Ltd,574344,3138087,7/16/2021,333.6,55.6,CWAN,Children With Additional Needs,3008,Educational Equipment,Children'S Services
Blackpool Council,1013705,Stadia Sports/ Broxap Limited,574348,INV276565,7/9/2021,276,46,LEISUR,Leisure Management,3007,Recreational Equipment,Community & Env Services
Blackpool Council,1087805,Blackpool Fc Community Trust,574350,BFCCT1242,7/2/2021,9487.5,0,PU2064,Holiday Activities & Food(Haf),4501,Private Contractors,Public Health
Blackpool Council,1090628,The Furniture Recycling Group,574361,INV26418,7/13/2021,312.18,52.03,CWASTE,Commercial Waste,4501,Private Contractors,Community & Env Services
Blackpool Council,1129634,Av-Id,574363,160,7/2/2021,354,59,HOMECA,Homecare,3532,Comp-Running & License Costs,Adult & Families
Blackpool Council,1049304,Insight Direct (Uk) Ltd,574364,5333590,7/9/2021,5937.38,989.58,FGAA,Ict Corporate Services,3532,Comp-Running & License Costs,Resources
Blackpool Council,1049304,Insight Direct (Uk) Ltd,574365,5336046,7/15/2021,783.43,130.57,FGAA,Ict Corporate Services,3532,Comp-Running & License Costs,Resources
Blackpool Council,1006449,Tmp (Uk) Ltd,574375,100001281230,7/16/2021,710.4,118.4,PLBAAA,Development Control,3401,General Services,Places
Blackpool Council,1006449,Tmp (Uk) Ltd,574376,100001281231,7/16/2021,390,65,PLBAAA,Development Control,3401,General Services,Places
Blackpool Council,1110091,Springfields Retail Ltd,574386,2090521,7/9/2021,420,0,EDDIV,Education Diversity,3606,Incidental Expenses,Children'S Services
Blackpool Council,1118879,Gregg Wolstenholme Photography,574387,21062021-02,7/1/2021,900,0,PRG,Tourism General,3301,Printing,Places
Blackpool Council,1073709,Delphi Medical Limited,574388,SINV86/00000878,7/1/2021,2795,0,PUBH04,Substance Misuse,4501,Private Contractors,Public Health
Blackpool Council,1073709,Delphi Medical Limited,574389,SINV86/00000879,7/1/2021,2150,0,PUBH04,Substance Misuse,4501,Private Contractors,Public Health
Blackpool Council,1057663,Wilde Recruitment Ltd,574394,38235,7/16/2021,517.86,86.31,CTAHHA,Tramway Emergency Works,6501,Contract Payments,Capital - Commnctn & Regen
Blackpool Council,1120373,Linescapes,574396,GAG21-005,7/20/2021,939.7,0,AHG,Art Gallery Summary,3456,Payment To Artists,Places
Blackpool Council,1130104,Public Transport Consortium,574399,2131,7/23/2021,475,0,DIRCTR,Directorate,3711,Subscriptions,Community & Env Services
Blackpool Council,1128753,Uk Media & Events Limited,574400,SI3040,7/16/2021,504.96,84.16,AHHBA,Blackpool Museum,3801,Other Expenses,Places
Blackpool Council,1129634,Av-Id,574439,165,7/22/2021,725.06,120.84,INTRAD,Integrated Transport Admin,3531,Computer-H'Ware Purchase,Community & Env Services
Blackpool Council,1129634,Av-Id,574446,164,7/22/2021,1704.48,284.08,FGAA,Ict Corporate Services,3531,Computer-H'Ware Purchase,Resources
Blackpool Council,1093763,Shapemaster Global Ltd,574448,1622,7/15/2021,392.4,65.4,LEISUR,Leisure Management,2002,Repairs And Maintenance,Community & Env Services
Blackpool Council,1119257,Proactis Limited,574455,PGL_TSI5212173,7/23/2021,2640,440,FB0001,Business Services Team,3711,Subscriptions,Resources
Blackpool Council,1012071,Bethell Construction Limited,574462,17251,7/7/2021,23918.72,3986.45,ENGINE,Engineering,1012,Premises Maint-Priv.Contractor,Community & Env Services
Blackpool Council,1090002,Auto Extract Systems Ltd,574465,43503,7/23/2021,12571.2,2095.2,PJHA,"Depot, Management & Admin",3308,Servicing,Places
Blackpool Council,1116270,Paul Barnes T/A We Are Brave,574466,10699,7/5/2021,5738.4,956.4,BSTPRJ,Better Start Projects,3806,Advertising-General,Better Start Projects
Blackpool Council,1111496,Bes Healthcare Ltd,574472,INVBES155579,7/8/2021,1590,265,MTE,Undefined Age Group,5401,Aids To Daily Living,Adult & Families
Blackpool Council,1049200,Etac Limited,574473,299240,7/8/2021,867.6,144.6,MTE,Undefined Age Group,5401,Aids To Daily Living,Adult & Families
Blackpool Council,1026811,Stannah Lift Services Ltd,574475,1085317639,7/6/2021,1061,0,CX4002,Disabled Facilities Grants,6501,Contract Payments,Capital - Adult Social Care
Blackpool Council,1026811,Stannah Lift Services Ltd,574476,1085317650,7/6/2021,1345,0,CX4002,Disabled Facilities Grants,6501,Contract Payments,Capital - Adult Social Care
Blackpool Council,1031475,Jenx Ltd T/A Jiraffe,574478,233681,7/16/2021,1039.2,173.2,MTE,Undefined Age Group,5401,Aids To Daily Living,Adult & Families
Blackpool Council,1119533,Schuchmann Llp,574479,4150,7/15/2021,849.6,141.6,MTE,Undefined Age Group,5401,Aids To Daily Living,Adult & Families
Blackpool Council,1026811,Stannah Lift Services Ltd,574480,1085317472,7/6/2021,3699.6,616.6,CXAAA,Local Authority Dwellings,6501,Contract Payments,Capital - Chief Executive
Blackpool Council,1026811,Stannah Lift Services Ltd,574481,1085318425,7/8/2021,4746,0,CX4002,Disabled Facilities Grants,6501,Contract Payments,Capital - Adult Social Care
Blackpool Council,1026811,Stannah Lift Services Ltd,574484,1085317420,7/6/2021,1189.91,198.32,MVA,18-64,5401,Aids To Daily Living,Adult & Families
Blackpool Council,1011837,Cemex Uk Materials Ltd,574488,3012915993,7/9/2021,351.9,58.65,ENGINE,Engineering,3041,Other Materials,Community & Env Services
Blackpool Council,1096607,Cutlers Property Consultancy (Services),574489,0070492,7/9/2021,4160,0,AEE,Estates,0781,Contracted,Resources
Blackpool Council,1096607,Cutlers Property Consultancy (Services),574490,0070494,7/9/2021,3250,0,AEE,Estates,0781,Contracted,Resources
Blackpool Council,1115311,Darrren Clare Ltd T/A Portfolio,574491,P8509,7/23/2021,7935,1322.5,PBF,Communications,3801,Other Expenses,Places
Blackpool Council,1006419,Tunstall Healthcare (Uk) Ltd,574493,3IN/10374812,7/9/2021,5400,900,APFBAB,Vitaline,3711,Subscriptions,Adult & Families
Blackpool Council,1094424,The Networking People,574502,SI109594,7/23/2021,544.63,90.77,TSICT,Transforming Schools Ict,3532,Comp-Running & License Costs,Resources
Blackpool Council,1096607,Cutlers Property Consultancy (Services),574503,0070490,7/8/2021,5070,0,AEE,Estates,0781,Contracted,Resources
Blackpool Council,1010069,Caterware Ltd,574504,INV02059,7/2/2021,533.98,89,CATERG,Catering Services,3052,Kitchen (Light) Equip-Purchase,Community & Env Services
Blackpool Council,1120775,Standard Fuel Oils,574506,157735,7/14/2021,899.64,42.84,ZF0001,"Insurance,Dso,Banking",9511A,Stocks Efin,Total Reconciliations
Blackpool Council,1090628,The Furniture Recycling Group,574507,INV26520,7/13/2021,334.88,55.81,CWASTE,Commercial Waste,4501,Private Contractors,Community & Env Services
Blackpool Council,1006909,Speedy Asset Services Limited,574512,7117565920,7/20/2021,4382.88,730.48,ENGINE,Engineering,3041,Other Materials,Community & Env Services
Blackpool Council,1006449,Tmp (Uk) Ltd,574513,100001281821,7/23/2021,283.97,47.33,TRA,Traffic Management,4501,Private Contractors,Community & Env Services
Blackpool Council,1022781,Moore Readymix Ltd,574525,117862,7/23/2021,358.94,59.83,ENGINE,Engineering,3041,Other Materials,Community & Env Services
Blackpool Council,1102857,Custompac Ltd,574528,SQ-00000255,7/1/2021,6423.36,1070.56,PJOA,Commercial & Marketing,3041,Other Materials,Places
Blackpool Council,1080563,Bay Media,574571,5599,7/23/2021,24963.6,4160.6,PRL,Marketing,3401,General Services,Places
Blackpool Council,1008454,Police & Crime Commissioner For Lancashire,574572,7500013177,7/1/2021,12050.98,0,PYAA,Head Of Environmental Health,3313,General Expenses,Community & Env Services
Blackpool Council,1058510,Lifeline Language Services Ltd,574583,0321095,7/16/2021,270,45,JEA,Senior Management,5507,Personal,Children'S Services
Blackpool Council,1006940,Smiths Equipment Hire Ltd - Smiths Training,574585,V07-938542,7/9/2021,480,80,PJHA,"Depot, Management & Admin",0911,Training Expenses,Places
Blackpool Council,1123126,Matt Haylett T/A Mh Lighting,574589,246,7/1/2021,450,0,PJHA,"Depot, Management & Admin",3308,Servicing,Places
Blackpool Council,1006449,Tmp (Uk) Ltd,574593,100001282132,7/23/2021,887.4,147.9,TRA,Traffic Management,4501,Private Contractors,Community & Env Services
Blackpool Council,1007023,Access Uk Ltd - Selima,574598,1087800,7/15/2021,2160,360,CGRESO,Resources Schemes,6526,I.T. Software Purchase,Capital - Resources
Blackpool Council,1018211,C & W Berry Ltd,574599,6250015,7/9/2021,1731.96,288.66,PJOA,Commercial & Marketing,3041,Other Materials,Places
Blackpool Council,1018211,C & W Berry Ltd,574600,6307071,7/8/2021,1235.04,205.84,PJOA,Commercial & Marketing,3041,Other Materials,Places
Blackpool Council,1130124,Just Psychology Cic,574601,INV-0284,7/23/2021,1367,0,JEA,Senior Management,5507,Personal,Children'S Services
Blackpool Council,1018211,C & W Berry Ltd,574602,6265570,7/9/2021,260.4,43.4,PJNA,New Features / Schemes - C & E,3041,Other Materials,Places
Blackpool Council,1088658,D-Tech International Ltd,574604,8302,7/23/2021,3564,594,LBF,Library Management,3532,Comp-Running & License Costs,Places
Blackpool Council,1017349,Ksb Ltd,574609,6020910820,7/23/2021,1180.7,196.78,SCHEME,Highways Schemes,3041,Other Materials,Community & Env Services
Blackpool Council,1123713,Leadinglearner Ltd,574611,202122025,7/6/2021,2600,0,OPAREA,Opportunity Areas,4515,Contract Services,Places
Blackpool Council,1008026,Metal Express (Fac083),574678,8849,7/7/2021,465,77.5,PJNA,New Features / Schemes - C & E,3041,Other Materials,Places
Blackpool Council,1103650,Westec,574679,18556,7/23/2021,2572.8,428.8,PJOA,Commercial & Marketing,3041,Other Materials,Places
Blackpool Council,1008135,Marshalls,574681,Z000955734,7/22/2021,1558.4,0,ZM0018,Highways & Engineering,9773,Orders Received Not Invoiced,Blackpool Services
Blackpool Council,1008135,Marshalls,574681,Z000955734,7/22/2021,1870.08,311.68,ZM0018,Highways & Engineering,9511A,Stocks Efin,Blackpool Services
Blackpool Council,1115629,Lion Safety,574692,273025,7/23/2021,582.48,97.08,FVFAA,Street Crossing Patrols,3201,Clothing & Uniforms,Community & Env Services
Blackpool Council,1129132,Mhr International Uk Ltd,574695,SIN131649,7/22/2021,16892.78,2815.46,CGRESO,Resources Schemes,6526,I.T. Software Purchase,Capital - Resources
Blackpool Council,1090874,Advanced Health And Care Limited,574699,ARCMIN/00093291,7/7/2021,1401.92,233.65,HOMECA,Homecare,2201,Contract Hire,Adult & Families
Blackpool Council,1037659,Hellermanntyton,574700,G499180,7/23/2021,845.64,140.94,PJLA,Maintenance,3041,Other Materials,Places
Blackpool Council,1111999,Simon Critchley Photography,574703,172,7/27/2021,400,0,AHHBA,Blackpool Museum,3801,Other Expenses,Places
Blackpool Council,1086156,Water Saving Techniques Limited,574706,5057,7/6/2021,2510.62,418.44,PARADE,Parades & Seawall,1012,Premises Maint-Priv.Contractor,Community & Env Services
Blackpool Council,1100875,Visionaid Technologies Ltd,574708,119641,7/28/2021,1914,319,CWAN,Children With Additional Needs,3008,Educational Equipment,Children'S Services
Blackpool Council,1076580,Drawing And Talking Ltd,574709,14338,7/28/2021,270,45,CWAN,Children With Additional Needs,0911,Training Expenses,Children'S Services
Blackpool Council,1094850,REDACTED PERSONAL DATA,574710,202115,7/23/2021,2750,0,AHM,Arts Miscellaneous,3456,Payment To Artists,Places
Blackpool Council,1006143,Yorkshire Purchasing Organisation,574716,SI-1165306,7/14/2021,279.36,46.56,CATERG,Catering Services,3020,Furniture - Purchase,Community & Env Services
Blackpool Council,1094424,The Networking People,574737,SI109597,7/23/2021,480.26,80.04,EDDIV,Education Diversity,3532,Comp-Running & License Costs,Children'S Services
Blackpool Council,1120827,Engage Esm Ltd,574738,5337005060,7/16/2021,680.4,113.4,FGAC,Ict Technical Support,3532,Comp-Running & License Costs,Resources
Blackpool Council,1109333,Gk Traffic Consultancy Ltd,574741,000376-PC,7/23/2021,3450,575,TRB,Maintenance & Works,4501,Private Contractors,Community & Env Services
Blackpool Council,1006944,Siemens Financial Services Ltd,574745,244/21/0189735,7/20/2021,3868.56,644.75,APFBAB,Vitaline,4501,Private Contractors,Adult & Families
Blackpool Council,1006944,Siemens Financial Services Ltd,574746,244/21/0184453,7/12/2021,2123.2,353.86,APFBAB,Vitaline,4501,Private Contractors,Adult & Families
Blackpool Council,1006944,Siemens Financial Services Ltd,574753,244/21/0189218,7/19/2021,2934.62,489.1,APFBAB,Vitaline,4501,Private Contractors,Adult & Families
Blackpool Council,1028852,Thornber And Walker,574778,4035,7/14/2021,2700,450,AED,Capital Projects,3413,Consultants,Resources
Blackpool Council,1104562,Accudata Limited,574781,20935,7/28/2021,4380,730,ENGINE,Engineering,3041,Other Materials,Community & Env Services
Blackpool Council,1107600,Click 4 Assistance Ltd,574803,INV060416,7/28/2021,394.92,65.82,PBF,Communications,3535,Website Costs,Places
Blackpool Council,1130332,Institute Of Employability Professionals Ltd,574804,INV-1235,7/23/2021,1000,0,PVA,Other External Funding,0917,Other Exps,Places
Blackpool Council,1028852,Thornber And Walker,574808,4003,7/14/2021,2700,450,AED,Capital Projects,3413,Consultants,Resources
Blackpool Council,1065232,Back Care Solutions Ltd,574809,92122,7/26/2021,576.3,96.05,EDDIV,Education Diversity,3001,Office Equipment Purchase,Children'S Services
Blackpool Council,1080563,Bay Media,574812,5625,7/28/2021,1555.2,259.2,PRL,Marketing,3401,General Services,Places
Blackpool Council,1072596,National Literacy Trust,574815,PLG041027/3,7/6/2021,27297.34,0,OPAREA,Opportunity Areas,4515,Contract Services,Places
Blackpool Council,1026811,Stannah Lift Services Ltd,574816,1085319971,7/13/2021,3481,0,CX4002,Disabled Facilities Grants,6501,Contract Payments,Capital - Adult Social Care
Blackpool Council,1011675,Bambers Remedial Contractors Limited,574817,17026,7/5/2021,6336.87,0,CX4002,Disabled Facilities Grants,6501,Contract Payments,Capital - Adult Social Care
Blackpool Council,1026811,Stannah Lift Services Ltd,574818,1085322040,7/20/2021,738.07,123.01,MVB,65-74,5401,Aids To Daily Living,Adult & Families
Blackpool Council,1026811,Stannah Lift Services Ltd,574819,1085320942,7/15/2021,894,149,MVA,18-64,5401,Aids To Daily Living,Adult & Families
Blackpool Council,1026811,Stannah Lift Services Ltd,574820,1085321712,7/19/2021,7441.2,1240.2,CXAAA,Local Authority Dwellings,6501,Contract Payments,Capital - Chief Executive
Blackpool Council,1085664,Astor Bannerman (Medical) Ltd,574821,25350,7/27/2021,1985,0,CX4002,Disabled Facilities Grants,6501,Contract Payments,Capital - Adult Social Care
Blackpool Council,1026811,Stannah Lift Services Ltd,574822,1085319724,7/13/2021,405,0,CXAAA,Local Authority Dwellings,6501,Contract Payments,Capital - Chief Executive
Blackpool Council,1011675,Bambers Remedial Contractors Limited,574823,17022,7/5/2021,1369.4,0,CX4002,Disabled Facilities Grants,6501,Contract Payments,Capital - Adult Social Care
Blackpool Council,1011675,Bambers Remedial Contractors Limited,574824,17051,7/5/2021,5530.63,0,CXAAA,Local Authority Dwellings,6501,Contract Payments,Capital - Chief Executive
Blackpool Council,1100070,Carebase (Fac001),574825,82335,7/21/2021,11855,0,CXAAA,Local Authority Dwellings,6501,Contract Payments,Capital - Chief Executive
Blackpool Council,1026811,Stannah Lift Services Ltd,574826,1085319527,7/12/2021,1232,0,CX4002,Disabled Facilities Grants,6501,Contract Payments,Capital - Adult Social Care
Blackpool Council,1049200,Etac Limited,574827,299930,7/20/2021,1879.2,313.2,MTE,Undefined Age Group,5401,Aids To Daily Living,Adult & Families
Blackpool Council,1006576,The Helping Hand Company Ltd,574828,413686,7/23/2021,416.4,69.4,MTE,Undefined Age Group,5401,Aids To Daily Living,Adult & Families
Blackpool Council,1011675,Bambers Remedial Contractors Limited,574829,17054,7/5/2021,10910.37,0,CX4002,Disabled Facilities Grants,6501,Contract Payments,Capital - Adult Social Care
Blackpool Council,1091465,Dm Orthotics Limited,574830,5477,7/23/2021,413.9,0,MTE,Undefined Age Group,5401,Aids To Daily Living,Adult & Families
Blackpool Council,1055691,Norbain Sd Ltd,574856,I3030600,7/13/2021,963.52,160.59,CCTV,Cctv,3012,Other Equipment,Community & Env Services
Blackpool Council,1011675,Bambers Remedial Contractors Limited,574859,17046,7/5/2021,6673.52,0,CX4002,Disabled Facilities Grants,6501,Contract Payments,Capital - Adult Social Care
Blackpool Council,1050319,Perspex Distribution Ltd,574860,960300483,7/29/2021,364.39,60.73,PJLA,Maintenance,3041,Other Materials,Places
Blackpool Council,1006449,Tmp (Uk) Ltd,574861,100001282542,7/28/2021,2200.75,366.79,HJA,Growth,3315,Marketing,Places
Blackpool Council,1066555,Adcs Services Ltd,574865,7418,7/8/2021,360,60,EM1001,Departmental Management,0915,Conferences,Children'S Services
Blackpool Council,1044156,Pell Frischmann,574866,64017353,7/6/2021,7188,1198,CTZZZZ,Non Specific Contingency Code,6501,Contract Payments,Capital - Comm & Environ
Blackpool Council,1010386,Montgomery Academy,574867,3000000184,7/6/2021,5655,0,EP8011,Covid Winter Grant,3701,Grants,Children'S Services
Blackpool Council,1013064,Tarmac Lafarge Trading Limited,574875,9043634807,7/2/2021,947.83,157.97,ENGINE,Engineering,3041,Other Materials,Community & Env Services
Blackpool Council,1013064,Tarmac Lafarge Trading Limited,574877,9043634806,7/2/2021,502.54,83.75,ENGINE,Engineering,3041,Other Materials,Community & Env Services
Blackpool Council,1011837,Cemex Uk Materials Ltd,574879,3012940417,7/23/2021,569.71,94.95,ENGINE,Engineering,3041,Other Materials,Community & Env Services
Blackpool Council,1011837,Cemex Uk Materials Ltd,574883,3012934923,7/22/2021,260.4,43.4,ENGINE,Engineering,3041,Other Materials,Community & Env Services
Blackpool Council,1073279,Adass,574884,6645,7/29/2021,2184,0,EM2003,Departmental Management,3711,Subscriptions,Adult & Families
Blackpool Council,1082067,Squire Patton Boggs (Uk) Llp,574885,2693508,7/27/2021,40620,6770,CP0511,Anchorsholme Seawall Scheme,6506,Consultants Fees,Capital - Comm & Environ
Blackpool Council,1066729,Equis Associates Limited,574891,12-78-PG-BC,7/14/2021,17400,2900,CTAHHI,Tramway Extention,6506,Consultants Fees,Capital - Commnctn & Regen
Blackpool Council,1013005,Carr Hill High School And Sixth Form Centre,574892,IN210002,7/2/2021,1183.2,0,VIRTUL,Virtual Hub,5555,Educational Support,Children'S Services
Blackpool Council,1099749,Devonshire Primary Academy,574893,DEV239,7/26/2021,7920,0,EP8011,Covid Winter Grant,3701,Grants,Children'S Services
Blackpool Council,1008512,Killgerm Chemicals Ltd,574895,SI02-0318332,7/29/2021,696,116,PEST,Pest Control,3041,Other Materials,Community & Env Services
Blackpool Council,1123071,Whistlejacket London Limited,574900,INV-0604,7/19/2021,10449.6,1741.6,HJA,Growth,3315,Marketing,Places
Blackpool Council,1125367,Abs Education Consultancy,574901,043,7/2/2021,1237.5,0,MNGMT,Central Management,3413,Consultants,Children'S Services
Blackpool Council,1117945,Valtech Limited,574902,UKSI13475,7/28/2021,421.08,70.18,FC1404,Blue Badge Reform,3401,General Services,Resources
Blackpool Council,1057663,Wilde Recruitment Ltd,574907,38278,7/23/2021,517.86,86.31,CTAHHA,Tramway Emergency Works,6501,Contract Payments,Capital - Commnctn & Regen
Blackpool Council,1128790,Vix Technology Uk Limited,574909,SIN-C38-002412,7/29/2021,5302.25,883.71,CTABYA,Ltp Scheme 19/20,6501,Contract Payments,Capital - Commnctn & Regen
Blackpool Council,1130310,John Houston Consulting,574910,JCH/INDEXP/0519,7/2/2021,4080,680,FMAJ,Garages,0981,Professional Fees,Resources
Blackpool Council,1073516,Purple Heather Ltd,574912,220621,7/22/2021,1350,0,JA1521,Lscb (Acpc),0981,Professional Fees,Children'S Services
Blackpool Council,1075909,Viatec Uk Ltd,574913,1979926,7/23/2021,920,0,ZM0018,Highways & Engineering,9773,Orders Received Not Invoiced,Blackpool Services
Blackpool Council,1075909,Viatec Uk Ltd,574913,1979926,7/23/2021,1104,184,ZM0018,Highways & Engineering,9511A,Stocks Efin,Blackpool Services
Blackpool Council,1090661,Genecon Limited,574916,GEN1180C,7/23/2021,33900,5650,HJA,Growth,3413,Consultants,Places
Blackpool Council,1110600,REDACTED PERSONAL DATA,574917,145,7/14/2021,5200,0,AHG,Art Gallery Summary,3456,Payment To Artists,Places
Blackpool Council,1044156,Pell Frischmann,574932,64017362,7/7/2021,5589,931.5,CTABYA,Ltp Scheme 19/20,6501,Contract Payments,Capital - Commnctn & Regen
Blackpool Council,1063621,Littledale Hall Therapeutic Community Ltd,574939,5133,7/28/2021,1800,0,PU1016,Universal Grant Funding,4501,Private Contractors,Public Health
Blackpool Council,1126236,New Concept Security Ltd,574942,15890,7/2/2021,23332.52,3888.76,SECURE,Security Services,1012,Premises Maint-Priv.Contractor,Community & Env Services
Blackpool Council,1118154,Ghd Livigunn Ltd,574943,440-005019,7/1/2021,1470,245,CP0511,Anchorsholme Seawall Scheme,6506,Consultants Fees,Capital - Comm & Environ
Blackpool Council,1120775,Standard Fuel Oils,574944,158129,7/2/2021,607.32,28.92,ZF0001,"Insurance,Dso,Banking",9511A,Stocks Efin,Total Reconciliations
Blackpool Council,1007023,Access Uk Ltd - Selima,574945,1091915,7/28/2021,3240,540,CGRESO,Resources Schemes,6526,I.T. Software Purchase,Capital - Resources
Blackpool Council,1122971,Mint Commercial And Healthcare Ltd (Fac087),574948,10360,7/1/2021,4385.22,730.87,EDDIV,Education Diversity,1607,Rechg Cleaning Dso,Children'S Services
Blackpool Council,1009079,Pearson Education Ltd,574950,IGDH34_VOC,7/6/2021,332.63,0,EDDIV,Education Diversity,3404,Exam Fees & Exps (Sch),Children'S Services
Blackpool Council,1098897,Mike Kidd Horse Power Ltd,574953,1063,7/1/2021,1920,0,EDDIV,Education Diversity,4101,Other Local Authorities,Children'S Services
Blackpool Council,1106798,Cd Chauffeur Hire,574958,364,7/1/2021,432,0,BCA,Corp And Member Services,2211,Casual Hire,Governance & Partnerships
Blackpool Council,1009234,Gary Roy Kirkham,574959,GK55,7/30/2021,1060,0,TRCHIL,Integrated Transport Children,2201,Contract Hire,Community & Env Services
Blackpool Council,1009234,Gary Roy Kirkham,574960,GK 56,7/23/2021,828,0,TRCHIL,Integrated Transport Children,2201,Contract Hire,Community & Env Services
Blackpool Council,1051299,Leisure Travel,574961,INV00633,7/1/2021,1800,0,TRCHIL,Integrated Transport Children,2201,Contract Hire,Community & Env Services
Blackpool Council,1051299,Leisure Travel,574962,INV00634,7/28/2021,1800,0,TRCHIL,Integrated Transport Children,2201,Contract Hire,Community & Env Services
Blackpool Council,1051299,Leisure Travel,574963,INV00635,7/28/2021,1800,0,TRCHIL,Integrated Transport Children,2201,Contract Hire,Community & Env Services
Blackpool Council,1051299,Leisure Travel,574964,INV00636,7/28/2021,1224,0,TRCHIL,Integrated Transport Children,2201,Contract Hire,Community & Env Services
Blackpool Council,1011868,W H Tarmacadam Limited,574965,1923,7/8/2021,34658.68,5776.44,CTZZZZ,Non Specific Contingency Code,6501,Contract Payments,Capital - Comm & Environ
Blackpool Council,1106132,Bridge Education And Training Ltd,574968,8223,7/2/2021,823.2,137.2,VIRTUL,Virtual Hub,5555,Educational Support,Children'S Services
Blackpool Council,1006292,Vodafone Corporate Ltd,574971,PI31946,7/2/2021,456,76,FGAA,Ict Corporate Services,3531,Computer-H'Ware Purchase,Resources
Blackpool Council,1006292,Vodafone Corporate Ltd,574972,PI40032,7/5/2021,1368,228,FGAA,Ict Corporate Services,3531,Computer-H'Ware Purchase,Resources
Blackpool Council,1006292,Vodafone Corporate Ltd,574973,PI40033,7/5/2021,456,76,FGAA,Ict Corporate Services,3531,Computer-H'Ware Purchase,Resources
Blackpool Council,1006292,Vodafone Corporate Ltd,574974,PJ17055,7/16/2021,456,76,FGAA,Ict Corporate Services,3531,Computer-H'Ware Purchase,Resources
Blackpool Council,1129741,C B Price And Son Ltd,574975,2261,7/30/2021,3600,600,CEMCRE,Cems Crems Etc,3454,Remove And Refix Memorials,Governance & Partnerships
Blackpool Council,1071702,Links Signs & Graphics Ltd,574976,LSGI30869,7/9/2021,588,98,BEACHP,Beach Patrol,2001,Purchases,Places
Blackpool Council,1121122,Angela Latham Psychology Services Ltd,574977,120358,7/27/2021,350,0,BSTPRJ,Better Start Projects,3401,General Services,Better Start Projects
Blackpool Council,1121400,REDACTED PERSONAL DATA,575037,861,7/9/2021,450,0,AHHBA,Blackpool Museum,3801,Other Expenses,Places
Blackpool Council,1099572,Yasuda 3d-Art,575040,0055,7/12/2021,585,0,PJNA,New Features / Schemes - C & E,3308,Servicing,Places
Blackpool Council,1099572,Yasuda 3d-Art,575041,0053,7/1/2021,981,0,PJLA,Maintenance,3308,Servicing,Places
Blackpool Council,1099572,Yasuda 3d-Art,575042,0054,7/1/2021,585,0,PJLA,Maintenance,3308,Servicing,Places
Blackpool Council,1099572,Yasuda 3d-Art,575043,0056,7/1/2021,390,0,PJLA,Maintenance,3308,Servicing,Places
Blackpool Council,1099572,Yasuda 3d-Art,575044,0057,7/5/2021,780,0,PJLA,Maintenance,3308,Servicing,Places
Blackpool Council,1094424,The Networking People,575045,SI109610,7/30/2021,1980,330,FGAA,Ict Corporate Services,3531,Computer-H'Ware Purchase,Resources
Blackpool Council,1014996,Peters Ltd T/A Peters Bookselling Svces,575046,1842029,7/22/2021,657.91,0,LBB,Central Library,3304,Books And Periodicals,Places
Blackpool Council,1112198,Kkc Engineering Consultants Limited,575050,867/21,7/29/2021,4512,752,CTAHHI,Tramway Extention,6506,Consultants Fees,Capital - Commnctn & Regen
Blackpool Council,1023161,Suez Recycling And Recovery Uk Ltd,575051,80235471,7/1/2021,71801.66,11966.94,DOMPFI,Domestic Waste & Waste Pfi,4501,Private Contractors,Community & Env Services
Blackpool Council,1094424,The Networking People,575055,SI109617,7/30/2021,1413.34,235.56,LIFEVE,Life Events Reg & Care,3533,Computer S/W Purchases,Governance & Partnerships
Blackpool Council,1053021,Wesley Media/The Yaboo Company Ltd,575058,56870,7/14/2021,252,42,CEMCRE,Cems Crems Etc,3012,Other Equipment,Governance & Partnerships
Blackpool Council,1130350,Asbestos Assessment And Control Ltd,575060,INV-22606,7/1/2021,809.76,134.96,HJI,Growth Investments,3413,Consultants,Places
Blackpool Council,1025087,Arranpaul Audio Ltd,575061,INV-10758,7/9/2021,840,140,BCA,Corp And Member Services,3801,Other Expenses,Governance & Partnerships
Blackpool Council,1012096,St Mary'S Catholic Academy,575063,0000000411,7/1/2021,4380,0,EP8011,Covid Winter Grant,3701,Grants,Children'S Services
Blackpool Council,1129132,Mhr International Uk Ltd,575064,SIN132400,7/28/2021,8100,1350,CGRESO,Resources Schemes,6526,I.T. Software Purchase,Capital - Resources
Blackpool Council,1110649,Aimedia Limited T/A Vuelio,575065,INV28101,7/16/2021,1117.79,186.3,PRL,Marketing,3401,General Services,Places
Blackpool Council,1094002,Waterloo Primary Academy,575066,WPSI 63,7/1/2021,9840,0,EP8011,Covid Winter Grant,3701,Grants,Children'S Services
Blackpool Council,1074572,Gl Assessment,575067,SINV00315413,7/30/2021,636,106,EDDIV,Education Diversity,3606,Incidental Expenses,Children'S Services
Blackpool Council,1116043,Pro-Active Management Associates Ltd,575068,248,7/1/2021,1920,320,JEA,Senior Management,4501,Private Contractors,Children'S Services
Blackpool Council,1116043,Pro-Active Management Associates Ltd,575069,249,7/21/2021,3360,560,JEA,Senior Management,4501,Private Contractors,Children'S Services
Blackpool Council,1098134,Towrite Electric Vehicles (Harborough) Ltd,575072,23634,7/16/2021,915.6,152.6,SCLEAN,Street Cleaning,4501,Private Contractors,Community & Env Services
Blackpool Council,1073709,Delphi Medical Limited,575074,SINV86/00000891,7/9/2021,6020,0,PU1016,Universal Grant Funding,4501,Private Contractors,Public Health
Blackpool Council,1057738,Blackpool Town Centre Bid Ltd,575078,SI-12235,7/5/2021,11908,0,CCTV,Cctv,1012,Premises Maint-Priv.Contractor,Community & Env Services
Blackpool Council,1123992,Positive Approach Care Ltd (Fac095),575079,1528,7/14/2021,1218,0,MTE,Undefined Age Group,4507,Domiciliary Care,Adult & Families
Blackpool Council,1117713,Allied Publicity Services (Manchester) Ltd,575080,C53886,7/29/2021,730.65,121.78,FC1404,Blue Badge Reform,3401,General Services,Resources
Blackpool Council,1107790,Taylek Ltd,575081,INV-19163,7/28/2021,470.4,78.4,PJLA,Maintenance,3041,Other Materials,Places
Blackpool Council,1091050,Howard Palmer T/A Trojan Travel,575082,031,7/22/2021,1800,0,TRCHIL,Integrated Transport Children,2201,Contract Hire,Community & Env Services
Blackpool Council,1090902,Anderson & Sons Contracting & Turf Care,575084,248,7/2/2021,3580,0,TRB,Maintenance & Works,4501,Private Contractors,Community & Env Services
Blackpool Council,1114704,Morson Human Resources Ltd,575085,HS353102,7/7/2021,2310,385,CTAHHI,Tramway Extention,6506,Consultants Fees,Capital - Commnctn & Regen
Blackpool Council,1115413,Winnie Tree Properties Ltd,575086,61598,7/1/2021,1120.04,0,HOPB,Housing Options,4004,Management Fees,Chief Executive
Blackpool Council,1066073,Blackpool Coastal Housing,575087,30001962,7/1/2021,8165.05,1360.84,PBC,Strategy Team,4004,Management Fees,Chief Executive
Blackpool Council,1123071,Whistlejacket London Limited,575088,INV-0611,7/30/2021,4791.6,798.6,HJA,Growth,3315,Marketing,Places
Blackpool Council,1123071,Whistlejacket London Limited,575089,INV-0612,7/30/2021,12000,2000,HJA,Growth,3315,Marketing,Places
Blackpool Council,1027764,Colins Travel,575090,93,7/19/2021,1782,0,TRCHIL,Integrated Transport Children,2201,Contract Hire,Community & Env Services
Blackpool Council,1027764,Colins Travel,575091,92,7/19/2021,1914,0,TRCHIL,Integrated Transport Children,2201,Contract Hire,Community & Env Services
Blackpool Council,1057573,Bwb Consulting Limited,575093,TPL0621004,7/26/2021,1800,300,CGICAD,Enterprise Zone,6506,Consultants Fees,Capital - Commnctn & Regen
Blackpool Council,1065232,Back Care Solutions Ltd,575096,92197,7/29/2021,908.57,151.43,JBR,Lac - Placements,3041,Other Materials,Children'S Services
Blackpool Council,1063638,Pristine Hygiene,575097,4790,7/7/2021,383.1,63.85,APCBAA,Coopers Way,3408,Services To Clients,Adult & Families
Blackpool Council,1092768,21st Century Passenger Systems Limited,575150,202529,7/30/2021,40800,6800,CTABYA,Ltp Scheme 19/20,6501,Contract Payments,Capital - Commnctn & Regen
Blackpool Council,1057573,Bwb Consulting Limited,575151,TPL0621003,7/26/2021,9480,1580,CGICAD,Enterprise Zone,6506,Consultants Fees,Capital - Commnctn & Regen
Blackpool Council,1058510,Lifeline Language Services Ltd,575157,0321110,7/23/2021,270.6,45.1,JEA,Senior Management,5507,Personal,Children'S Services
Blackpool Council,1010314,Blackpool Grand Theatre,575168,AE 721,7/14/2021,5000,0,BSTPRJ,Better Start Projects,3401,General Services,Better Start Projects
Blackpool Council,1071928,Civica Uk Limited,575169,C/BN220039,7/30/2021,2311.3,385.22,FCACA,Benefits - Admin,3401,General Services,Resources
Blackpool Council,1094424,The Networking People,575170,SI109640,7/30/2021,2808.89,468.15,CCTV,Cctv,3012,Other Equipment,Community & Env Services
Blackpool Council,1130252,Surf And Turf Instant Shelters Ltd,575171,S00003689,7/9/2021,733.99,122.33,LBF,Library Management,3819,Events Support,Places
Blackpool Council,1031342,One51 Es Plastics (Uk) Ltd T/A Mgb Plastics,575174,37591,7/30/2021,17640,2940,DOMPFI,Domestic Waste & Waste Pfi,3041,Other Materials,Community & Env Services
Blackpool Council,1095600,J G Paxtons & Sons Ltd,575177,429229,7/30/2021,9570,1595,BEACHP,Beach Patrol,2001,Purchases,Places
Blackpool Council,1028022,Blue Diamond Stl,575185,0000351362,7/30/2021,370.8,0,ZM0018,Highways & Engineering,9773,Orders Received Not Invoiced,Blackpool Services
Blackpool Council,1028022,Blue Diamond Stl,575185,0000351362,7/30/2021,444.96,74.16,ZM0018,Highways & Engineering,9511A,Stocks Efin,Blackpool Services
Blackpool Council,1072848,Peter Rhodes,575186,01/017JUNE,7/14/2021,1602,0,TRCHIL,Integrated Transport Children,2201,Contract Hire,Community & Env Services
Blackpool Council,1072848,Peter Rhodes,575187,01/001JUNE,7/14/2021,1616.4,0,TRCHIL,Integrated Transport Children,2201,Contract Hire,Community & Env Services
Blackpool Council,1013011,Tennant Uk Cleaning Solutions Ltd,575189,963922547,7/30/2021,368.16,61.36,SCLEAN,Street Cleaning,4501,Private Contractors,Community & Env Services
Blackpool Council,1014009,Bri-Met Ltd,575234,00051021,7/8/2021,366,0,ZM0018,Highways & Engineering,9773,Orders Received Not Invoiced,Blackpool Services
Blackpool Council,1014009,Bri-Met Ltd,575234,00051021,7/8/2021,439.2,73.2,ZM0018,Highways & Engineering,9511A,Stocks Efin,Blackpool Services
Blackpool Council,1008039,Woodswaste Ltd,575236,33123,7/15/2021,464.45,77.41,CEMCRE,Cems Crems Etc,3801,Other Expenses,Governance & Partnerships
Blackpool Council,1010860,Advanced Steel Services Ltd,575237,01092981,7/30/2021,1480.56,246.76,PJLA,Maintenance,3041,Other Materials,Places
Blackpool Council,1071928,Civica Uk Limited,575239,C/WI220398,7/30/2021,1440,240,FK0013,Corporate Health,3533,Computer S/W Purchases,Chief Executive
Blackpool Council,1057663,Wilde Recruitment Ltd,575243,38195,7/15/2021,517.86,86.31,CTAHHA,Tramway Emergency Works,6501,Contract Payments,Capital - Commnctn & Regen
Blackpool Council,1128287,Fseg Ltd,575244,53235,7/6/2021,360,60,PBF,Communications,3806,Advertising-General,Places
Blackpool Council,1074325,Mangar International,575245,0000220416,7/27/2021,549.49,91.58,MTE,Undefined Age Group,5401,Aids To Daily Living,Adult & Families
Blackpool Council,1093618,Energy Assets Limited,575246,EAL2021/3506,7/6/2021,2033.21,338.87,FB0004,Energy & Sustainability,1203,Gas,Resources
Blackpool Council,1027764,Colins Travel,575247,94,7/19/2021,1782,0,TRCHIL,Integrated Transport Children,2201,Contract Hire,Community & Env Services
Blackpool Council,1010311,Boc Limited,575248,3063741783,7/21/2021,367.9,61.32,LEISUR,Leisure Management,3060,Chemicals,Community & Env Services
Blackpool Council,1016258,M J Teale Plant Hire Ltd,575251,INV-4112,7/6/2021,634.39,105.73,SCHEME,Highways Schemes,1012,Premises Maint-Priv.Contractor,Community & Env Services
Blackpool Council,1117174,Ppl Prs Ltd,575254,SIN1566139,7/6/2021,392.98,65.5,PVA,Other External Funding,0917,Other Exps,Places
Blackpool Council,1112477,Big Wave Media (Fac060),575255,65631,7/6/2021,4182.25,697.04,LEISUR,Leisure Management,3801,Other Expenses,Community & Env Services
Blackpool Council,1112477,Big Wave Media (Fac060),575257,65715,7/6/2021,1790.15,298.36,LEISUR,Leisure Management,3801,Other Expenses,Community & Env Services
Blackpool Council,1112477,Big Wave Media (Fac060),575260,65773,7/28/2021,4182.25,697.04,LEISUR,Leisure Management,3801,Other Expenses,Community & Env Services
Blackpool Council,1123518,Department For Transport Account,575261,2373-01/07/2021,7/30/2021,2250,375,TRA,Traffic Management,4501,Private Contractors,Community & Env Services
Blackpool Council,1009751,Bt Business Direct Limited,575263,IN05543231,7/13/2021,295.21,49.19,CCTV,Cctv,3012,Other Equipment,Community & Env Services
Blackpool Council,1107790,Taylek Ltd,575266,INV-19162,7/29/2021,1557.6,259.6,PJLA,Maintenance,3041,Other Materials,Places
Blackpool Council,1089205,REDACTED PERSONAL DATA,575267,00000030,7/12/2021,600,0,AHG,Art Gallery Summary,3456,Payment To Artists,Places
Blackpool Council,1031342,One51 Es Plastics (Uk) Ltd T/A Mgb Plastics,575287,37610,7/30/2021,6480,1080,DOMPFI,Domestic Waste & Waste Pfi,3041,Other Materials,Community & Env Services
Blackpool Council,1063803,Global Media Group Services Ltd,575288,C-INV014796,7/28/2021,1500,250,BSTPRJ,Better Start Projects,3401,General Services,Better Start Projects
Blackpool Council,1063803,Global Media Group Services Ltd,575289,C-INV014794,7/28/2021,19200,3200,BSTPRJ,Better Start Projects,3401,General Services,Better Start Projects
Blackpool Council,1117002,Redraw Travel Ltd T/A Blackpool Minibuses,575290,INV10362,7/21/2021,1170,0,TRCHIL,Integrated Transport Children,2201,Contract Hire,Community & Env Services
Blackpool Council,1117002,Redraw Travel Ltd T/A Blackpool Minibuses,575291,INV10380,7/22/2021,1620,0,TRCHIL,Integrated Transport Children,2201,Contract Hire,Community & Env Services
Blackpool Council,1117002,Redraw Travel Ltd T/A Blackpool Minibuses,575292,INV10398,7/22/2021,1620,0,TRCHIL,Integrated Transport Children,2201,Contract Hire,Community & Env Services
Blackpool Council,1117002,Redraw Travel Ltd T/A Blackpool Minibuses,575293,INV10416B,7/22/2021,1620,0,TRCHIL,Integrated Transport Children,2201,Contract Hire,Community & Env Services
Blackpool Council,1117002,Redraw Travel Ltd T/A Blackpool Minibuses,575294,INV10435,7/22/2021,1620,0,TRCHIL,Integrated Transport Children,2201,Contract Hire,Community & Env Services
Blackpool Council,1117002,Redraw Travel Ltd T/A Blackpool Minibuses,575295,INV10454,7/22/2021,1620,270,TRCHIL,Integrated Transport Children,2201,Contract Hire,Community & Env Services
Blackpool Council,1019679,Down Syndrome Educational Enterprises Ltd,575300,1150028954,7/21/2021,720,120,CWAN,Children With Additional Needs,3304,Books And Periodicals,Children'S Services
Blackpool Council,1046494,Nbs Enterprises Limited,575301,SINV00038449,7/14/2021,15336,2556,AED,Capital Projects,3711,Subscriptions,Resources
Blackpool Council,1082924,Dotdigital Emea Ltd,575303,DM1375775,7/14/2021,432,72,PBF,Communications,3315,Marketing,Places
Blackpool Council,1009260,G S Brown,575304,10199,7/21/2021,1260,0,TRADUL,Intergrated Transport Adults,2201,Contract Hire,Community & Env Services
Blackpool Council,1009260,G S Brown,575308,05/003,7/21/2021,900,0,TRCHIL,Integrated Transport Children,2201,Contract Hire,Community & Env Services
Blackpool Council,1071702,Links Signs & Graphics Ltd,575309,LSGI31502,7/9/2021,1080,180,AHG,Art Gallery Summary,3301,Printing,Places
Blackpool Council,1119933,Mitchell Bailey T/A Pda Technical,575311,310,7/7/2021,640,0,PJHA,"Depot, Management & Admin",3308,Servicing,Places
Blackpool Council,1123126,Matt Haylett T/A Mh Lighting,575312,247,7/8/2021,300,0,PJHA,"Depot, Management & Admin",3308,Servicing,Places
Blackpool Council,1110996,Philip Holmes T/A Dragon Creative,575313,102001,7/9/2021,1301.51,0,PJHA,"Depot, Management & Admin",3308,Servicing,Places
Blackpool Council,1110996,Philip Holmes T/A Dragon Creative,575315,102015,7/9/2021,500,0,PJNA,New Features / Schemes - C & E,3308,Servicing,Places
Blackpool Council,1117763,Street Angels - Angels Rest,575316,16,7/6/2021,400,0,HOPB,Housing Options,4004,Management Fees,Chief Executive
Blackpool Council,1007206,Road Safety Services Ltd,575321,88745,7/15/2021,494.4,82.4,TRA,Traffic Management,4501,Private Contractors,Community & Env Services
Blackpool Council,1095986,Hawes Side Academy,575325,HSAI0067,7/6/2021,5760,0,EP8011,Covid Winter Grant,3701,Grants,Children'S Services
Blackpool Council,1110952,Mereside Primary Academy,575326,0000000168,7/30/2021,2715,0,EP8011,Covid Winter Grant,3701,Grants,Children'S Services
Blackpool Council,1096486,Achievement Through Collaboration - Roseacre,575327,RPASI11,7/6/2021,5500,0,EP8011,Covid Winter Grant,3701,Grants,Children'S Services
Blackpool Council,1021388,Cidari Education Ltd T/A St Georges School,575328,0000000271,7/14/2021,4335,0,EP8011,Covid Winter Grant,3701,Grants,Children'S Services
Blackpool Council,1037512,Fft Education Ltd,575329,SI S 21-1096,7/16/2021,2997.88,499.64,MNGMT,Central Management,3711,Subscriptions,Children'S Services
Blackpool Council,1007020,Seddons (Plant & Engineers) Ltd,575331,464735,7/30/2021,618,103,SCHEME,Highways Schemes,3041,Other Materials,Community & Env Services
Blackpool Council,1012789,Advanced Business Solutions (Fka Coa),575333,ARBK/99057641,7/30/2021,1365.58,227.6,FBBCA,Accountancy,3532,Comp-Running & License Costs,Resources
Blackpool Council,1012789,Advanced Business Solutions (Fka Coa),575334,ARBK/99057660,7/30/2021,10924.61,1820.77,FBBCA,Accountancy,3532,Comp-Running & License Costs,Resources
Blackpool Council,1042797,Lux Occ Medical Ltd,575335,BBC/249,7/12/2021,900,0,FK0013,Corporate Health,0992,Medical Fees (Employee),Chief Executive
Blackpool Council,1114981,John Sisk & Son (Holdings) Ltd,575340,21060027,7/14/2021,300236.29,50039.38,CTAHHI,Tramway Extention,6501,Contract Payments,Capital - Commnctn & Regen
Blackpool Council,1114981,John Sisk & Son (Holdings) Ltd,575340,21060027,7/14/2021,13168.26,0,ZF0001,"Insurance,Dso,Banking",97B6,Retention Monies - Cap Trsfr,Total Reconciliations
Blackpool Council,1057581,Nisbets,575342,22789716,7/6/2021,652.06,108.67,CATERG,Catering Services,3052,Kitchen (Light) Equip-Purchase,Community & Env Services
Blackpool Council,1112714,Seatable Uk Ltd,575344,12977,7/6/2021,2803.71,467.28,CATERG,Catering Services,3020,Furniture - Purchase,Community & Env Services
Blackpool Council,1110600,REDACTED PERSONAL DATA,575346,144,7/9/2021,1120,0,AHM,Arts Miscellaneous,3456,Payment To Artists,Places
Blackpool Council,1008525,Kingswood Office Supplies Limited,575350,407510,7/13/2021,297.12,49.52,AER,Dual Use Properties,3302,Stationery,Resources
Blackpool Council,1042281,Ann Arbor Publishers Ltd,575351,260419,7/30/2021,842.4,140.4,EDDIV,Education Diversity,3801,Other Expenses,Children'S Services
Blackpool Council,1130216,Giant Deckchairs Ltd,575352,4181,7/6/2021,654,109,PRL,Marketing,3401,General Services,Places
Blackpool Council,1013064,Tarmac Lafarge Trading Limited,575354,9043688845,7/16/2021,480.2,80.03,ENGINE,Engineering,3041,Other Materials,Community & Env Services
Blackpool Council,1013064,Tarmac Lafarge Trading Limited,575355,9043721539,7/21/2021,516.79,86.13,ENGINE,Engineering,3041,Other Materials,Community & Env Services
Blackpool Council,1013064,Tarmac Lafarge Trading Limited,575356,9043681198,7/14/2021,362.1,60.35,ENGINE,Engineering,3041,Other Materials,Community & Env Services
Blackpool Council,1013064,Tarmac Lafarge Trading Limited,575357,9043710994,7/21/2021,290.82,48.47,ENGINE,Engineering,3041,Other Materials,Community & Env Services
Blackpool Council,1013064,Tarmac Lafarge Trading Limited,575359,9043721540,7/21/2021,410.49,68.41,ENGINE,Engineering,3041,Other Materials,Community & Env Services
Blackpool Council,1013064,Tarmac Lafarge Trading Limited,575360,9043711015,7/21/2021,524.72,87.45,ENGINE,Engineering,3041,Other Materials,Community & Env Services
Blackpool Council,1006940,Smiths Equipment Hire Ltd - Smiths Training,575362,V05-941740,7/9/2021,407.62,67.94,ENGINE,Engineering,3041,Other Materials,Community & Env Services
Blackpool Council,1127644,Hawkins/Brown Design Limited,575364,13466,7/8/2021,10835.53,1805.92,HJA,Growth,3413,Consultants,Places
Blackpool Council,1123022,Chadwick High School,575365,1001149/0216,7/13/2021,3510,0,OTHL,Other Learning,5555,Educational Support,Children'S Services
Blackpool Council,1125367,Abs Education Consultancy,575366,047,7/28/2021,550,0,MNGMT,Central Management,3413,Consultants,Children'S Services
Blackpool Council,1090902,Anderson & Sons Contracting & Turf Care,575367,247,7/6/2021,5000,0,TRB,Maintenance & Works,4501,Private Contractors,Community & Env Services
Blackpool Council,1006099,Blackpool Teaching Hospitals Nhs Ft,575368,1110058102,7/6/2021,6997.5,1166.25,PUBH18,Stop Smoking Services & Interv,4501,Private Contractors,Public Health
Blackpool Council,1010300,Blacktax Radio Taxis T/A Blackpool Courier,575371,14285,7/22/2021,1258,0,TRCHIL,Integrated Transport Children,2201,Contract Hire,Community & Env Services
Blackpool Council,1010300,Blacktax Radio Taxis T/A Blackpool Courier,575372,14286,7/22/2021,1296,0,TRCHIL,Integrated Transport Children,2201,Contract Hire,Community & Env Services
Blackpool Council,1010300,Blacktax Radio Taxis T/A Blackpool Courier,575373,14265,7/22/2021,900,0,TRCHIL,Integrated Transport Children,2201,Contract Hire,Community & Env Services
Blackpool Council,1119933,Mitchell Bailey T/A Pda Technical,575378,311,7/12/2021,960,0,PJHA,"Depot, Management & Admin",3308,Servicing,Places
Blackpool Council,1123126,Matt Haylett T/A Mh Lighting,575379,248,7/15/2021,600,0,PJHA,"Depot, Management & Admin",3308,Servicing,Places
Blackpool Council,1120588,G2 Recruitment Solutions,575380,84287,7/21/2021,1344,224,HJA,Growth,0791,Temp/Relief (Bureau Staff),Places
Blackpool Council,1120588,G2 Recruitment Solutions,575381,84572,7/23/2021,360,60,HJA,Growth,0791,Temp/Relief (Bureau Staff),Places
Blackpool Council,1005144,Blackpool Airport Operations Limited,575382,0000024236,7/8/2021,900,150,CGWBAA,Cbd Phase 2,6501,Contract Payments,Capital - Commnctn & Regen
Blackpool Council,1053261,Ad Systems (Uk) Limited,575383,INV-8149,7/7/2021,4836,806,CCTV,Cctv,1012,Premises Maint-Priv.Contractor,Community & Env Services
Blackpool Council,1110996,Philip Holmes T/A Dragon Creative,575385,102008,7/9/2021,1760,0,PJW,Management - Places - Illumina,3401,General Services,Places
Blackpool Council,1123022,Chadwick High School,575387,1001149/0217,7/13/2021,3510,0,VIRTUL,Virtual Hub,5555,Educational Support,Children'S Services
Blackpool Council,1103450,Blackpool Entertainment Company Limited,575388,INV005479,7/9/2021,360,60,MNGMT,Central Management,1702,Hire Of Meeting Rooms,Children'S Services
Blackpool Council,1130307,Cool Milk At School Ltd,575395,CMS0376212,7/8/2021,20110.5,0,SCHBRK,Free School Breakfasts,3107,Milk For Drinking,Community & Env Services
Blackpool Council,1130307,Cool Milk At School Ltd,575396,CMS0380611,7/8/2021,23793.51,0,SCHBRK,Free School Breakfasts,3107,Milk For Drinking,Community & Env Services
Blackpool Council,1018184,Blackpool Skip Hire Ltd,575399,032070,7/9/2021,907.2,151.2,PJHA,"Depot, Management & Admin",3006,Hire Of Equipment,Places
Blackpool Council,1005071,Blackpool Transport Services Limited,575401,I0002990,7/15/2021,44192.94,0,OTHL,Other Learning,2201,Contract Hire,Children'S Services
Blackpool Council,1005071,Blackpool Transport Services Limited,575402,I0002991,7/15/2021,44192.94,0,OTHL,Other Learning,2201,Contract Hire,Children'S Services
Blackpool Council,1077392,Reed Specialist Recruitment Ltd,575403,E020945494M,7/28/2021,1358.1,226.35,JA1531,Independent Reviewing Officers,0791,Temp/Relief (Bureau Staff),Children'S Services
Blackpool Council,1077392,Reed Specialist Recruitment Ltd,575403,E020945494M,7/28/2021,2331.5,388.58,JAB,Locality,0791,Temp/Relief (Bureau Staff),Children'S Services
Blackpool Council,1077392,Reed Specialist Recruitment Ltd,575403,E020945494M,7/28/2021,1665.36,277.56,JAH,Duty And Assessment,0791,Temp/Relief (Bureau Staff),Children'S Services
Blackpool Council,1077392,Reed Specialist Recruitment Ltd,575403,E020945494M,7/28/2021,3330.72,555.12,JBR,Lac - Placements,0791,Temp/Relief (Bureau Staff),Children'S Services
Blackpool Council,1077392,Reed Specialist Recruitment Ltd,575403,E020945494M,7/28/2021,3774.72,629.12,JBT,Looked After Children,0791,Temp/Relief (Bureau Staff),Children'S Services
Blackpool Council,1077392,Reed Specialist Recruitment Ltd,575403,E020945494M,7/28/2021,4996.22,832.71,JEA,Senior Management,0791,Temp/Relief (Bureau Staff),Children'S Services
Blackpool Council,1077392,Reed Specialist Recruitment Ltd,575403,E020945494M,7/28/2021,666.14,111.02,PJBA,Wages Overhead Account,0791,Temp/Relief (Bureau Staff),Places
Blackpool Council,1077392,Reed Specialist Recruitment Ltd,575403,E020945494M,7/28/2021,2718.22,453.04,PU0000,Covid Test And Trace,0791,Temp/Relief (Bureau Staff),Public Health
Blackpool Council,1091470,Meetings Industry Association,575404,300001065,7/16/2021,378,63,PRA,Conferences,3801,Other Expenses,Places
Blackpool Council,1103450,Blackpool Entertainment Company Limited,575405,INV005470,7/8/2021,36000,6000,PRA,Conferences,3701,Grants,Places
Blackpool Council,1100372,Scheidt & Bachmann Uk Ltd,575407,S&B-GB213354,7/6/2021,942,157,PAROPE,Parking Operational,3012,Other Equipment,Budgets Outside Cash Limits
Blackpool Council,1010619,Askews And Holts Library Services Ltd,575409,6509105,7/28/2021,291.04,0,LBB,Central Library,3304,Books And Periodicals,Places
Blackpool Council,1026181,Blackpool Sixth Form College,575414,5101018,7/6/2021,690,0,EP8011,Covid Winter Grant,3701,Grants,Children'S Services
Blackpool Council,1105580,Buttress Architects Limited,575415,15563,7/21/2021,16014,2669,CGTACA,Museum,6506,Consultants Fees,Capital - Commnctn & Regen
Blackpool Council,1012711,Coastal Engineering Uk Ltd,575416,2107,7/28/2021,1140,190,CP0511,Anchorsholme Seawall Scheme,6506,Consultants Fees,Capital - Comm & Environ
Blackpool Council,1055691,Norbain Sd Ltd,575417,I3032659,7/15/2021,1990.51,331.75,CCTV,Cctv,3012,Other Equipment,Community & Env Services
Blackpool Council,1085614,James Raffan T/A Lancashire Marquee Hire,575418,100902,7/6/2021,360,60,PRB,Events,3006,Hire Of Equipment,Places
Blackpool Council,1088121,Candy House,575419,VBE001,7/6/2021,600,0,PRB,Events,3417,Entertainment,Places
Blackpool Council,1005071,Blackpool Transport Services Limited,575420,I0002937,7/6/2021,8027.61,0,FF0021,Blackpool Transport,0071,Salaries-Superannuation,Budgets Outside Cash Limits
Blackpool Council,1005071,Blackpool Transport Services Limited,575421,I0002985,7/15/2021,1924.34,0,FF0021,Blackpool Transport,0071,Salaries-Superannuation,Budgets Outside Cash Limits
Blackpool Council,1119242,Katherine Brady All Things Told,575423,048,7/30/2021,1275,0,CGTACA,Museum,6503,Capital Salaries (Pro Advance),Capital - Commnctn & Regen
Blackpool Council,1101639,Aardvark Art Services Limited,575424,INV-18682,7/15/2021,420,70,AHG,Art Gallery Summary,2211,Casual Hire,Places
Blackpool Council,1025954,District Surveyors Association Ltd T/A Labc,575429,13007,7/7/2021,2764.45,460.74,PLCAAA,Building Control,3711,Subscriptions,Places
Blackpool Council,1099512,Dga (Uk) Ltd,575432,SIN210734,7/7/2021,39498,6583,CGTBBB,Conference Centre,6506,Consultants Fees,Capital - Commnctn & Regen
Blackpool Council,1026738,Cassidy + Ashton,575472,18588,7/29/2021,327.6,54.6,CGICAD,Enterprise Zone,6506,Consultants Fees,Capital - Commnctn & Regen
Blackpool Council,1011970,A1 Streamline Road Markings Ltd,575475,6767,7/9/2021,756,126,ENGINE,Engineering,1012,Premises Maint-Priv.Contractor,Community & Env Services
Blackpool Council,1007814,Water Plus Limited,575483,UU-INV06543297,7/9/2021,381.1,0,PTA,Economic Development,1402,Water Charges-Unmetered,Places
Blackpool Council,1007814,Water Plus Limited,575485,UU4NV06543334,7/9/2021,381.1,0,PTA,Economic Development,1402,Water Charges-Unmetered,Places
Blackpool Council,1121485,Philredom Ltd,575486,PL030621-41,7/8/2021,2600,0,EM1001,Departmental Management,3406,Local Plan,Children'S Services
Blackpool Council,1007206,Road Safety Services Ltd,575493,88603,7/9/2021,438.24,73.04,ZM0003,Planning,9624,Rechargeable Works Account,Place Directorate
Blackpool Council,1057663,Wilde Recruitment Ltd,575497,38322,7/30/2021,690.48,115.08,CTAHHA,Tramway Emergency Works,6501,Contract Payments,Capital - Commnctn & Regen
Blackpool Council,1000009,Blackpool & The Fylde College,575500,S0022513,7/12/2021,9000,0,LM0420,Adults Training,1901,Contributions To Funds,Adult & Families
Blackpool Council,1016258,M J Teale Plant Hire Ltd,575501,INV-4309,7/9/2021,2634.77,439.13,SCHEME,Highways Schemes,1012,Premises Maint-Priv.Contractor,Community & Env Services
Blackpool Council,1106798,Cd Chauffeur Hire,575511,368,7/22/2021,754,0,BCA,Corp And Member Services,2211,Casual Hire,Governance & Partnerships
Blackpool Council,1114704,Morson Human Resources Ltd,575512,HS350731,7/8/2021,2310,385,CTAHHI,Tramway Extention,6506,Consultants Fees,Capital - Commnctn & Regen
Blackpool Council,1026869,Kpmg Llp Fees Account,575513,5502282089,7/8/2021,12018,2003,FCACA,Benefits - Admin,3401,General Services,Resources
Blackpool Council,1102016,Critiqom Limited,575514,067598,7/8/2021,1263.62,210.6,FBBEA,"Income, Recovery & Debtors",3301,Printing,Resources
Blackpool Council,1102016,Critiqom Limited,575515,067599,7/8/2021,7407.9,1234.65,FBBEA,"Income, Recovery & Debtors",3511,Postages,Resources
Blackpool Council,1006099,Blackpool Teaching Hospitals Nhs Ft,575517,1110058168,7/16/2021,3926.82,654.47,PU2061,Domestic Violence,4501,Private Contractors,Public Health
Blackpool Council,1006099,Blackpool Teaching Hospitals Nhs Ft,575518,1110058171,7/16/2021,4321.2,720.2,PU2061,Domestic Violence,4501,Private Contractors,Public Health
Blackpool Council,1102016,Critiqom Limited,575520,067600,7/8/2021,374.18,62.36,FBBEA,"Income, Recovery & Debtors",3301,Printing,Resources
Blackpool Council,1102016,Critiqom Limited,575521,067601,7/8/2021,2266.14,377.69,FBBEA,"Income, Recovery & Debtors",3511,Postages,Resources
Blackpool Council,1099262,Nhs Blackpool Ccg,575527,7011218685,7/14/2021,684888,0,LM9027,Bcf Control,5101,Transfer Payments - General,Bcf General And Control
Blackpool Council,1006099,Blackpool Teaching Hospitals Nhs Ft,575528,1110058104,7/8/2021,9111.5,0,BSTPRJ,Better Start Projects,3401,General Services,Better Start Projects
Blackpool Council,1116434,REDACTED PERSONAL DATA,575529,2021-1716,7/30/2021,643.05,0,JEA,Senior Management,4712,Experts Fees,Children'S Services
Blackpool Council,1010069,Caterware Ltd,575559,INV01413,7/8/2021,332.58,55.43,CATERG,Catering Services,1066,Service Contracts,Community & Env Services
Blackpool Council,1010009,North & Western Lancs Chamber Of Commerce,575562,87090,7/15/2021,522,87,PTA,Economic Development,3711,Subscriptions,Places
Blackpool Council,1019374,Fibrous Limited,575571,INV-2660,7/21/2021,458.04,76.34,CEMCRE,Cems Crems Etc,3041,Other Materials,Governance & Partnerships
Blackpool Council,1099512,Dga (Uk) Ltd,575572,SIN220017,7/14/2021,47736,7956,CP0511,Anchorsholme Seawall Scheme,6506,Consultants Fees,Capital - Comm & Environ
Blackpool Council,1117528,Knowledge Exchange Group Limited,575574,PUK-006690,7/8/2021,270,45,BCA,Corp And Member Services,0911,Training Expenses,Governance & Partnerships
Blackpool Council,1033894,Gl Education Group Limited,575579,SINV00310699,7/19/2021,957.6,159.6,OPAREA,Opportunity Areas,4515,Contract Services,Places
Blackpool Council,1117821,U-Explore Limited,575580,102713,7/8/2021,6480,1080,OPAREA,Opportunity Areas,4515,Contract Services,Places
Blackpool Council,1119761,Janet Carroll,575581,03/J21/TAS022,7/9/2021,5600,0,OPAREA,Opportunity Areas,4515,Contract Services,Places
Blackpool Council,1123713,Leadinglearner Ltd,575582,202122-028,7/21/2021,4550,0,OPAREA,Opportunity Areas,4515,Contract Services,Places
Blackpool Council,1096596,Highfield Pfi Spv Ltd,575583,PHSIP000009,7/9/2021,393132.22,65522.04,EM1029,Highfield Pfi,4515,Contract Services,Children'S Services
Blackpool Council,1096596,Highfield Pfi Spv Ltd,575583,PHSIP000009,7/9/2021,10131.06,1688.51,EM1029,Highfield Pfi,1202,Electricity,Children'S Services
Blackpool Council,1116244,Linda Clegg Consulting Ltd,575585,027,7/30/2021,3150,525,JEA,Senior Management,3401,General Services,Children'S Services
Blackpool Council,1120847,REDACTED PERSONAL DATA,575589,07,7/9/2021,525,0,ALEARN,Adult Learning,0917,Other Exps,Places
Blackpool Council,1023478,Highfield Leadership Academy,575595,HLSI 339,7/9/2021,8938,0,OPAREA,Opportunity Areas,4515,Contract Services,Places
Blackpool Council,1071551,Business In The Community,575596,SIN058287,7/9/2021,4404,0,OPAREA,Opportunity Areas,4515,Contract Services,Places
Blackpool Council,1099746,Fcat T/A Unity Academy,575597,9000000397,7/9/2021,8938,0,OPAREA,Opportunity Areas,4515,Contract Services,Places
Blackpool Council,1108432,Motionlab Marketing Limited,575602,ML:14809,7/9/2021,816,136,PBF,Communications,0921,Advertising (Staff Vac.),Places
Blackpool Council,1114704,Morson Human Resources Ltd,575603,HS354751,7/14/2021,2310,385,CTAHHI,Tramway Extention,6506,Consultants Fees,Capital - Commnctn & Regen
Blackpool Council,1104384,Blackpool Aspire Academy & Highfurlong School,575605,7000000150,7/9/2021,8938,0,OPAREA,Opportunity Areas,4515,Contract Services,Places
Blackpool Council,1012096,St Mary'S Catholic Academy,575608,0000000412,7/9/2021,8938,0,OPAREA,Opportunity Areas,4515,Contract Services,Places
Blackpool Council,1007206,Road Safety Services Ltd,575609,88746,7/9/2021,418.32,69.72,ZM0003,Planning,9624,Rechargeable Works Account,Place Directorate
Blackpool Council,1107632,Right To Succeed,575610,INV-00163,7/28/2021,14695.2,2449.2,OPAREA,Opportunity Areas,4515,Contract Services,Places
Blackpool Council,1100201,D & A Scrivens And Son,575612,7488,7/20/2021,1080,180,CWASTE,Commercial Waste,1021,Growing,Community & Env Services
Blackpool Council,1005144,Blackpool Airport Operations Limited,575617,0000024234,7/9/2021,300,50,FK0071,Corporate Training,0911,Training Expenses,Chief Executive
Blackpool Council,1104384,Blackpool Aspire Academy & Highfurlong School,575618,7000000138,7/14/2021,20433,0,CWAN,Children With Additional Needs,4403,Special Needs - Children,Children'S Services
Blackpool Council,1121728,Arrow County Supplies,575622,4903699,7/13/2021,402.25,0,ZM0018,Highways & Engineering,9773,Orders Received Not Invoiced,Blackpool Services
Blackpool Council,1121728,Arrow County Supplies,575622,4903699,7/13/2021,482.7,80.45,ZM0018,Highways & Engineering,9511A,Stocks Efin,Blackpool Services
Blackpool Council,1006944,Siemens Financial Services Ltd,575670,244/21/0187982,7/16/2021,1517.32,252.88,APFBAB,Vitaline,3711,Subscriptions,Adult & Families
Blackpool Council,1010138,C Cabs,575671,07363,7/22/2021,792,0,TRCHIL,Integrated Transport Children,2201,Contract Hire,Community & Env Services
Blackpool Council,1010138,C Cabs,575672,07362,7/22/2021,1800,0,TRCHIL,Integrated Transport Children,2201,Contract Hire,Community & Env Services
Blackpool Council,1010138,C Cabs,575673,07360,7/22/2021,720,0,TRCHIL,Integrated Transport Children,2201,Contract Hire,Community & Env Services
Blackpool Council,1010138,C Cabs,575674,07359,7/22/2021,540,0,TRCHIL,Integrated Transport Children,2201,Contract Hire,Community & Env Services
Blackpool Council,1010138,C Cabs,575675,07361,7/21/2021,892.5,0,TRCHIL,Integrated Transport Children,2201,Contract Hire,Community & Env Services
Blackpool Council,1010138,C Cabs,575676,07366,7/22/2021,828,0,TRCHIL,Integrated Transport Children,2201,Contract Hire,Community & Env Services
Blackpool Council,1010138,C Cabs,575677,07365,7/21/2021,864,0,TRCHIL,Integrated Transport Children,2201,Contract Hire,Community & Env Services
Blackpool Council,1010138,C Cabs,575678,07364,7/21/2021,576,0,TRCHIL,Integrated Transport Children,2201,Contract Hire,Community & Env Services
Blackpool Council,1010138,C Cabs,575679,07368,7/21/2021,900,0,TRCHIL,Integrated Transport Children,2201,Contract Hire,Community & Env Services
Blackpool Council,1010138,C Cabs,575680,07369,7/22/2021,828,0,TRCHIL,Integrated Transport Children,2201,Contract Hire,Community & Env Services
Blackpool Council,1010138,C Cabs,575681,07370,7/21/2021,720,0,TRCHIL,Integrated Transport Children,2201,Contract Hire,Community & Env Services
Blackpool Council,1010138,C Cabs,575682,07372,7/21/2021,420,0,TRCHIL,Integrated Transport Children,2201,Contract Hire,Community & Env Services
Blackpool Council,1010138,C Cabs,575683,07371,7/21/2021,828,0,TRCHIL,Integrated Transport Children,2201,Contract Hire,Community & Env Services
Blackpool Council,1010138,C Cabs,575684,07373,7/21/2021,864,0,TRCHIL,Integrated Transport Children,2201,Contract Hire,Community & Env Services
Blackpool Council,1010138,C Cabs,575685,07376,7/21/2021,1080,0,TRCHIL,Integrated Transport Children,2201,Contract Hire,Community & Env Services
Blackpool Council,1010138,C Cabs,575686,07374,7/22/2021,910,0,TRCHIL,Integrated Transport Children,2201,Contract Hire,Community & Env Services
Blackpool Council,1010138,C Cabs,575687,07377,7/21/2021,900,0,TRCHIL,Integrated Transport Children,2201,Contract Hire,Community & Env Services
Blackpool Council,1010138,C Cabs,575688,07375,7/22/2021,1044,0,TRCHIL,Integrated Transport Children,2201,Contract Hire,Community & Env Services
Blackpool Council,1010138,C Cabs,575689,07378,7/22/2021,900,0,TRCHIL,Integrated Transport Children,2201,Contract Hire,Community & Env Services
Blackpool Council,1122496,Haldane Fisher,575692,1200/00114582,7/30/2021,3286.5,547.75,PJLA,Maintenance,3041,Other Materials,Places
Blackpool Council,1030119,Generation (Uk) Ltd,575693,S0223439,7/21/2021,2730,455,PJAA,"Erection, Operation & Dismantl",3006,Hire Of Equipment,Places
Blackpool Council,1090774,Richardson Traction Limited,575698,22072,7/16/2021,3840,640,PJAA,"Erection, Operation & Dismantl",3308,Servicing,Places
Blackpool Council,1099512,Dga (Uk) Ltd,575699,SIN220016,7/14/2021,65220,10870,CGTBBB,Conference Centre,6506,Consultants Fees,Capital - Commnctn & Regen
Blackpool Council,1041733,Dhl International (Uk) Ltd,575701,AVI8586038,7/22/2021,1627.87,0,PJHA,"Depot, Management & Admin",3041,Other Materials,Places
Blackpool Council,1090628,The Furniture Recycling Group,575702,INV25213,7/26/2021,266.77,44.46,CWASTE,Commercial Waste,4501,Private Contractors,Community & Env Services
Blackpool Council,1087805,Blackpool Fc Community Trust,575703,BFCCT1254,7/16/2021,25000,0,OPAREA,Opportunity Areas,4515,Contract Services,Places
Blackpool Council,1009177,Dr S A Shearer & Partners-Glenroyd Medical,575705,LYVW/00000085,7/9/2021,663,0,PUBH02,Sexual Health Services-Contrac,4501,Private Contractors,Public Health
Blackpool Council,1009019,Highfield Surgery,575706,LZCM/00000070,7/9/2021,2116.94,0,PUBH02,Sexual Health Services-Contrac,4501,Private Contractors,Public Health
Blackpool Council,1046253,The Partners At Newton Drive Health Centre,575707,LYWV/00000059,7/9/2021,412.1,0,PUBH02,Sexual Health Services-Contrac,4501,Private Contractors,Public Health
Blackpool Council,1084725,Stonyhill Medical Practice,575709,LZLQ/00000094,7/9/2021,1476,0,PUBH02,Sexual Health Services-Contrac,4501,Private Contractors,Public Health
Blackpool Council,1045131,North Shore Surgery,575711,LZJT/00000101,7/9/2021,265,0,PUBH18,Stop Smoking Services & Interv,4501,Private Contractors,Public Health
Blackpool Council,1006099,Blackpool Teaching Hospitals Nhs Ft,575712,BQGWY/00000029,7/9/2021,1773.78,84.47,PUBH18,Stop Smoking Services & Interv,4501,Private Contractors,Public Health
Blackpool Council,1006385,University Of Central Lancashire,575715,TUI249000015,7/9/2021,320,0,JA0506,Ayse Training,0911,Training Expenses,Children'S Services
Blackpool Council,1006385,University Of Central Lancashire,575716,TUI250100036,7/9/2021,320,0,JA0506,Ayse Training,0911,Training Expenses,Children'S Services
Blackpool Council,1006385,University Of Central Lancashire,575717,TUI249000018,7/9/2021,400,0,JA0506,Ayse Training,0911,Training Expenses,Children'S Services
Blackpool Council,1006385,University Of Central Lancashire,575718,TUI249900002,7/9/2021,320,0,JA0506,Ayse Training,0911,Training Expenses,Children'S Services
Blackpool Council,1006385,University Of Central Lancashire,575719,TUI249000022,7/9/2021,400,0,JA0506,Ayse Training,0911,Training Expenses,Children'S Services
Blackpool Council,1006385,University Of Central Lancashire,575720,TUI249000012,7/9/2021,320,0,JA0506,Ayse Training,0911,Training Expenses,Children'S Services
Blackpool Council,1006385,University Of Central Lancashire,575721,TUI249000023,7/12/2021,400,0,LM0421,Adults Asye Training,0911,Training Expenses,Adult & Families
Blackpool Council,1006385,University Of Central Lancashire,575722,TUI249000019,7/9/2021,400,0,JA0506,Ayse Training,0911,Training Expenses,Children'S Services
Blackpool Council,1006385,University Of Central Lancashire,575723,TU1249000013,7/9/2021,320,0,JA0506,Ayse Training,0911,Training Expenses,Children'S Services
Blackpool Council,1006385,University Of Central Lancashire,575724,TUI249000020,7/9/2021,320,0,JA0506,Ayse Training,0911,Training Expenses,Children'S Services
Blackpool Council,1006385,University Of Central Lancashire,575725,TUI249000014,7/9/2021,400,0,JA0506,Ayse Training,0911,Training Expenses,Children'S Services
Blackpool Council,1006385,University Of Central Lancashire,575726,TU1249000021,7/9/2021,400,0,JA0506,Ayse Training,0911,Training Expenses,Children'S Services
Blackpool Council,1006385,University Of Central Lancashire,575727,TUI250100037,7/9/2021,400,0,JA0506,Ayse Training,0911,Training Expenses,Children'S Services
Blackpool Council,1006385,University Of Central Lancashire,575728,TUI249000017,7/9/2021,320,0,JA0506,Ayse Training,0911,Training Expenses,Children'S Services
Blackpool Council,1010619,Askews And Holts Library Services Ltd,575732,6509144,7/28/2021,361.03,0,LBB,Central Library,3304,Books And Periodicals,Places
Blackpool Council,1085991,Unitas Academy Ltd,575734,1931,7/12/2021,900,150,VA0010,Vah Management & Admin,3426,Course Fees,Children'S Services
Blackpool Council,1010026,Chartered Institute Of Environmental,575736,370905,7/15/2021,1195,0,PYCA,Public Protection - Food,3313,General Expenses,Community & Env Services
Blackpool Council,1032536,Partner Ship Media Group Ltd,575737,0000173859,7/12/2021,354,59,PYSA,Community Safety,3313,General Expenses,Community & Env Services
Blackpool Council,1009751,Bt Business Direct Limited,575739,IN05548751,7/14/2021,432.57,72.09,CCTV,Cctv,3012,Other Equipment,Community & Env Services
Blackpool Council,1018184,Blackpool Skip Hire Ltd,575740,10097,7/20/2021,660,110,CWASTE,Commercial Waste,4501,Private Contractors,Community & Env Services
Blackpool Council,1109682,Entertainment Concepts Ltd,575741,285,7/16/2021,799.99,133.33,FMAK,Acquisitions 9/10,1131,Electrical Equipment - Repairs,Places
Blackpool Council,1087234,Aitch Tools & Fasteners Ltd,575748,054460,7/12/2021,260,0,ZM0018,Highways & Engineering,9773,Orders Received Not Invoiced,Blackpool Services
Blackpool Council,1087234,Aitch Tools & Fasteners Ltd,575748,054460,7/12/2021,312,52,ZM0018,Highways & Engineering,9511A,Stocks Efin,Blackpool Services
Blackpool Council,1114727,Elliott Wood Partnership Ltd,575749,INV013059,7/14/2021,2943,490.5,CGTBBB,Conference Centre,6501,Contract Payments,Capital - Commnctn & Regen
Blackpool Council,1114727,Elliott Wood Partnership Ltd,575750,INV012781,7/14/2021,2313,385.5,CGTBBB,Conference Centre,6501,Contract Payments,Capital - Commnctn & Regen
Blackpool Council,1106616,Boingboing Resilience Cic,575830,664,7/30/2021,50702.4,8450.4,HS0003,Headstart Commissioning,3401,General Services,Children'S Services
Blackpool Council,1106616,Boingboing Resilience Cic,575831,663,7/30/2021,9181.2,1530.2,HS0007,Young People & Comm'Y Engagemt,4501,Private Contractors,Children'S Services
Blackpool Council,1121194,REDACTED PERSONAL DATA,575832,HS18,7/30/2021,2346.25,0,HS0003,Headstart Commissioning,3401,General Services,Children'S Services
Blackpool Council,1106616,Boingboing Resilience Cic,575833,662,7/30/2021,6200.52,1033.42,HS0002,Headstart Evaluation,3401,General Services,Children'S Services
Blackpool Council,1130125,Wilmington Hsj T/A Wilmington Healthcare Ltd,575834,169626,7/12/2021,274,45.67,HS0001,Headstart Central Expenditure,3801,Other Expenses,Children'S Services
Blackpool Council,1114664,REDACTED PERSONAL DATA,575836,043,7/15/2021,1690,0,HS0005,Whole School Approach,0911,Training Expenses,Children'S Services
Blackpool Council,1005071,Blackpool Transport Services Limited,575837,I0003008,7/19/2021,1643.83,0,FRAEA,Public Transport Contracts,3401,General Services,Community & Env Services
Blackpool Council,1116301,Wonde Ltd (Gdpr.Co.Uk),575841,SV-134349,7/12/2021,1770,0,EDDIV,Education Diversity,3606,Incidental Expenses,Children'S Services
Blackpool Council,1044156,Pell Frischmann,575849,64017547,7/16/2021,5351.04,891.84,CTAHHI,Tramway Extention,6506,Consultants Fees,Capital - Commnctn & Regen
Blackpool Council,1009763,Curtins Consulting Limited,575850,0048823,7/12/2021,10080,1680,CGIBAA,Land Release Fund,6506,Consultants Fees,Capital - Commnctn & Regen
Blackpool Council,1010300,Blacktax Radio Taxis T/A Blackpool Courier,575851,14283,7/12/2021,1138,0,TRADUL,Intergrated Transport Adults,2201,Contract Hire,Community & Env Services
Blackpool Council,1010830,Ace Radio Cabs Limited,575855,0053,7/21/2021,1512,252,TRCHIL,Integrated Transport Children,2201,Contract Hire,Community & Env Services
Blackpool Council,1012990,Gladstone Mrm Limited,575858,04017667,7/12/2021,5154,859,LEISUR,Leisure Management,3532,Comp-Running & License Costs,Community & Env Services
Blackpool Council,1012990,Gladstone Mrm Limited,575859,SUP0009172,7/23/2021,4375.47,729.25,LEISUR,Leisure Management,3532,Comp-Running & License Costs,Community & Env Services
Blackpool Council,1011952,Empowerment,575862,1448,7/12/2021,547.01,0,HS0003,Headstart Commissioning,3401,General Services,Children'S Services
Blackpool Council,1011952,Empowerment,575863,1487,7/12/2021,1053.61,0,HS0003,Headstart Commissioning,3401,General Services,Children'S Services
Blackpool Council,1026811,Stannah Lift Services Ltd,575867,1085322168,7/20/2021,495.61,82.6,MVA,18-64,5401,Aids To Daily Living,Adult & Families
Blackpool Council,1026811,Stannah Lift Services Ltd,575868,1085322086,7/20/2021,1242.43,207.07,MVB,65-74,5401,Aids To Daily Living,Adult & Families
Blackpool Council,1026811,Stannah Lift Services Ltd,575869,1085322749,7/21/2021,1356,226,MVB,65-74,5401,Aids To Daily Living,Adult & Families
Blackpool Council,1026811,Stannah Lift Services Ltd,575870,1085322827,7/21/2021,7717.2,1286.2,CXAAA,Local Authority Dwellings,6501,Contract Payments,Capital - Chief Executive
Blackpool Council,1026811,Stannah Lift Services Ltd,575871,1085324693,7/27/2021,4760,0,CX4002,Disabled Facilities Grants,6501,Contract Payments,Capital - Adult Social Care
Blackpool Council,1049200,Etac Limited,575874,300639,7/29/2021,333.6,55.6,MTE,Undefined Age Group,5401,Aids To Daily Living,Adult & Families
Blackpool Council,1006196,Prism Medical Uk Ltd,575876,5463336,7/15/2021,360.58,60.1,MVA,18-64,5401,Aids To Daily Living,Adult & Families
Blackpool Council,1026811,Stannah Lift Services Ltd,575881,1085325328,7/28/2021,504,84,MVB,65-74,5401,Aids To Daily Living,Adult & Families
Blackpool Council,1026811,Stannah Lift Services Ltd,575882,1085326375,7/30/2021,7125,0,CX4002,Disabled Facilities Grants,6501,Contract Payments,Capital - Adult Social Care
Blackpool Council,1011675,Bambers Remedial Contractors Limited,575884,17061,7/15/2021,13294.81,0,CX4002,Disabled Facilities Grants,6501,Contract Payments,Capital - Adult Social Care
Blackpool Council,1129189,Baffin Technology Systems,575886,I/10191/07/2021,7/20/2021,3788.4,631.4,CWAN,Children With Additional Needs,5401,Aids To Daily Living,Children'S Services
Blackpool Council,1037483,The Suzy Lamplugh Trust,575926,20961,7/23/2021,2640,440,JA0505,Children'S Training,3426,Course Fees,Children'S Services
Blackpool Council,1008499,Scholastic Ltd T/A Laburnum House & Mbe Books,575927,00113327,7/30/2021,882.84,0,EDDIV,Education Diversity,3304,Books And Periodicals,Children'S Services
Blackpool Council,1008499,Scholastic Ltd T/A Laburnum House & Mbe Books,575928,00113333,7/23/2021,882.84,0,EDDIV,Education Diversity,3304,Books And Periodicals,Children'S Services
Blackpool Council,1127962,John Graham Construction Limited,575930,914642,7/15/2021,176980.5,29496.75,CGICAF,G&P Prudential Schemes,6501,Contract Payments,Capital - Commnctn & Regen
Blackpool Council,1104384,Blackpool Aspire Academy & Highfurlong School,575933,7000000153,7/14/2021,33840,0,EP8011,Covid Winter Grant,3701,Grants,Children'S Services
Blackpool Council,1010554,Cidari Education Ltd,575934,0000000273,7/14/2021,2655,0,EP8011,Covid Winter Grant,3701,Grants,Children'S Services
Blackpool Council,1079488,Recycling Lives Ltd,575936,255800,7/19/2021,1440,240,CWASTE,Commercial Waste,4501,Private Contractors,Community & Env Services
Blackpool Council,1079488,Recycling Lives Ltd,575937,256691,7/19/2021,1296,216,CWASTE,Commercial Waste,4501,Private Contractors,Community & Env Services
Blackpool Council,1079488,Recycling Lives Ltd,575938,258101,7/19/2021,1152,192,CWASTE,Commercial Waste,4501,Private Contractors,Community & Env Services
Blackpool Council,1101124,Bright Futures Educational Trust - Ssa,575939,SSSI 36,7/14/2021,39600,0,EP8011,Covid Winter Grant,3701,Grants,Children'S Services
Blackpool Council,1123432,Achievement Through Collaboration - Thames,575941,THASI25,7/14/2021,22860,0,EP8011,Covid Winter Grant,3701,Grants,Children'S Services
Blackpool Council,1130533,Kids Of Colour Cic,575943,0821,7/14/2021,710,0,HS0001,Headstart Central Expenditure,3605,Confs & Short Courses,Children'S Services
Blackpool Council,1103450,Blackpool Entertainment Company Limited,575944,INV005481,7/22/2021,345.3,57.55,PTC,"A.C.E. Regen, Tourism & Cultur",0917,Other Exps,Places
Blackpool Council,1106132,Bridge Education And Training Ltd,575945,7986,7/19/2021,648,108,AEF,Facilities,0791,Temp/Relief (Bureau Staff),Resources
Blackpool Council,1106132,Bridge Education And Training Ltd,575946,8023,7/19/2021,810,135,AEF,Facilities,0791,Temp/Relief (Bureau Staff),Resources
Blackpool Council,1106132,Bridge Education And Training Ltd,575947,8062,7/19/2021,810,135,AEF,Facilities,0791,Temp/Relief (Bureau Staff),Resources
Blackpool Council,1106132,Bridge Education And Training Ltd,575948,8102,7/19/2021,810,135,AEF,Facilities,0791,Temp/Relief (Bureau Staff),Resources
Blackpool Council,1106132,Bridge Education And Training Ltd,575949,8134,7/19/2021,648,108,AEF,Facilities,0791,Temp/Relief (Bureau Staff),Resources
Blackpool Council,1106132,Bridge Education And Training Ltd,575950,8139,7/19/2021,810,135,AEF,Facilities,0791,Temp/Relief (Bureau Staff),Resources
Blackpool Council,1106132,Bridge Education And Training Ltd,575951,8184,7/19/2021,810,135,AEF,Facilities,0791,Temp/Relief (Bureau Staff),Resources
Blackpool Council,1106132,Bridge Education And Training Ltd,575952,8225,7/19/2021,810,135,AEF,Facilities,0791,Temp/Relief (Bureau Staff),Resources
Blackpool Council,1106132,Bridge Education And Training Ltd,575953,8267,7/21/2021,810,135,AEF,Facilities,0791,Temp/Relief (Bureau Staff),Resources
Blackpool Council,1012096,St Mary'S Catholic Academy,575960,0000000417,7/14/2021,420,0,VIRTUL,Virtual Hub,5555,Educational Support,Children'S Services
Blackpool Council,1116301,Wonde Ltd (Gdpr.Co.Uk),575961,SV-136436,7/15/2021,1770,0,EDDIV,Education Diversity,3606,Incidental Expenses,Children'S Services
Blackpool Council,1106132,Bridge Education And Training Ltd,575964,8265,7/14/2021,588,98,VIRTUL,Virtual Hub,5555,Educational Support,Children'S Services
Blackpool Council,1102319,Langdale Free School,575965,SMV004,7/22/2021,750,0,EP8011,Covid Winter Grant,3701,Grants,Children'S Services
Blackpool Council,1030487,Redline Travel Limited,575966,36193,7/14/2021,1875,0,MNGMT,Central Management,2211,Casual Hire,Children'S Services
Blackpool Council,1087118,Ps & P Limited,575967,170379,7/23/2021,380.21,63.37,FC3001,Housing Benefits,3401,General Services,Budgets Outside Cash Limits
Blackpool Council,1027732,The Staff College,575968,827,7/14/2021,1250,0,EM1001,Departmental Management,3401,General Services,Children'S Services
Blackpool Council,1096486,Achievement Through Collaboration - Roseacre,575969,RPASI13,7/14/2021,17100,0,EP8011,Covid Winter Grant,3701,Grants,Children'S Services
Blackpool Council,1099546,Park Community Academy,575970,PCA120721,7/14/2021,2655,0,EP8011,Covid Winter Grant,3701,Grants,Children'S Services
Blackpool Council,1119587,Highway Workforce Ltd,575971,HWF 2021-157,7/14/2021,12093.44,2015.58,CTABZA,Ltp Scheme 20/21,6501,Contract Payments,Capital - Commnctn & Regen
Blackpool Council,1038738,Layton Primary School,575972,21-004,7/14/2021,4080,0,EP8011,Covid Winter Grant,3701,Grants,Children'S Services
Blackpool Council,1012096,St Mary'S Catholic Academy,575973,0000000416,7/14/2021,2168.5,0,MNGMT,Central Management,6273,Miscellaneous,Children'S Services
Blackpool Council,1099266,Yesss Electrical Ltd,575987,078IN106048,7/22/2021,828,138,CCTV,Cctv,3012,Other Equipment,Community & Env Services
Blackpool Council,1075026,Henco International Ltd,575989,11111,7/14/2021,1547.83,257.97,AEB,Buildings,1301,Rent & Hire Of Premises,Resources
Blackpool Council,1129757,Leisure - Net Solutions Ltd,575993,7990,7/14/2021,3062.4,510.4,LEISUR,Leisure Management,3801,Other Expenses,Community & Env Services
Blackpool Council,1122684,Crystal Victoria Lewis,575997,04,7/22/2021,840,0,ALEARN,Adult Learning,0917,Other Exps,Places
Blackpool Council,1117136,REDACTED PERSONAL DATA,575998,15,7/16/2021,858.5,0,ALEARN,Adult Learning,0917,Other Exps,Places
Blackpool Council,1099572,Yasuda 3d-Art,575999,0059,7/19/2021,400,0,PJHA,"Depot, Management & Admin",3308,Servicing,Places
Blackpool Council,1116301,Wonde Ltd (Gdpr.Co.Uk),576002,SV-136431,7/15/2021,1770,0,EDDIV,Education Diversity,3606,Incidental Expenses,Children'S Services
Blackpool Council,1116301,Wonde Ltd (Gdpr.Co.Uk),576003,SV-136426,7/15/2021,1770,0,EDDIV,Education Diversity,3606,Incidental Expenses,Children'S Services
Blackpool Council,1116301,Wonde Ltd (Gdpr.Co.Uk),576004,SV-136424,7/15/2021,1770,0,EDDIV,Education Diversity,3606,Incidental Expenses,Children'S Services
Blackpool Council,1116301,Wonde Ltd (Gdpr.Co.Uk),576005,SV-136422,7/14/2021,1770,0,EDDIV,Education Diversity,3606,Incidental Expenses,Children'S Services
Blackpool Council,1012071,Bethell Construction Limited,576006,17277,7/14/2021,5431.55,905.26,ENGINE,Engineering,1012,Premises Maint-Priv.Contractor,Community & Env Services
Blackpool Council,1012071,Bethell Construction Limited,576007,17278,7/14/2021,2166.74,361.12,ENGINE,Engineering,1012,Premises Maint-Priv.Contractor,Community & Env Services
Blackpool Council,1012071,Bethell Construction Limited,576008,17276,7/14/2021,1353.71,225.62,ENGINE,Engineering,1012,Premises Maint-Priv.Contractor,Community & Env Services
Blackpool Council,1012071,Bethell Construction Limited,576009,17275,7/14/2021,907.7,151.28,ENGINE,Engineering,1012,Premises Maint-Priv.Contractor,Community & Env Services
Blackpool Council,1012071,Bethell Construction Limited,576010,17274,7/14/2021,3148.36,524.73,ENGINE,Engineering,1012,Premises Maint-Priv.Contractor,Community & Env Services
Blackpool Council,1012071,Bethell Construction Limited,576011,17273,7/14/2021,2527.9,421.32,ENGINE,Engineering,1012,Premises Maint-Priv.Contractor,Community & Env Services
Blackpool Council,1012071,Bethell Construction Limited,576012,17272,7/14/2021,1140.59,190.1,ENGINE,Engineering,1012,Premises Maint-Priv.Contractor,Community & Env Services
Blackpool Council,1016258,M J Teale Plant Hire Ltd,576017,INV-3874,7/14/2021,1027.96,171.32,SCHEME,Highways Schemes,1012,Premises Maint-Priv.Contractor,Community & Env Services
Blackpool Council,1012071,Bethell Construction Limited,576018,17279,7/14/2021,18535.76,3089.29,ENGINE,Engineering,1012,Premises Maint-Priv.Contractor,Community & Env Services
Blackpool Council,1010138,C Cabs,576019,07412,7/22/2021,900,0,TRCHIL,Integrated Transport Children,2201,Contract Hire,Community & Env Services
Blackpool Council,1010138,C Cabs,576020,07413,7/22/2021,1188,0,TRCHIL,Integrated Transport Children,2201,Contract Hire,Community & Env Services
Blackpool Council,1094424,The Networking People,576021,SI109634,7/30/2021,3000,500,FGAA,Ict Corporate Services,3527,Communication Lines,Resources
Blackpool Council,1074052,Brent Stevenson Memorials Ltd,576022,22716,7/14/2021,336,56,CEMCRE,Cems Crems Etc,3454,Remove And Refix Memorials,Governance & Partnerships
Blackpool Council,1074052,Brent Stevenson Memorials Ltd,576023,22837,7/21/2021,504,84,CEMCRE,Cems Crems Etc,3454,Remove And Refix Memorials,Governance & Partnerships
Blackpool Council,1071432,Cpi - Crisis Preventions Insititute,576034,CUK0027877,7/29/2021,1440,240,EDDIV,Education Diversity,3711,Subscriptions,Children'S Services
Blackpool Council,1080807,Access Point Limited,576035,132084,7/14/2021,324,54,PU0111,Contain Outbreak Mgmnt Covid,4501,Private Contractors,Public Health
Blackpool Council,1129634,Av-Id,576038,166,7/22/2021,2372.4,395.4,FGAA,Ict Corporate Services,3531,Computer-H'Ware Purchase,Resources
Blackpool Council,1120254,Swimphony Ltd,576040,1088,7/30/2021,3720,620,LEISUR,Leisure Management,3801,Other Expenses,Community & Env Services
Blackpool Council,1130117,Smart City Media (T/A City Dressing),576041,1791,7/15/2021,10480.43,1746.74,PRF,Keeping Blackpool Alive,3401,General Services,Places
Blackpool Council,1123589,Unique Training Group Ltd,576044,111,7/30/2021,1200,0,EDDIV,Education Diversity,4101,Other Local Authorities,Children'S Services
Blackpool Council,1123589,Unique Training Group Ltd,576045,112,7/30/2021,330,0,EDDIV,Education Diversity,4101,Other Local Authorities,Children'S Services
Blackpool Council,1118715,Alison Black Ltd T/A Sportmax,576051,115420,7/30/2021,658.86,109.81,LEISUR,Leisure Management,3048,Cost Of Goods Sold,Community & Env Services
Blackpool Council,1110336,Gillian Fennel,576052,24,7/15/2021,1250,0,EDDIV,Education Diversity,3413,Consultants,Children'S Services
Blackpool Council,1006259,Welsh Joint Education Committee,576059,844504,7/21/2021,964.74,0,EDDIV,Education Diversity,3404,Exam Fees & Exps (Sch),Children'S Services
Blackpool Council,1121655,Hills Fine Foods Ltd,576065,178772,7/26/2021,332.63,55.44,CATERG,Catering Services,3101,Provisions,Community & Env Services
Blackpool Council,1121655,Hills Fine Foods Ltd,576066,178820,7/26/2021,350.86,58.48,CATERG,Catering Services,3101,Provisions,Community & Env Services
Blackpool Council,1093145,On A Roll Sandwich Company,576069,209180,7/20/2021,322.2,0,CATERG,Catering Services,3101,Provisions,Community & Env Services
Blackpool Council,1121655,Hills Fine Foods Ltd,576070,178947,7/26/2021,321.42,53.57,CATERG,Catering Services,3101,Provisions,Community & Env Services
Blackpool Council,1106132,Bridge Education And Training Ltd,576072,8314,7/21/2021,810,135,AEF,Facilities,0791,Temp/Relief (Bureau Staff),Resources
Blackpool Council,1009166,Glasdon Uk Ltd,576074,SI819186,7/20/2021,6095.76,1015.96,SCLEAN,Street Cleaning,3041,Other Materials,Community & Env Services
Blackpool Council,1120588,G2 Recruitment Solutions,576078,84931,7/30/2021,720,120,HJA,Growth,0791,Temp/Relief (Bureau Staff),Places
Blackpool Council,1128706,Nick Johnson,576079,NJ002,7/15/2021,3000,0,CGICAF,G&P Prudential Schemes,6506,Consultants Fees,Capital - Commnctn & Regen
Blackpool Council,1101292,Turley Associates Limited,576080,276668,7/15/2021,8117.77,1352.96,CGICAF,G&P Prudential Schemes,6506,Consultants Fees,Capital - Commnctn & Regen
Blackpool Council,1128541,Tp Bennett Llp,576081,0037255,7/15/2021,5438.4,906.4,CGICAF,G&P Prudential Schemes,6506,Consultants Fees,Capital - Commnctn & Regen
Blackpool Council,1128541,Tp Bennett Llp,576083,0036794,7/15/2021,26754,4459,CGICAF,G&P Prudential Schemes,6506,Consultants Fees,Capital - Commnctn & Regen
Blackpool Council,1128541,Tp Bennett Llp,576084,0037042,7/15/2021,16311.6,2718.6,CGICAF,G&P Prudential Schemes,6506,Consultants Fees,Capital - Commnctn & Regen
Blackpool Council,1101292,Turley Associates Limited,576087,277256,7/15/2021,285,47.5,CGICAF,G&P Prudential Schemes,6506,Consultants Fees,Capital - Commnctn & Regen
Blackpool Council,1101292,Turley Associates Limited,576088,275958,7/15/2021,2793,465.5,CGICAF,G&P Prudential Schemes,6506,Consultants Fees,Capital - Commnctn & Regen
Blackpool Council,1120977,Castle Mile Group Ltd,576089,INV-0569,7/15/2021,1440,240,AEB,Buildings,4004,Management Fees,Resources
Blackpool Council,1120977,Castle Mile Group Ltd,576089,INV-0569,7/15/2021,900,150,AER,Dual Use Properties,4004,Management Fees,Resources
Blackpool Council,1119864,Lorraine Petersen Educational Consultancy,576090,742,7/16/2021,3600,0,CWAN,Children With Additional Needs,3413,Consultants,Children'S Services
Blackpool Council,1120775,Standard Fuel Oils,576144,158426,7/15/2021,28656.02,4776,ZF0001,"Insurance,Dso,Banking",9511A,Stocks Efin,Total Reconciliations
Blackpool Council,1128541,Tp Bennett Llp,576147,0037482,7/30/2021,1360.8,226.8,CGICAF,G&P Prudential Schemes,6506,Consultants Fees,Capital - Commnctn & Regen
Blackpool Council,1021388,Cidari Education Ltd T/A St Georges School,576150,0000000278,7/16/2021,26190,0,EP8011,Covid Winter Grant,3701,Grants,Children'S Services
Blackpool Council,1005071,Blackpool Transport Services Limited,576151,I0003024,7/23/2021,4300.2,0,JEA,Senior Management,5552,Bus Pass / Travel,Children'S Services
Blackpool Council,1121728,Arrow County Supplies,576152,4904619,7/20/2021,321.8,0,ZM0018,Highways & Engineering,9773,Orders Received Not Invoiced,Blackpool Services
Blackpool Council,1121728,Arrow County Supplies,576152,4904619,7/20/2021,386.16,64.36,ZM0018,Highways & Engineering,9511A,Stocks Efin,Blackpool Services
Blackpool Council,1090628,The Furniture Recycling Group,576153,INV26714,7/26/2021,255.42,42.57,CWASTE,Commercial Waste,4501,Private Contractors,Community & Env Services
Blackpool Council,1099746,Fcat T/A Unity Academy,576154,9000000413,7/16/2021,53280,0,EP8011,Covid Winter Grant,3701,Grants,Children'S Services
Blackpool Council,1116850,Fcat T/A Armfield Academy,576155,9500000058,7/16/2021,18810,0,EP8011,Covid Winter Grant,3701,Grants,Children'S Services
Blackpool Council,1011369,Lancashire County Council,576156,5200232706,7/16/2021,293087,0,FR5001,Concessionary Fares,3401,General Services,Budgets Outside Cash Limits
Blackpool Council,1011369,Lancashire County Council,576157,5200232701,7/16/2021,1332,0,FR5001,Concessionary Fares,3401,General Services,Budgets Outside Cash Limits
Blackpool Council,1091773,Highfield Awarding Body For Comp. Ltd,576162,0008127356,7/23/2021,930,155,FK0071,Corporate Training,3426,Course Fees,Chief Executive
Blackpool Council,1123084,Yss Investment Ltd,576163,8,7/21/2021,25200,4200,MPB,Edc - Economic Dev Company,1301,Rent & Hire Of Premises,Places
Blackpool Council,1095404,Ams International,576164,44-28127,7/21/2021,1373.76,228.96,PUBH24,Children'S Public Health,4501,Private Contractors,Public Health
Blackpool Council,1130311,Memorial Benches Uk,576166,63747,7/16/2021,579.89,96.66,EA8201,Parks Green Open Space,3041,Other Materials,Community & Env Services
Blackpool Council,1128565,Calder Training + Consultancy Ltd,576167,833,7/20/2021,2040,340,JA0505,Children'S Training,3426,Course Fees,Children'S Services
Blackpool Council,1106132,Bridge Education And Training Ltd,576169,8312,7/16/2021,588,98,VIRTUL,Virtual Hub,5555,Educational Support,Children'S Services
Blackpool Council,1096150,Norbreck Primary Academy,576170,NPA.FSM010,7/16/2021,9270,0,EP8011,Covid Winter Grant,3701,Grants,Children'S Services
Blackpool Council,1023478,Highfield Leadership Academy,576171,HLSI 340,7/21/2021,22950,0,EP8011,Covid Winter Grant,3701,Grants,Children'S Services
Blackpool Council,1010300,Blacktax Radio Taxis T/A Blackpool Courier,576172,14279,7/16/2021,6111.6,0,APDBBB,Arc,2201,Contract Hire,Adult & Families
Blackpool Council,1010300,Blacktax Radio Taxis T/A Blackpool Courier,576173,14222,7/16/2021,6474.8,0,APDBBB,Arc,2201,Contract Hire,Adult & Families
Blackpool Council,1066795,Jd Training Services,576181,55/21,7/19/2021,590,0,BEACHP,Beach Patrol,3605,Confs & Short Courses,Places
Blackpool Council,1068989,Interproperty Systems Ltd,576182,SI-2426,7/16/2021,456,76,HJA,Growth,3801,Other Expenses,Places
Blackpool Council,1008525,Kingswood Office Supplies Limited,576185,408174,7/22/2021,276,46,ZM0018,Highways & Engineering,9511A,Stocks Efin,Blackpool Services
Blackpool Council,1011896,Capita Business Services Ltd,576193,6004071933,7/16/2021,898.56,149.76,FBBEA,"Income, Recovery & Debtors",3533,Computer S/W Purchases,Resources
Blackpool Council,1011896,Capita Business Services Ltd,576194,6004071932,7/16/2021,898.56,149.76,FBBEA,"Income, Recovery & Debtors",3533,Computer S/W Purchases,Resources
Blackpool Council,1098193,Westminster Primary Academy,576247,6000000088,7/16/2021,26820,0,EP8011,Covid Winter Grant,3701,Grants,Children'S Services
Blackpool Council,1114704,Morson Human Resources Ltd,576248,HS356194,7/21/2021,2310,385,CTAHHI,Tramway Extention,6506,Consultants Fees,Capital - Commnctn & Regen
Blackpool Council,1028228,Danfo (Uk) Ltd,576249,0000005774,7/16/2021,48720,8120,PUBCON,Public Conveniences,4501,Private Contractors,Community & Env Services
Blackpool Council,1010667,Argos Business Solutions Ltd,576250,01939835,7/23/2021,1487.46,247.91,FC1802,Social Fund - Client,5210,Community Care Support,Resources
Blackpool Council,1063803,Global Media Group Services Ltd,576251,0000401271,7/16/2021,1440,240,PBF,Communications,3806,Advertising-General,Places
Blackpool Council,1107224,Smith Craven Chartered Accountants,576253,43196,7/16/2021,4986,831,BCA,Corp And Member Services,6101,Audit Fees,Governance & Partnerships
Blackpool Council,1053592,Tfs Training Consultants Ltd,576254,333,7/23/2021,660,110,FK0071,Corporate Training,3426,Course Fees,Chief Executive
Blackpool Council,1102319,Langdale Free School,576256,SMV005,7/23/2021,2430,0,EP8011,Covid Winter Grant,3701,Grants,Children'S Services
Blackpool Council,1071918,St Cuthberts Catholic Academy,576257,0000000086,7/16/2021,9720,0,EP8011,Covid Winter Grant,3701,Grants,Children'S Services
Blackpool Council,1123350,Head Uk Ltd T/A Mares S P A (Zoggs),576258,I-0585228,7/20/2021,1677.3,231.85,LEISUR,Leisure Management,3048,Cost Of Goods Sold,Community & Env Services
Blackpool Council,1013418,Ma Education Ltd,576260,MAE 5070200,7/21/2021,3399.6,566.6,PBF,Communications,0921,Advertising (Staff Vac.),Places
Blackpool Council,1123350,Head Uk Ltd T/A Mares S P A (Zoggs),576261,I-0592540,7/20/2021,885.6,147.6,LEISUR,Leisure Management,3048,Cost Of Goods Sold,Community & Env Services
Blackpool Council,1035614,Bright Futures Educational Trust - Marton,576269,MASI 15,7/16/2021,11250,0,EP8011,Covid Winter Grant,3701,Grants,Children'S Services
Blackpool Council,1107224,Smith Craven Chartered Accountants,576270,43200,7/19/2021,1692,282,BCA,Corp And Member Services,6101,Audit Fees,Governance & Partnerships
Blackpool Council,1107224,Smith Craven Chartered Accountants,576270,43200,7/19/2021,390,65,DOMPFI,Domestic Waste & Waste Pfi,3801,Other Expenses,Community & Env Services
Blackpool Council,1128398,Tg Building Services,576273,09/126,7/19/2021,1824,304,HJA,Growth,2002,Repairs And Maintenance,Places
Blackpool Council,1006232,Smith Of Derby Ltd,576275,0000119348,7/23/2021,253.2,42.2,LEISUR,Leisure Management,3801,Other Expenses,Community & Env Services
Blackpool Council,1119933,Mitchell Bailey T/A Pda Technical,576276,312,7/21/2021,960,0,PJHA,"Depot, Management & Admin",3308,Servicing,Places
Blackpool Council,1123126,Matt Haylett T/A Mh Lighting,576277,249,7/22/2021,750,0,PJHA,"Depot, Management & Admin",3308,Servicing,Places
Blackpool Council,1082399,M C Pinington,576278,212201,7/19/2021,400,0,MUSIC,Music & Cultural Education,3308,Servicing,Children'S Services
Blackpool Council,1119587,Highway Workforce Ltd,576287,HWF 2021-151,7/19/2021,8168.04,1361.34,CTABZA,Ltp Scheme 20/21,6501,Contract Payments,Capital - Commnctn & Regen
Blackpool Council,1119587,Highway Workforce Ltd,576288,HWF 2021-176,7/19/2021,17855.2,2975.88,CTABZA,Ltp Scheme 20/21,6501,Contract Payments,Capital - Commnctn & Regen
Blackpool Council,1107499,Joe Gilmore T/A Qubik Design,576291,1154,7/29/2021,500,0,AHG,Art Gallery Summary,3456,Payment To Artists,Places
Blackpool Council,1011923,Rp Tyson Construction Ltd,576301,IN3262,7/16/2021,520924.34,0,CXC11,Site Development,6501,Contract Payments,Capital - Chief Executive
Blackpool Council,1011923,Rp Tyson Construction Ltd,576301,IN3262,7/16/2021,2380.12,0,ZH0001,Housing Revenue Account,97A6,Retention Monies - Capital,Housing Revenue Account
Blackpool Council,1106177,Herts For Learning (Modern Governor),576303,IN50080430,7/19/2021,3328.2,554.7,ER3499,Governors' Services,3711,Subscriptions,Governance & Partnerships
Blackpool Council,1088121,Candy House,576305,BMP006,7/23/2021,600,0,AHHBA,Blackpool Museum,3801,Other Expenses,Places
Blackpool Council,1111134,Jean Martin,576306,18,7/23/2021,3575,0,MNGMT,Central Management,3413,Consultants,Children'S Services
Blackpool Council,1099749,Devonshire Primary Academy,576307,DEV243,7/26/2021,23760,0,EP8011,Covid Winter Grant,3701,Grants,Children'S Services
Blackpool Council,1010386,Montgomery Academy,576308,3000000189,7/22/2021,34470,0,EP8011,Covid Winter Grant,3701,Grants,Children'S Services
Blackpool Council,1010386,Montgomery Academy,576309,3000000186,7/19/2021,8938,0,OPAREA,Opportunity Areas,4515,Contract Services,Places
Blackpool Council,1101124,Bright Futures Educational Trust - Ssa,576310,SSSI 35,7/19/2021,8938,0,OPAREA,Opportunity Areas,4515,Contract Services,Places
Blackpool Council,1009755,D Kirkham,576311,032,7/22/2021,1840,0,TRCHIL,Integrated Transport Children,2201,Contract Hire,Community & Env Services
Blackpool Council,1103450,Blackpool Entertainment Company Limited,576312,INV005491,7/21/2021,1040,173.33,FMAK,Acquisitions 9/10,1301,Rent & Hire Of Premises,Places
Blackpool Council,1008947,Iccm,576332,13665,7/30/2021,450,75,CEMCRE,Cems Crems Etc,3605,Confs & Short Courses,Governance & Partnerships
Blackpool Council,1005071,Blackpool Transport Services Limited,576333,I0003031,7/26/2021,1349.2,0,OTHL,Other Learning,2201,Contract Hire,Children'S Services
Blackpool Council,1091532,Westcliff Primary (Fylde Coast Academy Trust),576336,4000000137,7/19/2021,3420,0,EP8011,Covid Winter Grant,3701,Grants,Children'S Services
Blackpool Council,1099546,Park Community Academy,576337,PCA1607212,7/19/2021,16110,0,EP8011,Covid Winter Grant,3701,Grants,Children'S Services
Blackpool Council,1118699,Enveco Blackpool Waste Services Ltd,576410,30160500,7/19/2021,646917.6,107819.6,DOMPFI,Domestic Waste & Waste Pfi,4501,Private Contractors,Community & Env Services
Blackpool Council,1031656,Wigan Council,576411,71275691802,7/19/2021,3654,609,FK1003,Hr Systems & Info,0917,Other Exps,Chief Executive
Blackpool Council,1112303,Access-Able (Uk) Limited (Fac001),576415,4533,7/28/2021,2953.8,0,CX4002,Disabled Facilities Grants,6501,Contract Payments,Capital - Adult Social Care
Blackpool Council,1081205,The Excellent Ramp System Ltd,576416,3206,7/28/2021,2300,0,CX4002,Disabled Facilities Grants,6501,Contract Payments,Capital - Adult Social Care
Blackpool Council,1098651,Direct Parts Supply Ltd T/A Gym-Fit,576417,42813,7/19/2021,276,46,LEISUR,Leisure Management,3003,Equipt-Mtce Repairs,Community & Env Services
Blackpool Council,1040364,Conlon Construction Ltd,576418,10980,7/19/2021,123470.81,20578.47,CS01DH,A P S Capital Works,6501,Contract Payments,Capital - Adult Social Care
Blackpool Council,1040364,Conlon Construction Ltd,576418,10980,7/19/2021,3182.24,0,ZF0001,"Insurance,Dso,Banking",97B6,Retention Monies - Cap Trsfr,Total Reconciliations
Blackpool Council,1113243,Mclaughlin & Harvey Ltd,576419,23824,7/19/2021,1628849.33,271474.89,CGTBBB,Conference Centre,6501,Contract Payments,Capital - Commnctn & Regen
Blackpool Council,1113243,Mclaughlin & Harvey Ltd,576419,23824,7/19/2021,41980.65,0,ZF0001,"Insurance,Dso,Banking",97B6,Retention Monies - Cap Trsfr,Total Reconciliations
Blackpool Council,1118699,Enveco Blackpool Waste Services Ltd,576424,30160501,7/20/2021,646917.6,107819.6,DOMPFI,Domestic Waste & Waste Pfi,4501,Private Contractors,Community & Env Services
Blackpool Council,1098897,Mike Kidd Horse Power Ltd,576425,1064,7/30/2021,2460,0,EDDIV,Education Diversity,4101,Other Local Authorities,Children'S Services
Blackpool Council,1095986,Hawes Side Academy,576427,HSAI0068,7/20/2021,16920,0,EP8011,Covid Winter Grant,3701,Grants,Children'S Services
Blackpool Council,1009234,Gary Roy Kirkham,576428,GK 57,7/22/2021,552,0,TRCHIL,Integrated Transport Children,2201,Contract Hire,Community & Env Services
Blackpool Council,1126236,New Concept Security Ltd,576429,15940,7/21/2021,23585,3930.85,SECURE,Security Services,1012,Premises Maint-Priv.Contractor,Community & Env Services
Blackpool Council,1126236,New Concept Security Ltd,576430,15943,7/21/2021,26032.98,4338.84,SECURE,Security Services,1012,Premises Maint-Priv.Contractor,Community & Env Services
Blackpool Council,1126236,New Concept Security Ltd,576431,15934,7/21/2021,23699.72,3949.96,SECURE,Security Services,1012,Premises Maint-Priv.Contractor,Community & Env Services
Blackpool Council,1126236,New Concept Security Ltd,576432,15937,7/21/2021,24900.76,4150.13,SECURE,Security Services,1012,Premises Maint-Priv.Contractor,Community & Env Services
Blackpool Council,1081356,Friends Of Stanley Park,576469,2021/3,7/21/2021,2000,0,DIRCTR,Directorate,3801,Other Expenses,Community & Env Services
Blackpool Council,1011369,Lancashire County Council,576470,5200233116,7/21/2021,1420,0,FR5001,Concessionary Fares,3401,General Services,Budgets Outside Cash Limits
Blackpool Council,1011369,Lancashire County Council,576471,5200233118,7/21/2021,293087,0,FR5001,Concessionary Fares,3401,General Services,Budgets Outside Cash Limits
Blackpool Council,1123419,Champion Education Trust,576474,LOTSO209,7/20/2021,1440,0,EP8011,Covid Winter Grant,3701,Grants,Children'S Services
Blackpool Council,1008175,Manns Music,576490,182103,7/29/2021,917.05,152.85,MUSIC,Music & Cultural Education,3008,Educational Equipment,Children'S Services
Blackpool Council,1009234,Gary Roy Kirkham,576491,GK 58,7/22/2021,700,0,TRCHIL,Integrated Transport Children,2201,Contract Hire,Community & Env Services
Blackpool Council,1096714,Computer Futures,576492,01008001025984,7/20/2021,49560,8260,FGAA,Ict Corporate Services,0791,Temp/Relief (Bureau Staff),Resources
Blackpool Council,1121150,Multipave (Nw) Ltd,576494,05870,7/23/2021,238908.79,39818.13,CTACBA,Ltp Scheme 21/22,6501,Contract Payments,Capital - Commnctn & Regen
Blackpool Council,1026319,Nominet.Uk,576496,0000002341,7/22/2021,919.13,153.19,FGAA,Ict Corporate Services,3527,Communication Lines,Resources
Blackpool Council,1044905,Eric Wright Construction Ltd,576500,CNCSI00059,7/20/2021,416049.72,69341.62,CGICAD,Enterprise Zone,6501,Contract Payments,Capital - Commnctn & Regen
Blackpool Council,1044905,Eric Wright Construction Ltd,576500,CNCSI00059,7/20/2021,10722.94,0,ZF0001,"Insurance,Dso,Banking",97B6,Retention Monies - Cap Trsfr,Total Reconciliations
Blackpool Council,1019622,Stephen  Floweth,576501,HT0086,7/22/2021,792,0,TRCHIL,Integrated Transport Children,2201,Contract Hire,Community & Env Services
Blackpool Council,1120775,Standard Fuel Oils,576503,159945,7/22/2021,28543.97,4757.33,ZF0001,"Insurance,Dso,Banking",9511A,Stocks Efin,Total Reconciliations
Blackpool Council,1055691,Norbain Sd Ltd,576536,I3036928,7/29/2021,288,48,CCTV,Cctv,3012,Other Equipment,Community & Env Services
Blackpool Council,1053592,Tfs Training Consultants Ltd,576539,336,7/29/2021,660,110,FK0071,Corporate Training,3426,Course Fees,Chief Executive
Blackpool Council,1051299,Leisure Travel,576541,INV00644,7/28/2021,1200,0,TRCHIL,Integrated Transport Children,2201,Contract Hire,Community & Env Services
Blackpool Council,1051299,Leisure Travel,576542,INV00645,7/22/2021,1200,0,TRCHIL,Integrated Transport Children,2201,Contract Hire,Community & Env Services
Blackpool Council,1051299,Leisure Travel,576543,INV00646,7/22/2021,1200,0,TRCHIL,Integrated Transport Children,2201,Contract Hire,Community & Env Services
Blackpool Council,1051299,Leisure Travel,576544,INV00647,7/22/2021,816,0,TRCHIL,Integrated Transport Children,2201,Contract Hire,Community & Env Services
Blackpool Council,1063755,Park Retail Ltd,576545,30280279,7/22/2021,500,0,PU2051,Ph Pcc Funding,4501,Private Contractors,Public Health
Blackpool Council,1010138,C Cabs,576546,07403,7/21/2021,2628.6,0,EDDIV,Education Diversity,2201,Contract Hire,Children'S Services
Blackpool Council,1010138,C Cabs,576547,07404,7/21/2021,1922.9,0,EDDIV,Education Diversity,2201,Contract Hire,Children'S Services
Blackpool Council,1122971,Mint Commercial And Healthcare Ltd (Fac087),576548,10432,7/30/2021,5111.7,851.95,EDDIV,Education Diversity,1607,Rechg Cleaning Dso,Children'S Services
Blackpool Council,1123419,Champion Education Trust,576551,LOTSO2010,7/21/2021,2000,0,MNGMT,Central Management,6273,Miscellaneous,Children'S Services
Blackpool Council,1012096,St Mary'S Catholic Academy,576552,0000000424,7/21/2021,22050,0,EP8011,Covid Winter Grant,3701,Grants,Children'S Services
Blackpool Council,1010372,Christ The King Catholic Academy,576553,0000000088,7/21/2021,9000,0,EP8011,Covid Winter Grant,3701,Grants,Children'S Services
Blackpool Council,1099703,Anchorsholme Academy,576554,AA021FSM-MAY/SUMMERHOLIDAYS-21,7/21/2021,9990,0,EP8011,Covid Winter Grant,3701,Grants,Children'S Services
Blackpool Council,1070036,Gaist Solutions Ltd,576559,11131,7/21/2021,23617.44,3936.24,CTACBA,Ltp Scheme 21/22,6501,Contract Payments,Capital - Commnctn & Regen
Blackpool Council,1099449,Uk Training (Worldwide) Limited,576561,15561/89816,7/21/2021,789.6,131.6,BEA,Democratic Services & Admin,0911,Training Expenses,Governance & Partnerships
Blackpool Council,1026181,Blackpool Sixth Form College,576565,5101020,7/21/2021,7920,0,EP8011,Covid Winter Grant,3701,Grants,Children'S Services
Blackpool Council,1030804,Adventure Incubator,576567,OAG 2021/3,7/29/2021,1000,0,LNOUCL,Learning Outside The Classroom,6273,Miscellaneous,Children'S Services
Blackpool Council,1038738,Layton Primary School,576569,21-008,7/22/2021,25920,0,EP8011,Covid Winter Grant,3701,Grants,Children'S Services
Blackpool Council,1013064,Tarmac Lafarge Trading Limited,576592,9043754922,7/28/2021,292.38,48.73,ENGINE,Engineering,3041,Other Materials,Community & Env Services
Blackpool Council,1110775,Darbyshires Appliances Ltd,576597,059541,7/29/2021,360,60,JEA,Senior Management,5507,Personal,Children'S Services
Blackpool Council,1110775,Darbyshires Appliances Ltd,576598,059542,7/29/2021,319.99,53.33,JEA,Senior Management,5507,Personal,Children'S Services
Blackpool Council,1087953,Blackpool Local Education Partnership Ltd,576648,PBSIP000004,7/23/2021,267594.54,44599.09,CGICAF,G&P Prudential Schemes,6501,Contract Payments,Capital - Commnctn & Regen
Blackpool Council,1027465,Ove Arup & Partners Limited,576649,88-2100789,7/28/2021,19407.13,3234.52,FMAK,Acquisitions 9/10,2002,Repairs And Maintenance,Places
Blackpool Council,1027465,Ove Arup & Partners Limited,576650,1079216,7/28/2021,8336.18,1389.36,FMAK,Acquisitions 9/10,2002,Repairs And Maintenance,Places
Blackpool Council,1090804,Getty Images (Uk) Limited,576651,1882775,7/22/2021,1542.24,257.04,PBF,Communications,3817,Artwork,Places
Blackpool Council,1028228,Danfo (Uk) Ltd,576658,0000005825,7/22/2021,48744,8124,PUBCON,Public Conveniences,4501,Private Contractors,Community & Env Services
Blackpool Council,1008404,Lawguide Ltd,576661,A/74 & 75/7/197,7/22/2021,346.5,0,PYTA,Trading Standards,0917,Other Exps,Community & Env Services
Blackpool Council,1111234,Cbre Ltd,576665,50BCD00077393,7/30/2021,4800,800,CGICAF,G&P Prudential Schemes,6506,Consultants Fees,Capital - Commnctn & Regen
Blackpool Council,1026738,Cassidy + Ashton,576666,18327,7/23/2021,3000,500,CGICAD,Enterprise Zone,6506,Consultants Fees,Capital - Commnctn & Regen
Blackpool Council,1111234,Cbre Ltd,576667,50BCD00077394,7/30/2021,12510,2085,CGICAF,G&P Prudential Schemes,6506,Consultants Fees,Capital - Commnctn & Regen
Blackpool Council,1130468,Hibernia College Uk T/A Tes Institute,576668,INVHIB000112215,7/23/2021,1500,250,EDDIV,Education Diversity,3606,Incidental Expenses,Children'S Services
Blackpool Council,1121150,Multipave (Nw) Ltd,576669,05868,7/22/2021,237790.97,39631.83,CTACBA,Ltp Scheme 21/22,6501,Contract Payments,Capital - Commnctn & Regen
Blackpool Council,1011369,Lancashire County Council,576671,5200233045,7/22/2021,672.92,112.15,FK1006,Head Of Workforce & Org Dev,6214,Legal Services,Chief Executive
Blackpool Council,1010027,Saint-Gobain Ltd T/A Chadwicks,576679,0963/00192301,7/30/2021,855.6,142.6,AHG,Art Gallery Summary,3041,Other Materials,Places
Blackpool Council,1116610,Smart Video & Sensing Limited,576687,101154,7/30/2021,5526,921,CTABYA,Ltp Scheme 19/20,6501,Contract Payments,Capital - Commnctn & Regen
Blackpool Council,1005071,Blackpool Transport Services Limited,576688,I0003032,7/26/2021,310,0,PVA,Other External Funding,2301,Bus & Tram Fares,Places
Blackpool Council,1011970,A1 Streamline Road Markings Ltd,576689,6768,7/23/2021,3842.26,640.37,ENGINE,Engineering,1012,Premises Maint-Priv.Contractor,Community & Env Services
Blackpool Council,1069573,A Rostron T/A Blackpool Bed Centre,576690,080721-1,7/29/2021,270,45,JEA,Senior Management,4812,Initial Loan Equipment,Children'S Services
Blackpool Council,1102328,Revoe Learning Academy,576699,RLA0103,7/23/2021,22011,0,EP8011,Covid Winter Grant,3701,Grants,Children'S Services
Blackpool Council,1094002,Waterloo Primary Academy,576700,WPSI 64,7/23/2021,30150,0,EP8011,Covid Winter Grant,3701,Grants,Children'S Services
Blackpool Council,1094424,The Networking People,576701,SI109663,7/30/2021,738.24,123.04,TSICT,Transforming Schools Ict,3527,Communication Lines,Resources
Blackpool Council,1008540,Konica Minolta Business (Uk) Ltd,576705,1156496636,7/23/2021,281.81,46.97,FGBA,Specific (Directorate)-Service,3305,Photocopying Charges,Resources
Blackpool Council,1008540,Konica Minolta Business (Uk) Ltd,576706,1156266355,7/23/2021,1384.44,230.74,FGBA,Specific (Directorate)-Service,3305,Photocopying Charges,Resources
Blackpool Council,1008540,Konica Minolta Business (Uk) Ltd,576707,1156211814,7/23/2021,563.04,93.84,FGBA,Specific (Directorate)-Service,3305,Photocopying Charges,Resources
Blackpool Council,1008540,Konica Minolta Business (Uk) Ltd,576708,1156211816,7/23/2021,1659.06,276.51,FGBA,Specific (Directorate)-Service,3305,Photocopying Charges,Resources
Blackpool Council,1008540,Konica Minolta Business (Uk) Ltd,576711,1156432630,7/23/2021,281.52,46.92,FGBA,Specific (Directorate)-Service,3305,Photocopying Charges,Resources
Blackpool Council,1004960,Renaissance Uk Limited,576712,1321,7/28/2021,3660,0,PU2051,Ph Pcc Funding,4501,Private Contractors,Public Health
Blackpool Council,1062367,Jill Reidy T/A Red Snapper Photography,576713,BL0001,7/30/2021,264,0,LBF,Library Management,3822,Photography,Places
Blackpool Council,1010667,Argos Business Solutions Ltd,576766,01941161,7/30/2021,1769.1,294.85,FC1802,Social Fund - Client,5210,Community Care Support,Resources
Blackpool Council,1049304,Insight Direct (Uk) Ltd,576772,5332844,7/23/2021,1049.57,174.93,FGAB,Ict E-Government,3532,Comp-Running & License Costs,Resources
Blackpool Council,1006644,Telewest/Virgin Media Payments Ltd,576774,067437901506,7/23/2021,3257.74,542.95,FGAA,Ict Corporate Services,3521,Landline - Line Rental,Resources
Blackpool Council,1006644,Telewest/Virgin Media Payments Ltd,576775,078850001547,7/23/2021,314.4,52.4,FGAA,Ict Corporate Services,3521,Landline - Line Rental,Resources
Blackpool Council,1006644,Telewest/Virgin Media Payments Ltd,576777,081127901504,7/23/2021,612,102,FGAA,Ict Corporate Services,3521,Landline - Line Rental,Resources
Blackpool Council,1111336,Worldbeaters Ltd,576780,2528,7/23/2021,1995,332.5,PJW,Management - Places - Illumina,3401,General Services,Places
Blackpool Council,1128374,Tower Cinema (Blackpool) Ltd,576782,INV-0002,7/23/2021,57495,0,CGICAF,G&P Prudential Schemes,6501,Contract Payments,Capital - Commnctn & Regen
Blackpool Council,1006644,Telewest/Virgin Media Payments Ltd,576785,078850001547,7/23/2021,314.4,52.4,FGAA,Ict Corporate Services,3521,Landline - Line Rental,Resources
Blackpool Council,1006644,Telewest/Virgin Media Payments Ltd,576786,081127901504,7/23/2021,612,102,FGAA,Ict Corporate Services,3521,Landline - Line Rental,Resources
Blackpool Council,1035017,Newauto Ltd T/A Mogo Uk,576789,T31519,7/27/2021,1098,183,PYLA,Licencing,3041,Other Materials,Community & Env Services
Blackpool Council,1113286,Astutis Limited,576790,0000038155,7/23/2021,3714,619,CORDEV,Corporate Delivery Unit,3426,Course Fees,Chief Executive
Blackpool Council,1117002,Redraw Travel Ltd T/A Blackpool Minibuses,576797,INV10473,7/28/2021,780,0,TRCHIL,Integrated Transport Children,2201,Contract Hire,Community & Env Services
Blackpool Council,1117002,Redraw Travel Ltd T/A Blackpool Minibuses,576798,INV10485,7/28/2021,1080,0,TRCHIL,Integrated Transport Children,2201,Contract Hire,Community & Env Services
Blackpool Council,1117002,Redraw Travel Ltd T/A Blackpool Minibuses,576799,INV10497,7/28/2021,1080,0,TRCHIL,Integrated Transport Children,2201,Contract Hire,Community & Env Services
Blackpool Council,1117002,Redraw Travel Ltd T/A Blackpool Minibuses,576800,INV10510,7/28/2021,1080,0,TRCHIL,Integrated Transport Children,2201,Contract Hire,Community & Env Services
Blackpool Council,1117002,Redraw Travel Ltd T/A Blackpool Minibuses,576801,INV10522,7/28/2021,1080,0,TRCHIL,Integrated Transport Children,2201,Contract Hire,Community & Env Services
Blackpool Council,1117002,Redraw Travel Ltd T/A Blackpool Minibuses,576802,INV10535,7/28/2021,1440,240,TRCHIL,Integrated Transport Children,2201,Contract Hire,Community & Env Services
Blackpool Council,1127962,John Graham Construction Limited,576804,914817,7/23/2021,409099.01,68183.17,CGICAF,G&P Prudential Schemes,6501,Contract Payments,Capital - Commnctn & Regen
Blackpool Council,1123279,REDACTED PERSONAL DATA,576805,4 KING STREET,7/23/2021,10000,0,CGICAF,G&P Prudential Schemes,6519,Land / Premises - Purch Money,Capital - Commnctn & Regen
Blackpool Council,1010353,Blackpool Football Club Ltd,576806,INV-0612,7/23/2021,120000,20000,PRB,Events,3401,General Services,Places
Blackpool Council,1010353,Blackpool Football Club Ltd,576807,INV-0613,7/23/2021,48000,8000,PPA,Head Of Tourism Services,3816,Sponsorship,Places
Blackpool Council,1101766,Cjgriffiths Photography,576811,GRUNFILJUN,7/30/2021,350,0,AHG,Art Gallery Summary,3456,Payment To Artists,Places
Blackpool Council,1114704,Morson Human Resources Ltd,576812,HS357619,7/28/2021,2310,385,CTAHHI,Tramway Extention,6506,Consultants Fees,Capital - Commnctn & Regen
Blackpool Council,1130655,Personal Safety Trainers,576815,1024,7/23/2021,345,0,JA0505,Children'S Training,3426,Course Fees,Children'S Services
Blackpool Council,1114036,Odlings Ltd T/A The Columbaria Co,576818,INV0078246,7/26/2021,553.2,92.2,CEMCRE,Cems Crems Etc,3454,Remove And Refix Memorials,Governance & Partnerships
Blackpool Council,1007987,Millercare Limited,576819,0000074106,7/30/2021,1899.95,0,APCBAA,Coopers Way,0917,Other Exps,Adult & Families
Blackpool Council,1030119,Generation (Uk) Ltd,576823,H2491228,7/30/2021,2704.13,450.69,PJAA,"Erection, Operation & Dismantl",3006,Hire Of Equipment,Places
Blackpool Council,1123126,Matt Haylett T/A Mh Lighting,576824,250,7/30/2021,750,0,PJHA,"Depot, Management & Admin",3308,Servicing,Places
Blackpool Council,1119933,Mitchell Bailey T/A Pda Technical,576825,313,7/26/2021,480,0,PJHA,"Depot, Management & Admin",3308,Servicing,Places
Blackpool Council,1041733,Dhl International (Uk) Ltd,576827,AVI8636758,7/29/2021,468.96,0,PJLA,Maintenance,3511,Postages,Places
Blackpool Council,1099469,Fylde Coast Academy Trust,576829,5000000070,7/26/2021,21600,0,EP8011,Covid Winter Grant,3701,Grants,Children'S Services
Blackpool Council,1106132,Bridge Education And Training Ltd,576830,8414,7/30/2021,810,135,AEF,Facilities,0791,Temp/Relief (Bureau Staff),Resources
Blackpool Council,1055691,Norbain Sd Ltd,576845,I3038173,7/30/2021,2872.31,478.72,CCTV,Cctv,3012,Other Equipment,Community & Env Services
Blackpool Council,1091050,Howard Palmer T/A Trojan Travel,576846,032,7/30/2021,1600,0,TRCHIL,Integrated Transport Children,2201,Contract Hire,Community & Env Services
Blackpool Council,1017722,Terrys Cut Price Carpets Ltd,576848,1411,7/27/2021,588,98,FC1802,Social Fund - Client,5507,Personal,Resources
Blackpool Council,1017722,Terrys Cut Price Carpets Ltd,576849,1409,7/27/2021,418.8,69.8,FC1802,Social Fund - Client,5210,Community Care Support,Resources
Blackpool Council,1017722,Terrys Cut Price Carpets Ltd,576850,1412,7/27/2021,252,42,FC1802,Social Fund - Client,5507,Personal,Resources
Blackpool Council,1017722,Terrys Cut Price Carpets Ltd,576851,1413,7/27/2021,622.8,103.8,FC1802,Social Fund - Client,5507,Personal,Resources
Blackpool Council,1110576,De Pol Associates Ltd,576852,1886/21-045,7/28/2021,3600,600,CGIBAA,Land Release Fund,6506,Consultants Fees,Capital - Commnctn & Regen
Blackpool Council,1006644,Telewest/Virgin Media Payments Ltd,576854,067437901506,7/26/2021,3238.25,539.7,FGAA,Ict Corporate Services,3521,Landline - Line Rental,Resources
Blackpool Council,1066073,Blackpool Coastal Housing,576927,30001976,7/26/2021,1039.92,173.32,CX4030,Psh - Foxhall Redev Tylde/Rigb,6501,Contract Payments,Capital - Chief Executive
Blackpool Council,1102943,Titanium Fireworks Ltd,576930,2289,7/28/2021,36000,6000,PRB,Events,3401,General Services,Places
Blackpool Council,1017722,Terrys Cut Price Carpets Ltd,576931,1408,7/30/2021,660,110,FC1802,Social Fund - Client,5210,Community Care Support,Resources
Blackpool Council,1011952,Empowerment,576936,1500,7/26/2021,5000,0,PU2068,Mental Health Grant,4501,Private Contractors,Public Health
Blackpool Council,1114036,Odlings Ltd T/A The Columbaria Co,576937,INV0078307,7/28/2021,553.2,92.2,CEMCRE,Cems Crems Etc,3454,Remove And Refix Memorials,Governance & Partnerships
Blackpool Council,1096596,Highfield Pfi Spv Ltd,576939,PHSIP000010,7/26/2021,393132.22,65522.04,EM1029,Highfield Pfi,4515,Contract Services,Children'S Services
Blackpool Council,1096596,Highfield Pfi Spv Ltd,576939,PHSIP000010,7/26/2021,10131.06,1688.51,EM1029,Highfield Pfi,1202,Electricity,Children'S Services
Blackpool Council,1121383,Sh:24 Cic,576940,INVQ22021-000003,7/30/2021,333.64,0,PUBH02,Sexual Health Services-Contrac,4501,Private Contractors,Public Health
Blackpool Council,1009755,D Kirkham,576945,033,7/28/2021,1840,0,TRCHIL,Integrated Transport Children,2201,Contract Hire,Community & Env Services
Blackpool Council,1126236,New Concept Security Ltd,576946,15946,7/28/2021,27555.32,4592.56,SECURE,Security Services,1012,Premises Maint-Priv.Contractor,Community & Env Services
Blackpool Council,1102823,Wilde Consultants Limited,576979,21040,7/27/2021,3330,555,TRA,Traffic Management,4501,Private Contractors,Community & Env Services
Blackpool Council,1102823,Wilde Consultants Limited,576981,21097,7/27/2021,1389.98,231.66,CTZZZZ,Non Specific Contingency Code,6501,Contract Payments,Capital - Comm & Environ
Blackpool Council,1102823,Wilde Consultants Limited,576982,21096,7/27/2021,4157.7,692.95,TRA,Traffic Management,4501,Private Contractors,Community & Env Services
Blackpool Council,1130307,Cool Milk At School Ltd,576985,CMS0385043,7/29/2021,36113.04,0,SCHBRK,Free School Breakfasts,3107,Milk For Drinking,Community & Env Services
Blackpool Council,1053198,Robinson Mitchell Ltd  (Refbla044),576997,0000117527,7/29/2021,403.2,67.2,SCLEAN,Street Cleaning,4501,Private Contractors,Community & Env Services
Blackpool Council,1053198,Robinson Mitchell Ltd  (Refbla044),576998,0000126163,7/29/2021,324,54,SCLEAN,Street Cleaning,4501,Private Contractors,Community & Env Services
Blackpool Council,1119587,Highway Workforce Ltd,577000,HWF 2021-178,7/28/2021,10084.78,1680.8,CTABZA,Ltp Scheme 20/21,6501,Contract Payments,Capital - Commnctn & Regen
Blackpool Council,1070036,Gaist Solutions Ltd,577004,11140,7/27/2021,15744.96,2624.16,CTACBA,Ltp Scheme 21/22,6501,Contract Payments,Capital - Commnctn & Regen
Blackpool Council,1011369,Lancashire County Council,577027,5200233157,7/28/2021,1509121,0,DOMPFI,Domestic Waste & Waste Pfi,4513,Contract 'A',Community & Env Services
Blackpool Council,1011837,Cemex Uk Materials Ltd,577034,3012954871,7/30/2021,1300.78,216.8,ENGINE,Engineering,3041,Other Materials,Community & Env Services
Blackpool Council,1011714,Michael Hope Haulage Limited,577040,001536,7/29/2021,1836,306,SCHEME,Highways Schemes,1012,Premises Maint-Priv.Contractor,Community & Env Services
Blackpool Council,1011714,Michael Hope Haulage Limited,577041,001533,7/29/2021,1728,288,SCHEME,Highways Schemes,1012,Premises Maint-Priv.Contractor,Community & Env Services
Blackpool Council,1011714,Michael Hope Haulage Limited,577042,001534,7/29/2021,1728,288,SCHEME,Highways Schemes,1012,Premises Maint-Priv.Contractor,Community & Env Services
Blackpool Council,1018184,Blackpool Skip Hire Ltd,577043,032398,7/28/2021,360,60,SCHEME,Highways Schemes,1012,Premises Maint-Priv.Contractor,Community & Env Services
Blackpool Council,1127787,Ndds Ltd (Fac087),577045,INV-3352,7/30/2021,3168,528,SCHEME,Highways Schemes,1012,Premises Maint-Priv.Contractor,Community & Env Services
Blackpool Council,1011369,Lancashire County Council,577049,5200233144,7/28/2021,1574221,0,DOMPFI,Domestic Waste & Waste Pfi,4513,Contract 'A',Community & Env Services
Blackpool Council,1011675,Bambers Remedial Contractors Limited,577051,17080,7/28/2021,5055.28,0,CX4002,Disabled Facilities Grants,6501,Contract Payments,Capital - Adult Social Care
Blackpool Council,1117705,Rhea Projects Ltd,577055,RP-1375,7/28/2021,7800,1300,LH2078,Energy Efficiency C1 Scheme,4501,Private Contractors,Public Health
Blackpool Council,1097689,Adferiad Recovery,577069,INV00939,7/30/2021,1617,0,PU1016,Universal Grant Funding,4501,Private Contractors,Public Health
Blackpool Council,1012071,Bethell Construction Limited,577075,17336,7/30/2021,2283.7,380.62,ENGINE,Engineering,1012,Premises Maint-Priv.Contractor,Community & Env Services
Blackpool Council,1012071,Bethell Construction Limited,577076,17337,7/30/2021,29729.92,4954.99,ENGINE,Engineering,1012,Premises Maint-Priv.Contractor,Community & Env Services
Blackpool Council,1012071,Bethell Construction Limited,577077,17333,7/30/2021,2755.96,459.33,ENGINE,Engineering,1012,Premises Maint-Priv.Contractor,Community & Env Services
Blackpool Council,1012071,Bethell Construction Limited,577078,17334,7/30/2021,1988.88,331.48,ENGINE,Engineering,1012,Premises Maint-Priv.Contractor,Community & Env Services
Blackpool Council,1012071,Bethell Construction Limited,577079,17331,7/30/2021,1146.7,191.12,ENGINE,Engineering,1012,Premises Maint-Priv.Contractor,Community & Env Services
Blackpool Council,1012071,Bethell Construction Limited,577080,17332,7/30/2021,2063.28,343.88,ENGINE,Engineering,1012,Premises Maint-Priv.Contractor,Community & Env Services
Blackpool Council,1012071,Bethell Construction Limited,577081,17329,7/30/2021,2151.53,358.59,ENGINE,Engineering,1012,Premises Maint-Priv.Contractor,Community & Env Services
Blackpool Council,1012071,Bethell Construction Limited,577082,17330,7/30/2021,2014.49,335.75,ENGINE,Engineering,1012,Premises Maint-Priv.Contractor,Community & Env Services
Blackpool Council,1012071,Bethell Construction Limited,577083,17328,7/30/2021,2629.88,438.31,ENGINE,Engineering,1012,Premises Maint-Priv.Contractor,Community & Env Services
Blackpool Council,1012071,Bethell Construction Limited,577084,17326,7/30/2021,2312.96,385.49,ENGINE,Engineering,1012,Premises Maint-Priv.Contractor,Community & Env Services
Blackpool Council,1012071,Bethell Construction Limited,577086,17327,7/30/2021,3037.73,506.29,ENGINE,Engineering,1012,Premises Maint-Priv.Contractor,Community & Env Services
Blackpool Council,1012071,Bethell Construction Limited,577088,17335,7/30/2021,3403.27,567.21,ENGINE,Engineering,1012,Premises Maint-Priv.Contractor,Community & Env Services
Blackpool Council,1130674,The Heights Hotel,577092,224886,7/28/2021,300,0,BCA,Corp And Member Services,0911,Training Expenses,Governance & Partnerships
Blackpool Council,1023362,Saint-Gobain Ltd T/A Jewson,577110,0647/00199455,7/28/2021,360,60,SCHEME,Highways Schemes,3041,Other Materials,Community & Env Services
Blackpool Council,1026676,Redman Smith Ltd ( Plastics Blackpool),577112,1597,7/28/2021,2132,0,ZM0018,Highways & Engineering,9773,Orders Received Not Invoiced,Blackpool Services
Blackpool Council,1026676,Redman Smith Ltd ( Plastics Blackpool),577112,1597,7/28/2021,2132,0,ZM0018,Highways & Engineering,9511A,Stocks Efin,Blackpool Services
Blackpool Council,1099572,Yasuda 3d-Art,577124,0060,7/28/2021,800,0,PJHA,"Depot, Management & Admin",3308,Servicing,Places
Blackpool Council,1083256,Community Lighting Partnership (Bpool) Ltd,577126,139,7/28/2021,513088.43,85514.74,FL1259,Pfi Management Costs,4501,Private Contractors,Community & Env Services
Blackpool Council,1041733,Dhl International (Uk) Ltd,577127,AVI8628320,7/29/2021,1076.32,0,PJHA,"Depot, Management & Admin",3041,Other Materials,Places
Blackpool Council,1041733,Dhl International (Uk) Ltd,577129,AVI8641125,7/29/2021,794.24,0,PJAA,"Erection, Operation & Dismantl",3511,Postages,Places
Blackpool Council,1058510,Lifeline Language Services Ltd,577135,0321099,7/29/2021,303,50.5,JEA,Senior Management,5507,Personal,Children'S Services
Blackpool Council,1018184,Blackpool Skip Hire Ltd,577216,10217,7/30/2021,448.73,74.79,CWASTE,Commercial Waste,4501,Private Contractors,Community & Env Services
Blackpool Council,1011369,Lancashire County Council,577227,5200223464,7/29/2021,60000,10000,PAAA,C.E. Management,3801,Other Expenses,Chief Executive
Blackpool Council,1121150,Multipave (Nw) Ltd,577228,05869,7/29/2021,103200,17200,CTACBA,Ltp Scheme 21/22,6501,Contract Payments,Capital - Commnctn & Regen
Blackpool Council,1073088,Muse Developments Limited,577230,51007883,7/29/2021,811434.56,135239.09,CGWBAA,Cbd Phase 2,6501,Contract Payments,Capital - Commnctn & Regen
Blackpool Council,1073088,Muse Developments Limited,577230,51007883,7/29/2021,32353.85,0,ZF0001,"Insurance,Dso,Banking",97B6,Retention Monies - Cap Trsfr,Total Reconciliations
Blackpool Council,1017722,Terrys Cut Price Carpets Ltd,577322,1410,7/30/2021,634.8,105.8,JEA,Senior Management,5554,Personal Needs (Lca Only),Children'S Services
Blackpool Council,1009824,Acorn Care & Education Ltd,4437339,42987,7/23/2021,11613.98,0,CWAN,Children With Additional Needs,4501,Private Contractors,Children'S Services
Blackpool Council,1007814,Water Plus Limited,4438739,INV04457428,7/30/2021,6692.17,0,FL1309,Blackpool Airport Utilities,1401,Water Charges-Metered,Resources
Blackpool Council,1007814,Water Plus Limited,4455024,INV06062944,7/30/2021,1765.2,0,HJA,Growth,1401,Water Charges-Metered,Places
Blackpool Council,1007814,Water Plus Limited,4458457,INV06200427,7/30/2021,427.33,19.08,AEB,Buildings,1401,Water Charges-Metered,Resources
Blackpool Council,1007814,Water Plus Limited,4459030,INV06284953,7/30/2021,742.21,0,CGWBAA,Cbd Phase 2,6501,Contract Payments,Capital - Commnctn & Regen
Blackpool Council,1007814,Water Plus Limited,4459031,INV06024166,7/30/2021,742.21,0,CGWBAA,Cbd Phase 2,6501,Contract Payments,Capital - Commnctn & Regen
Blackpool Council,1007814,Water Plus Limited,4459032,INV06180477,7/30/2021,767.24,0,CGWBAA,Cbd Phase 2,6501,Contract Payments,Capital - Commnctn & Regen
Blackpool Council,1007814,Water Plus Limited,4459033,INV06121899,7/30/2021,718.38,0,CGWBAA,Cbd Phase 2,6501,Contract Payments,Capital - Commnctn & Regen
Blackpool Council,1007814,Water Plus Limited,4459034,INV05936022,7/30/2021,680.46,0,CGWBAA,Cbd Phase 2,6501,Contract Payments,Capital - Commnctn & Regen
Blackpool Council,1007814,Water Plus Limited,4459035,INV05682359,7/30/2021,701.85,0,CGWBAA,Cbd Phase 2,6501,Contract Payments,Capital - Commnctn & Regen
Blackpool Council,1007814,Water Plus Limited,4459036,INV05733470,7/30/2021,599.26,0,CGWBAA,Cbd Phase 2,6501,Contract Payments,Capital - Commnctn & Regen
Blackpool Council,1007814,Water Plus Limited,4459037,INV05798078,7/30/2021,753.15,0,CGWBAA,Cbd Phase 2,6501,Contract Payments,Capital - Commnctn & Regen
Blackpool Council,1007814,Water Plus Limited,4459038,INV05882179,7/30/2021,753.15,0,CGWBAA,Cbd Phase 2,6501,Contract Payments,Capital - Commnctn & Regen
Blackpool Council,1007814,Water Plus Limited,4459039,INV05663255,7/30/2021,1464,0,CGWBAA,Cbd Phase 2,6501,Contract Payments,Capital - Commnctn & Regen
Blackpool Council,1007814,Water Plus Limited,4469495,INV06361139,7/30/2021,1374.47,0,AEB,Buildings,1401,Water Charges-Metered,Resources
Blackpool Council,1007814,Water Plus Limited,4469888,INV06427752,7/30/2021,264.9,11.79,AEB,Buildings,1401,Water Charges-Metered,Resources
Blackpool Council,1069932,REDACTED PERSONAL DATA,4486161,385000,7/1/2021,1543.5,0,MHA,Older People ( U65) With Ld,5604,Direct Payments,Adult & Families
Blackpool Council,1112231,North West Fire Protection Limited,4488330,0061BCH,7/5/2021,6326.83,1054.47,CXC21,Hra Capital Programme 2021/22,6501,Contract Payments,Capital - Chief Executive
Blackpool Council,1112231,North West Fire Protection Limited,4488331,0060BCH,7/5/2021,2376,396,CXC21,Hra Capital Programme 2021/22,6501,Contract Payments,Capital - Chief Executive
Blackpool Council,1112231,North West Fire Protection Limited,4488332,0059BCH,7/5/2021,2139.4,356.56,CXC21,Hra Capital Programme 2021/22,6501,Contract Payments,Capital - Chief Executive
Blackpool Council,1119535,Tamcare Ltd - Layden Court Care Home,4489453,385837,7/14/2021,2991.44,0,MGD,85+,7582,Indep Sect Residential Homes,Adult & Families
Blackpool Council,1119535,Tamcare Ltd - Layden Court Care Home,4489453,385837,7/14/2021,6014.43,0,MGD,85+,4506,Nursing Homes,Adult & Families
Blackpool Council,1112231,North West Fire Protection Limited,4492386,0062BCH,7/5/2021,7185.06,1197.51,CXC21,Hra Capital Programme 2021/22,6501,Contract Payments,Capital - Chief Executive
Blackpool Council,1112231,North West Fire Protection Limited,4497289,0064BCH,7/5/2021,3322.64,553.77,CXC21,Hra Capital Programme 2021/22,6501,Contract Payments,Capital - Chief Executive
Blackpool Council,1119535,Tamcare Ltd - Layden Court Care Home,4498222,389822,7/14/2021,1036,0,MGD,85+,4506,Nursing Homes,Adult & Families
Blackpool Council,1075050,The Regard Partnership Ltd - Homeleigh,4498338,390103,7/2/2021,4492.6,0,MFA,Adults Under 65 With Mh,4201,Joint Authorities,Adult & Families
Blackpool Council,1069932,REDACTED PERSONAL DATA,4499316,390610,7/1/2021,734.01,0,MHA,Older People ( U65) With Ld,5604,Direct Payments,Adult & Families
Blackpool Council,1117457,Wrps Ltd,4499788,8832,7/5/2021,7225.44,1204.24,CXC21,Hra Capital Programme 2021/22,6501,Contract Payments,Capital - Chief Executive
Blackpool Council,1107100,Nonstop Consulting Ltd,4500522,184082,7/1/2021,2114.33,352.39,JBT,Looked After Children,0791,Temp/Relief (Bureau Staff),Children'S Services
Blackpool Council,1128550,Perfect Support,4500534,P2F2MJ-6HMV,7/6/2021,941.16,0,PVA,Other External Funding,3401,General Services,Places
Blackpool Council,1010510,Balmers Gm Ltd,4500599,115574,7/2/2021,16620,2770,CVMU,Cvmu,2001,Purchases,Community & Env Services
Blackpool Council,1029067,Johnston Sweepers Limited,4500610,61989851,7/2/2021,387.07,64.51,CVMU,Cvmu,3041,Other Materials,Community & Env Services
Blackpool Council,1108110,Scarab Sweepers Limited,4500634,2021.1000009679,7/1/2021,391.31,65.22,CVMU,Cvmu,3041,Other Materials,Community & Env Services
Blackpool Council,1123190,Cder Group Limted,4500658,167813,7/2/2021,3376.16,562.69,FBBEA,"Income, Recovery & Debtors",3807,Legal & Court Costs,Resources
Blackpool Council,1057348,Venn Group Limited,4500667,3774773,7/2/2021,8075.34,1345.89,BAAA,Legal Services,0793,Supply Cost Of Other Agency,Governance & Partnerships
Blackpool Council,1057348,Venn Group Limited,4500787,3774090,7/2/2021,2642.83,440.47,BAAA,Legal Services,0793,Supply Cost Of Other Agency,Governance & Partnerships
Blackpool Council,1075968,Care Today Childrens Services,4500911,30605,7/1/2021,14382.96,0,JEA,Senior Management,4501,Private Contractors,Children'S Services
Blackpool Council,1075968,Care Today Childrens Services,4500912,30632,7/1/2021,20699.2,3449.87,JEA,Senior Management,4501,Private Contractors,Children'S Services
Blackpool Council,1088102,Whistl Uk Limited,4500939,IN18US21002919,7/2/2021,2669.4,444.9,FCADA,Customer Services,3511,Postages,Resources
Blackpool Council,1123190,Cder Group Limted,4500940,167803,7/2/2021,14636.51,2439.42,FV6705,Phoenix Commercial Collection,7366,Car Parking Fees,Budgets Outside Cash Limits
Blackpool Council,1044395,Sellick Partnership Limited,4501733,INV360043,7/7/2021,1134,189,BAAA,Legal Services,0793,Supply Cost Of Other Agency,Governance & Partnerships
Blackpool Council,1111078,Dr Y P Shukla,4501957,32/2021,7/7/2021,1575,0,JDEAAA,Safeguarding Adults,4501,Private Contractors,Adult & Families
Blackpool Council,1112757,Corona Contracts Ltd,4502026,3813,7/8/2021,288,48,AEB,Buildings,1012,Premises Maint-Priv.Contractor,Resources
Blackpool Council,1112757,Corona Contracts Ltd,4502027,3812,7/8/2021,390,65,PTA,Economic Development,1012,Premises Maint-Priv.Contractor,Places
Blackpool Council,1085291,REDACTED PERSONAL DATA,4502083,266368,7/1/2021,1125,187.5,BAAA,Legal Services,4707,Counsels Fees,Governance & Partnerships
Blackpool Council,1043719,REDACTED PERSONAL DATA,4502085,263947,7/2/2021,1260,210,BAAA,Legal Services,4707,Counsels Fees,Governance & Partnerships
Blackpool Council,1110956,REDACTED PERSONAL DATA,4502086,286021,7/2/2021,780,130,BAAA,Legal Services,4707,Counsels Fees,Governance & Partnerships
Blackpool Council,1107100,Nonstop Consulting Ltd,4502097,184453,7/8/2021,845.74,140.96,JBT,Looked After Children,0791,Temp/Relief (Bureau Staff),Children'S Services
Blackpool Council,1113485,REDACTED PERSONAL DATA,4502201,070621-040721,7/1/2021,3057.19,0,LM2302,Personal Health - Direct Payme,5604,Direct Payments,Adult & Families
Blackpool Council,1125930,Cyd Limited,4502240,P2 WAGES CACJ-Z4AZ,7/6/2021,716.39,0,PVA,Other External Funding,3401,General Services,Places
Blackpool Council,1125930,Cyd Limited,4502241,P2 WAGES 5AXJ-TRXS,7/6/2021,941.16,0,PVA,Other External Funding,3401,General Services,Places
Blackpool Council,1104767,North Star Environmental Ltd,4502612,INV-22837,7/9/2021,750,125,CXC21,Hra Capital Programme 2021/22,6501,Contract Payments,Capital - Chief Executive
Blackpool Council,1104767,North Star Environmental Ltd,4502613,INV-22840,7/9/2021,282,47,CXC21,Hra Capital Programme 2021/22,6501,Contract Payments,Capital - Chief Executive
Blackpool Council,1119679,REDACTED PERSONAL DATA,4502630,392568,7/1/2021,1681.45,0,MGD,85+,5604,Direct Payments,Adult & Families
Blackpool Council,1065757,Pds Medical Ltd,4502671,01839,7/9/2021,30282,0,PU1001,Public Health Core Funding,4501,Private Contractors,Public Health
Blackpool Council,1123190,Cder Group Limted,4502674,168609,7/9/2021,2403.52,400.59,FBBEA,"Income, Recovery & Debtors",3807,Legal & Court Costs,Resources
Blackpool Council,1007183,Royal Mail Group Ltd,4502679,9063020594,7/5/2021,1825.14,0,BGA,Electoral Services,3511,Postages,Governance & Partnerships
Blackpool Council,1110132,Health Assured Ltd,4502685,SF-080872,7/1/2021,3172.2,528.7,FK0013,Corporate Health,0992,Medical Fees (Employee),Chief Executive
Blackpool Council,1120435,REDACTED PERSONAL DATA,4502728,00019,7/7/2021,601.32,0,JEA,Senior Management,4809,Special Guardianship,Children'S Services
Blackpool Council,1011995,Technical & Electrical Services Ltd,4502994,C 9300,7/23/2021,343.07,57.18,CXC21,Hra Capital Programme 2021/22,6501,Contract Payments,Capital - Chief Executive
Blackpool Council,1011995,Technical & Electrical Services Ltd,4502995,C 9299,7/23/2021,1437.05,239.51,CXC21,Hra Capital Programme 2021/22,6501,Contract Payments,Capital - Chief Executive
Blackpool Council,1104767,North Star Environmental Ltd,4503000,INV-22763,7/9/2021,1620,270,CXC21,Hra Capital Programme 2021/22,6501,Contract Payments,Capital - Chief Executive
Blackpool Council,1112231,North West Fire Protection Limited,4503002,0065BCH,7/5/2021,4644.94,774.15,CXC21,Hra Capital Programme 2021/22,6501,Contract Payments,Capital - Chief Executive
Blackpool Council,1066073,Blackpool Coastal Housing,4503003,30001947,7/7/2021,21000,3500,HEA,Housing Needs / Allocation,3801,Other Expenses,Net Cost Of Services
Blackpool Council,1115716,North Liverpool Construction Ltd (Fac067),4503004,128783,7/5/2021,1251.31,208.55,CXB91,Hra Capital Programme 2020/21,6501,Contract Payments,Capital - Chief Executive
Blackpool Council,1115716,North Liverpool Construction Ltd (Fac067),4503005,128782,7/5/2021,1210.68,201.78,CXXXX,Hra Non Specific Contingency,6501,Contract Payments,Capital - Chief Executive
Blackpool Council,1115716,North Liverpool Construction Ltd (Fac067),4503006,128781,7/5/2021,1734.09,289.01,CXC21,Hra Capital Programme 2021/22,6501,Contract Payments,Capital - Chief Executive
Blackpool Council,1066073,Blackpool Coastal Housing,4503007,30001946,7/7/2021,310796.29,51799.38,CX4002,Disabled Facilities Grants,6503,Capital Salaries (Pro Advance),Capital - Adult Social Care
Blackpool Council,1008540,Konica Minolta Business (Uk) Ltd,4503014,1156430957,7/9/2021,2488.86,414.81,PRINTS,Print Blackpool,3004,Operating Lease,Places
Blackpool Council,1094655,Xpres,4503025,CH-092183,7/1/2021,594,99,PRINTS,Print Blackpool,3001,Office Equipment Purchase,Places
Blackpool Council,1010732,Alexandra Nursing Home,4503033,BRA1330,7/13/2021,5712,0,MTE,Undefined Age Group,4507,Domiciliary Care,Adult & Families
Blackpool Council,1107100,Nonstop Consulting Ltd,4503035,184529,7/9/2021,366.58,61.1,JAB,Locality,0791,Temp/Relief (Bureau Staff),Children'S Services
Blackpool Council,1119535,Tamcare Ltd - Layden Court Care Home,4503902,392489,7/14/2021,1036,0,MGD,85+,4506,Nursing Homes,Adult & Families
Blackpool Council,1092409,REDACTED PERSONAL DATA,4504016,259270,7/2/2021,5280,880,BAAA,Legal Services,4707,Counsels Fees,Governance & Partnerships
Blackpool Council,1118307,REDACTED PERSONAL DATA,4504017,266450,7/2/2021,780,130,BAAA,Legal Services,4707,Counsels Fees,Governance & Partnerships
Blackpool Council,1123784,REDACTED PERSONAL DATA,4504018,553381,7/2/2021,1032,172,RK7002,In-House Pl,4707,Counsels Fees,Internal Insurance
Blackpool Council,1008630,REDACTED PERSONAL DATA,4504019,441619,7/2/2021,870,145,BAAA,Legal Services,4707,Counsels Fees,Governance & Partnerships
Blackpool Council,1118314,REDACTED PERSONAL DATA,4504022,1139720,7/2/2021,480,80,BAAA,Legal Services,4707,Counsels Fees,Governance & Partnerships
Blackpool Council,1113165,Target Psychology Ltd,4504028,6/21/4827,7/2/2021,936,156,JEA,Senior Management,4712,Experts Fees,Children'S Services
Blackpool Council,1118765,Dwf Law Llp,4504047,157-0182659,7/2/2021,2632.8,438.8,LH2090,Green Homes Grant,3807,Legal & Court Costs,Public Health
Blackpool Council,1129420,Beacon House Events Ltd,4504056,INV-1680,7/8/2021,578.88,96.48,BSTPRJ,Better Start Projects,3401,General Services,Better Start Projects
Blackpool Council,1075050,The Regard Partnership Ltd - Homeleigh,4504099,393019,7/9/2021,4492.6,0,MFA,Adults Under 65 With Mh,4201,Joint Authorities,Adult & Families
Blackpool Council,1123190,Cder Group Limted,4504176,168601,7/9/2021,15509.83,2584.97,FV6705,Phoenix Commercial Collection,7366,Car Parking Fees,Budgets Outside Cash Limits
Blackpool Council,1013690,Enterprise Rent-A-Car Uk Ltd,4504497,850042713315,7/9/2021,302.54,50.42,CVMU,Cvmu,2211,Casual Hire,Community & Env Services
Blackpool Council,1051209,Riverside Truck Rental Limited,4504502,IV730163,7/8/2021,791.83,131.97,CVMU,Cvmu,4501,Private Contractors,Community & Env Services
Blackpool Council,1011995,Technical & Electrical Services Ltd,4504508,C 9248,7/20/2021,1247.29,207.88,CXXXX,Hra Non Specific Contingency,6501,Contract Payments,Capital - Chief Executive
Blackpool Council,1066073,Blackpool Coastal Housing,4504565,30001952,7/7/2021,1332.61,21.75,CXB91,Hra Capital Programme 2020/21,6501,Contract Payments,Capital - Chief Executive
Blackpool Council,1073324,Dale Power Solutions Plc,4504588,SI251391,7/2/2021,522,87,AER,Dual Use Properties,1012,Premises Maint-Priv.Contractor,Resources
Blackpool Council,1073324,Dale Power Solutions Plc,4504589,SI251422,7/7/2021,279,46.5,AER,Dual Use Properties,1012,Premises Maint-Priv.Contractor,Resources
Blackpool Council,1094411,Fox Fire Security Limited,4504599,3371,7/9/2021,1530,255,APCBAA,Coopers Way,3801,Other Expenses,Adult & Families
Blackpool Council,1006238,Walton Summit Truck Centre Ltd,4505295,30256026,7/14/2021,441.95,73.66,CVMU,Cvmu,3041,Other Materials,Community & Env Services
Blackpool Council,1006238,Walton Summit Truck Centre Ltd,4505296,35098674,7/2/2021,480,80,CVMU,Cvmu,4501,Private Contractors,Community & Env Services
Blackpool Council,1009228,Gibsons Garden Machinery Limited,4505304,171643,7/14/2021,416.14,69.36,CVMU,Cvmu,3041,Other Materials,Community & Env Services
Blackpool Council,1010510,Balmers Gm Ltd,4505332,116046,7/9/2021,424.44,70.74,CVMU,Cvmu,3041,Other Materials,Community & Env Services
Blackpool Council,1023846,Dennis Eagle Ltd,4505338,DE11412945,7/9/2021,611.76,101.96,CVMU,Cvmu,3041,Other Materials,Community & Env Services
Blackpool Council,1101279,Greenpass Training,4505365,020603,7/2/2021,726,0,CVMU,Cvmu,3426,Course Fees,Community & Env Services
Blackpool Council,1107730,Lynch Truck Services Ltd,4505366,CI007048,7/9/2021,380.33,63.39,CVMU,Cvmu,3041,Other Materials,Community & Env Services
Blackpool Council,1118113,Able Lorry Loaders Ltd,4505367,20015,7/14/2021,2310.23,385.04,CVMU,Cvmu,3041,Other Materials,Community & Env Services
Blackpool Council,1007345,Mobile Mini Uk Limited,4505524,7002051732,7/7/2021,346.32,57.72,CEMCRE,Cems Crems Etc,1012,Premises Maint-Priv.Contractor,Governance & Partnerships
Blackpool Council,1094411,Fox Fire Security Limited,4505654,3376,7/9/2021,280.48,46.75,AEB,Buildings,1012,Premises Maint-Priv.Contractor,Resources
Blackpool Council,1120190,S & C Slatter Limited,4505662,K 4428,7/9/2021,1200,200,AEB,Buildings,1012,Premises Maint-Priv.Contractor,Resources
Blackpool Council,1120588,G2 Recruitment Solutions,4505663,83681,7/2/2021,1575,262.5,AEF,Facilities,1012,Premises Maint-Priv.Contractor,Resources
Blackpool Council,1120588,G2 Recruitment Solutions,4505664,83680,7/2/2021,1403.1,233.85,AEF,Facilities,0791,Temp/Relief (Bureau Staff),Resources
Blackpool Council,1113419,Charnwood Cattery Ltd,4505683,0268,7/13/2021,4567,0,MVC,75-84,4501,Private Contractors,Adult & Families
Blackpool Council,1107013,Umeed Ltd,4505686,SHAH/SGO/05/21,7/9/2021,3360,0,JEA,Senior Management,4712,Experts Fees,Children'S Services
Blackpool Council,1041219,Abelglass Trade Supplies Ltd,4505854,INV-6057,7/5/2021,2222.4,370.4,CXC21,Hra Capital Programme 2021/22,6501,Contract Payments,Capital - Chief Executive
Blackpool Council,1122908,Cavity Extraction Specialists Nw Ltd,4505901,108327,7/20/2021,748.8,124.8,CXC21,Hra Capital Programme 2021/22,6501,Contract Payments,Capital - Chief Executive
Blackpool Council,1122908,Cavity Extraction Specialists Nw Ltd,4505902,108328,7/6/2021,470.4,78.4,CXC21,Hra Capital Programme 2021/22,6501,Contract Payments,Capital - Chief Executive
Blackpool Council,1122908,Cavity Extraction Specialists Nw Ltd,4505903,108329,7/5/2021,1404,234,CXC21,Hra Capital Programme 2021/22,6501,Contract Payments,Capital - Chief Executive
Blackpool Council,1041219,Abelglass Trade Supplies Ltd,4505904,INV-6058,7/5/2021,1252.8,208.8,CXB91,Hra Capital Programme 2020/21,6501,Contract Payments,Capital - Chief Executive
Blackpool Council,1026811,Stannah Lift Services Ltd,4505905,1085317404,7/6/2021,282.67,47.11,MVB,65-74,5401,Aids To Daily Living,Adult & Families
Blackpool Council,1115716,North Liverpool Construction Ltd (Fac067),4505906,128807,7/14/2021,712.13,118.69,CXXXX,Hra Non Specific Contingency,6501,Contract Payments,Capital - Chief Executive
Blackpool Council,1115716,North Liverpool Construction Ltd (Fac067),4505907,128808,7/14/2021,712.13,118.69,CXXXX,Hra Non Specific Contingency,6501,Contract Payments,Capital - Chief Executive
Blackpool Council,1115716,North Liverpool Construction Ltd (Fac067),4505908,128833,7/14/2021,1458,243,MVB,65-74,5401,Aids To Daily Living,Adult & Families
Blackpool Council,1115716,North Liverpool Construction Ltd (Fac067),4505909,128834,7/14/2021,312,52,MVB,65-74,5401,Aids To Daily Living,Adult & Families
Blackpool Council,1115716,North Liverpool Construction Ltd (Fac067),4505910,128835,7/14/2021,846,141,MVB,65-74,5401,Aids To Daily Living,Adult & Families
Blackpool Council,1115716,North Liverpool Construction Ltd (Fac067),4505911,128836,7/14/2021,507,84.5,MVB,65-74,5401,Aids To Daily Living,Adult & Families
Blackpool Council,1115716,North Liverpool Construction Ltd (Fac067),4505912,128837,7/14/2021,441,73.5,MVB,65-74,5401,Aids To Daily Living,Adult & Families
Blackpool Council,1115716,North Liverpool Construction Ltd (Fac067),4505913,128838,7/14/2021,531,88.5,MVA,18-64,5401,Aids To Daily Living,Adult & Families
Blackpool Council,1115716,North Liverpool Construction Ltd (Fac067),4505915,128840,7/14/2021,528,88,MVB,65-74,5401,Aids To Daily Living,Adult & Families
Blackpool Council,1115716,North Liverpool Construction Ltd (Fac067),4505916,128841,7/14/2021,894,149,MVB,65-74,5401,Aids To Daily Living,Adult & Families
Blackpool Council,1011518,Tw Joinery & Fencing Contractors,4505918,3402,7/14/2021,1260,210,CXC21,Hra Capital Programme 2021/22,6501,Contract Payments,Capital - Chief Executive
Blackpool Council,1011518,Tw Joinery & Fencing Contractors,4505921,3403,7/14/2021,3684,614,CXC21,Hra Capital Programme 2021/22,6501,Contract Payments,Capital - Chief Executive
Blackpool Council,1048456,R T C,4505937,9445,7/5/2021,2814,469,CXC21,Hra Capital Programme 2021/22,6501,Contract Payments,Capital - Chief Executive
Blackpool Council,1048456,R T C,4505938,9452,7/5/2021,2250,375,CXC21,Hra Capital Programme 2021/22,6501,Contract Payments,Capital - Chief Executive
Blackpool Council,1006196,Prism Medical Uk Ltd,4505942,5470497,7/13/2021,2232,372,MTE,Undefined Age Group,5401,Aids To Daily Living,Adult & Families
Blackpool Council,1002210,Read & Errington,4505943,BCH 100850/8,7/5/2021,1128.2,188.03,CXXXX,Hra Non Specific Contingency,6501,Contract Payments,Capital - Chief Executive
Blackpool Council,1117457,Wrps Ltd,4505958,8885,7/16/2021,920.52,153.42,CXC21,Hra Capital Programme 2021/22,6501,Contract Payments,Capital - Chief Executive
Blackpool Council,1117457,Wrps Ltd,4505959,8970,7/16/2021,517.91,86.32,CXC21,Hra Capital Programme 2021/22,6501,Contract Payments,Capital - Chief Executive
Blackpool Council,1117457,Wrps Ltd,4505960,8886,7/16/2021,1880.86,313.48,CXXXX,Hra Non Specific Contingency,6501,Contract Payments,Capital - Chief Executive
Blackpool Council,1117457,Wrps Ltd,4505964,8887,7/16/2021,696.25,116.04,CXC21,Hra Capital Programme 2021/22,6501,Contract Payments,Capital - Chief Executive
Blackpool Council,1117457,Wrps Ltd,4505968,8882,7/16/2021,2479.48,413.25,CXC21,Hra Capital Programme 2021/22,6501,Contract Payments,Capital - Chief Executive
Blackpool Council,1117457,Wrps Ltd,4505975,8883,7/16/2021,1089.79,181.63,CXC21,Hra Capital Programme 2021/22,6501,Contract Payments,Capital - Chief Executive
Blackpool Council,1117457,Wrps Ltd,4505976,8884,7/16/2021,1359,226.5,CXC21,Hra Capital Programme 2021/22,6501,Contract Payments,Capital - Chief Executive
Blackpool Council,1117457,Wrps Ltd,4505978,8888,7/16/2021,864.46,144.08,CXC21,Hra Capital Programme 2021/22,6501,Contract Payments,Capital - Chief Executive
Blackpool Council,1117457,Wrps Ltd,4505979,8889,7/16/2021,1053.86,175.64,CXC21,Hra Capital Programme 2021/22,6501,Contract Payments,Capital - Chief Executive
Blackpool Council,1117457,Wrps Ltd,4505980,8890,7/16/2021,721.81,120.3,CXC21,Hra Capital Programme 2021/22,6501,Contract Payments,Capital - Chief Executive
Blackpool Council,1117457,Wrps Ltd,4505981,8891,7/16/2021,997.08,166.18,CXXXX,Hra Non Specific Contingency,6501,Contract Payments,Capital - Chief Executive
Blackpool Council,1107817,Evolution Media Installations Ltd,4505982,1988,7/20/2021,5726.75,954.46,CXC21,Hra Capital Programme 2021/22,6501,Contract Payments,Capital - Chief Executive
Blackpool Council,1048456,R T C,4505984,9457,7/5/2021,1392,232,CXC21,Hra Capital Programme 2021/22,6501,Contract Payments,Capital - Chief Executive
Blackpool Council,1117457,Wrps Ltd,4505985,8951,7/16/2021,2046.55,341.09,CXC21,Hra Capital Programme 2021/22,6501,Contract Payments,Capital - Chief Executive
Blackpool Council,1117457,Wrps Ltd,4505986,8952,7/16/2021,1912.45,318.74,CXXXX,Hra Non Specific Contingency,6501,Contract Payments,Capital - Chief Executive
Blackpool Council,1117457,Wrps Ltd,4505987,8953,7/16/2021,922.73,153.79,CXC21,Hra Capital Programme 2021/22,6501,Contract Payments,Capital - Chief Executive
Blackpool Council,1117457,Wrps Ltd,4505988,8954,7/16/2021,756.12,126.02,CXC21,Hra Capital Programme 2021/22,6501,Contract Payments,Capital - Chief Executive
Blackpool Council,1117457,Wrps Ltd,4505989,8955,7/16/2021,811.8,135.3,CXC21,Hra Capital Programme 2021/22,6501,Contract Payments,Capital - Chief Executive
Blackpool Council,1117457,Wrps Ltd,4505990,8956,7/16/2021,516.47,86.08,CXC21,Hra Capital Programme 2021/22,6501,Contract Payments,Capital - Chief Executive
Blackpool Council,1117457,Wrps Ltd,4505991,8957,7/16/2021,1353.1,225.52,CXC21,Hra Capital Programme 2021/22,6501,Contract Payments,Capital - Chief Executive
Blackpool Council,1117457,Wrps Ltd,4505995,8966,7/16/2021,633.77,105.63,CXC21,Hra Capital Programme 2021/22,6501,Contract Payments,Capital - Chief Executive
Blackpool Council,1117457,Wrps Ltd,4505996,8967,7/16/2021,1190.27,198.38,CXC21,Hra Capital Programme 2021/22,6501,Contract Payments,Capital - Chief Executive
Blackpool Council,1117457,Wrps Ltd,4505997,8968,7/16/2021,1190.27,198.38,CXC21,Hra Capital Programme 2021/22,6501,Contract Payments,Capital - Chief Executive
Blackpool Council,1117457,Wrps Ltd,4505998,8969,7/16/2021,679.8,113.3,CXC21,Hra Capital Programme 2021/22,6501,Contract Payments,Capital - Chief Executive
Blackpool Council,1122908,Cavity Extraction Specialists Nw Ltd,4505999,108331,7/6/2021,898.8,149.8,CXC21,Hra Capital Programme 2021/22,6501,Contract Payments,Capital - Chief Executive
Blackpool Council,1112231,North West Fire Protection Limited,4506002,0066BCH,7/20/2021,5008.12,834.68,CXC21,Hra Capital Programme 2021/22,6501,Contract Payments,Capital - Chief Executive
Blackpool Council,1104552,Hexagon Care Services Ltd,4506020,23693,7/15/2021,3700,0,JEA,Senior Management,4501,Private Contractors,Children'S Services
Blackpool Council,1011675,Bambers Remedial Contractors Limited,4506043,17028,7/6/2021,15258.28,2543.05,CXC21,Hra Capital Programme 2021/22,6501,Contract Payments,Capital - Chief Executive
Blackpool Council,1011675,Bambers Remedial Contractors Limited,4506044,17029,7/14/2021,9416.37,1569.4,CXC21,Hra Capital Programme 2021/22,6501,Contract Payments,Capital - Chief Executive
Blackpool Council,1011675,Bambers Remedial Contractors Limited,4506045,17030,7/14/2021,9416.34,1569.4,CXC21,Hra Capital Programme 2021/22,6501,Contract Payments,Capital - Chief Executive
Blackpool Council,1128555,Ricalex Ltd,4506063,18-19ARINV0781,7/6/2021,1010.75,0,PVA,Other External Funding,3401,General Services,Places
Blackpool Council,1066073,Blackpool Coastal Housing,4506258,30001956,7/8/2021,1770,0,BG0041,Pcc Elections,1301,Rent & Hire Of Premises,Governance & Partnerships
Blackpool Council,1011973,Automatic Alarms Ltd,4506284,341021,7/14/2021,291.79,48.63,AEB,Buildings,1171,Alarms,Resources
Blackpool Council,1101733,St Stephen On The Cliffs,4506494,INV-0033,7/2/2021,650,0,BG0041,Pcc Elections,1301,Rent & Hire Of Premises,Governance & Partnerships
Blackpool Council,1088102,Whistl Uk Limited,4506495,IN18US21003193,7/16/2021,2962.14,493.69,FCADA,Customer Services,3511,Postages,Resources
Blackpool Council,1026811,Stannah Lift Services Ltd,4506496,1085317656,7/7/2021,1574.35,0,CX4002,Disabled Facilities Grants,6501,Contract Payments,Capital - Adult Social Care
Blackpool Council,1071928,Civica Uk Limited,4506498,M/HB088177,7/21/2021,420.67,70.11,HEA,Housing Needs / Allocation,3801,Other Expenses,Net Cost Of Services
Blackpool Council,1071928,Civica Uk Limited,4506499,M/HB088164,7/21/2021,4339.08,723.18,HEA,Housing Needs / Allocation,3801,Other Expenses,Net Cost Of Services
Blackpool Council,1071928,Civica Uk Limited,4506501,M/HB088172,7/21/2021,1008.86,168.14,HEA,Housing Needs / Allocation,3801,Other Expenses,Net Cost Of Services
Blackpool Council,1107100,Nonstop Consulting Ltd,4506551,184944,7/28/2021,2000.04,333.34,JBT,Looked After Children,0791,Temp/Relief (Bureau Staff),Children'S Services
Blackpool Council,1099262,Nhs Blackpool Ccg,4507537,7011218629,7/6/2021,3063.08,0,MFB,65-74,4201,Joint Authorities,Adult & Families
Blackpool Council,1099262,Nhs Blackpool Ccg,4507538,7011218631,7/6/2021,912.6,0,MFA,Adults Under 65 With Mh,4201,Joint Authorities,Adult & Families
Blackpool Council,1099262,Nhs Blackpool Ccg,4507539,7011218632,7/6/2021,2329.5,0,MFA,Adults Under 65 With Mh,4201,Joint Authorities,Adult & Families
Blackpool Council,1099262,Nhs Blackpool Ccg,4507540,7011218633,7/6/2021,1861.5,0,MFA,Adults Under 65 With Mh,4201,Joint Authorities,Adult & Families
Blackpool Council,1099262,Nhs Blackpool Ccg,4507541,7011218634,7/6/2021,939.72,0,MFA,Adults Under 65 With Mh,4201,Joint Authorities,Adult & Families
Blackpool Council,1099262,Nhs Blackpool Ccg,4507542,7011218635,7/6/2021,2584.74,0,MVC,75-84,4201,Joint Authorities,Adult & Families
Blackpool Council,1099262,Nhs Blackpool Ccg,4507543,7011218637,7/6/2021,2584.74,0,MFC,75-84,4201,Joint Authorities,Adult & Families
Blackpool Council,1099262,Nhs Blackpool Ccg,4507544,7011218656,7/6/2021,2026.04,0,MFA,Adults Under 65 With Mh,4201,Joint Authorities,Adult & Families
Blackpool Council,1099262,Nhs Blackpool Ccg,4507545,7011218641,7/6/2021,2584.74,0,MFB,65-74,4201,Joint Authorities,Adult & Families
Blackpool Council,1099262,Nhs Blackpool Ccg,4507546,7011218643,7/6/2021,2164.4,0,MGD,85+,4201,Joint Authorities,Adult & Families
Blackpool Council,1099262,Nhs Blackpool Ccg,4507547,7011218644,7/6/2021,2584.74,0,MFA,Adults Under 65 With Mh,4201,Joint Authorities,Adult & Families
Blackpool Council,1099262,Nhs Blackpool Ccg,4507548,7011218646,7/6/2021,2313.65,0,MFA,Adults Under 65 With Mh,4201,Joint Authorities,Adult & Families
Blackpool Council,1099262,Nhs Blackpool Ccg,4507549,7011218647,7/6/2021,4468.63,0,MFA,Adults Under 65 With Mh,4201,Joint Authorities,Adult & Families
Blackpool Council,1099262,Nhs Blackpool Ccg,4507550,7011218648,7/6/2021,4201.75,0,MXA,18-64,4201,Joint Authorities,Adult & Families
Blackpool Council,1099262,Nhs Blackpool Ccg,4507551,7011218649,7/6/2021,5184.45,0,MHA,Older People ( U65) With Ld,4201,Joint Authorities,Adult & Families
Blackpool Council,1099262,Nhs Blackpool Ccg,4507552,7011218651,7/6/2021,2006.92,0,MFA,Adults Under 65 With Mh,4201,Joint Authorities,Adult & Families
Blackpool Council,1099262,Nhs Blackpool Ccg,4507553,7011218652,7/6/2021,9801.12,0,MHA,Older People ( U65) With Ld,4201,Joint Authorities,Adult & Families
Blackpool Council,1099262,Nhs Blackpool Ccg,4507554,7011218653,7/6/2021,1713.6,0,MFA,Adults Under 65 With Mh,4201,Joint Authorities,Adult & Families
Blackpool Council,1099262,Nhs Blackpool Ccg,4507555,7011218654,7/6/2021,1900,0,MFA,Adults Under 65 With Mh,4201,Joint Authorities,Adult & Families
Blackpool Council,1099262,Nhs Blackpool Ccg,4507556,7011218655,7/6/2021,1750,0,MFA,Adults Under 65 With Mh,4201,Joint Authorities,Adult & Families
Blackpool Council,1099262,Nhs Blackpool Ccg,4507557,7011218619,7/6/2021,2549.79,0,MFB,65-74,4201,Joint Authorities,Adult & Families
Blackpool Council,1099262,Nhs Blackpool Ccg,4507558,7011218618,7/6/2021,3320.77,0,MFC,75-84,4201,Joint Authorities,Adult & Families
Blackpool Council,1099262,Nhs Blackpool Ccg,4507559,7011218616,7/6/2021,2584.74,0,MGC,75-84,4201,Joint Authorities,Adult & Families
Blackpool Council,1099262,Nhs Blackpool Ccg,4507560,7011218640,7/6/2021,2584.74,0,MFC,75-84,4201,Joint Authorities,Adult & Families
Blackpool Council,1077254,Melrose Hotel,4507870,522117,7/1/2021,322,0,HOPB,Housing Options,1704,Bed & Breakfast Accomm.,Chief Executive
Blackpool Council,1077254,Melrose Hotel,4507871,522116,7/1/2021,322,0,HOPB,Housing Options,1704,Bed & Breakfast Accomm.,Chief Executive
Blackpool Council,1100594,Astoria Hotel,4507878,432139,7/8/2021,560,0,HOPB,Housing Options,1704,Bed & Breakfast Accomm.,Chief Executive
Blackpool Council,1100594,Astoria Hotel,4507879,432135,7/8/2021,322,0,HOPB,Housing Options,1704,Bed & Breakfast Accomm.,Chief Executive
Blackpool Council,1100594,Astoria Hotel,4507880,432137,7/8/2021,322,0,HOPB,Housing Options,1704,Bed & Breakfast Accomm.,Chief Executive
Blackpool Council,1100594,Astoria Hotel,4507881,432138,7/8/2021,322,0,HOPB,Housing Options,1704,Bed & Breakfast Accomm.,Chief Executive
Blackpool Council,1100594,Astoria Hotel,4507882,432133,7/8/2021,322,0,HOPB,Housing Options,1704,Bed & Breakfast Accomm.,Chief Executive
Blackpool Council,1100594,Astoria Hotel,4507883,432134,7/8/2021,322,0,HOPB,Housing Options,1704,Bed & Breakfast Accomm.,Chief Executive
Blackpool Council,1100594,Astoria Hotel,4507884,432140,7/6/2021,322,0,HOPB,Housing Options,1704,Bed & Breakfast Accomm.,Chief Executive
Blackpool Council,1100594,Astoria Hotel,4507885,432136,7/6/2021,322,0,HOPB,Housing Options,1704,Bed & Breakfast Accomm.,Chief Executive
Blackpool Council,1100594,Astoria Hotel,4507886,432132,7/8/2021,322,0,HOPB,Housing Options,1704,Bed & Breakfast Accomm.,Chief Executive
Blackpool Council,1100594,Astoria Hotel,4507887,432141,7/6/2021,253,0,HOPB,Housing Options,1704,Bed & Breakfast Accomm.,Chief Executive
Blackpool Council,1100594,Astoria Hotel,4507888,432145,7/8/2021,280,0,HOPB,Housing Options,1704,Bed & Breakfast Accomm.,Chief Executive
Blackpool Council,1111078,Dr Y P Shukla,4507898,33/2021,7/14/2021,1400,0,JDEAAA,Safeguarding Adults,4501,Private Contractors,Adult & Families
Blackpool Council,1011973,Automatic Alarms Ltd,4507923,340289,7/13/2021,707.81,117.97,AEB,Buildings,1171,Alarms,Resources
Blackpool Council,1011973,Automatic Alarms Ltd,4507926,341031,7/14/2021,510.72,85.12,AEB,Buildings,1012,Premises Maint-Priv.Contractor,Resources
Blackpool Council,1115716,North Liverpool Construction Ltd (Fac067),4507987,128858,7/20/2021,712.13,118.69,CXXXX,Hra Non Specific Contingency,6501,Contract Payments,Capital - Chief Executive
Blackpool Council,1115716,North Liverpool Construction Ltd (Fac067),4507989,128860,7/16/2021,753.42,125.57,CXXXX,Hra Non Specific Contingency,6501,Contract Payments,Capital - Chief Executive
Blackpool Council,1115716,North Liverpool Construction Ltd (Fac067),4507990,128861,7/20/2021,1125.3,187.55,CXC21,Hra Capital Programme 2021/22,6501,Contract Payments,Capital - Chief Executive
Blackpool Council,1115716,North Liverpool Construction Ltd (Fac067),4507991,128862,7/20/2021,712.13,118.69,CXXXX,Hra Non Specific Contingency,6501,Contract Payments,Capital - Chief Executive
Blackpool Council,1115716,North Liverpool Construction Ltd (Fac067),4507992,128863,7/16/2021,1351.99,225.33,CXC21,Hra Capital Programme 2021/22,6501,Contract Payments,Capital - Chief Executive
Blackpool Council,1115716,North Liverpool Construction Ltd (Fac067),4507995,128864,7/20/2021,1666.43,277.74,CXXXX,Hra Non Specific Contingency,6501,Contract Payments,Capital - Chief Executive
Blackpool Council,1011675,Bambers Remedial Contractors Limited,4507996,17040,7/20/2021,4218,703,CXXXX,Hra Non Specific Contingency,6501,Contract Payments,Capital - Chief Executive
Blackpool Council,1086899,Anchorsholme Bowling & Social Club,4508001,HIRE OF CLUBHOUSE,7/1/2021,500,0,BG0041,Pcc Elections,1301,Rent & Hire Of Premises,Governance & Partnerships
Blackpool Council,1115716,North Liverpool Construction Ltd (Fac067),4508002,128857,7/20/2021,1099.75,183.29,CXC21,Hra Capital Programme 2021/22,6501,Contract Payments,Capital - Chief Executive
Blackpool Council,1115716,North Liverpool Construction Ltd (Fac067),4508003,128784,7/20/2021,658.32,109.72,CXC21,Hra Capital Programme 2021/22,6501,Contract Payments,Capital - Chief Executive
Blackpool Council,1111078,Dr Y P Shukla,4508005,34/2021,7/21/2021,1400,0,JDEAAA,Safeguarding Adults,4501,Private Contractors,Adult & Families
Blackpool Council,1115716,North Liverpool Construction Ltd (Fac067),4508007,128785,7/20/2021,1210.19,201.69,CXC21,Hra Capital Programme 2021/22,6501,Contract Payments,Capital - Chief Executive
Blackpool Council,1115716,North Liverpool Construction Ltd (Fac067),4508008,128786,7/20/2021,883.2,147.2,CXXXX,Hra Non Specific Contingency,6501,Contract Payments,Capital - Chief Executive
Blackpool Council,1115716,North Liverpool Construction Ltd (Fac067),4508010,128796,7/20/2021,5449.27,908.21,CXXXX,Hra Non Specific Contingency,6501,Contract Payments,Capital - Chief Executive
Blackpool Council,1115716,North Liverpool Construction Ltd (Fac067),4508011,128797,7/2/2021,669,111.5,MVB,65-74,5401,Aids To Daily Living,Adult & Families
Blackpool Council,1044395,Sellick Partnership Limited,4508013,INV362332,7/22/2021,2203.2,367.2,BAAA,Legal Services,0793,Supply Cost Of Other Agency,Governance & Partnerships
Blackpool Council,1120274,Mewa Llp,4508017,21319,7/9/2021,388.8,64.8,JEA,Senior Management,4712,Experts Fees,Children'S Services
Blackpool Council,1115716,North Liverpool Construction Ltd (Fac067),4508018,128800,7/2/2021,978,163,MVB,65-74,5401,Aids To Daily Living,Adult & Families
Blackpool Council,1115716,North Liverpool Construction Ltd (Fac067),4508019,128801,7/2/2021,516,86,CXAAA,Local Authority Dwellings,6501,Contract Payments,Capital - Chief Executive
Blackpool Council,1115716,North Liverpool Construction Ltd (Fac067),4508021,128802,7/7/2021,1140,190,MVB,65-74,5401,Aids To Daily Living,Adult & Families
Blackpool Council,1115716,North Liverpool Construction Ltd (Fac067),4508039,128804,7/7/2021,312,52,MVB,65-74,5401,Aids To Daily Living,Adult & Families
Blackpool Council,1115716,North Liverpool Construction Ltd (Fac067),4508041,128806,7/7/2021,702,117,MVB,65-74,5401,Aids To Daily Living,Adult & Families
Blackpool Council,1063621,Littledale Hall Therapeutic Community Ltd,4508043,5142,7/13/2021,385.71,0,MPA,18-64,4563,Priv-Stc Carers-Residential,Adult & Families
Blackpool Council,1117457,Wrps Ltd,4508045,8950,7/20/2021,3148.67,524.78,CXC21,Hra Capital Programme 2021/22,6501,Contract Payments,Capital - Chief Executive
Blackpool Council,1102569,Shannon Educational Psychology Ltd,4508047,300,7/8/2021,280,0,BSTPRJ,Better Start Projects,3401,General Services,Better Start Projects
Blackpool Council,1117457,Wrps Ltd,4508048,8975,7/20/2021,1021.34,170.22,CXC21,Hra Capital Programme 2021/22,6501,Contract Payments,Capital - Chief Executive
Blackpool Council,1041543,REDACTED PERSONAL DATA,4508066,259543,7/5/2021,780,130,BAAA,Legal Services,4707,Counsels Fees,Governance & Partnerships
Blackpool Council,1118698,REDACTED PERSONAL DATA,4508068,286280,7/9/2021,780,130,BAAA,Legal Services,4707,Counsels Fees,Governance & Partnerships
Blackpool Council,1113165,Target Psychology Ltd,4508071,6/21/4897,7/14/2021,1329.84,221.64,JEA,Senior Management,4712,Experts Fees,Children'S Services
Blackpool Council,1007612,REDACTED PERSONAL DATA,4508072,266536,7/15/2021,750,125,BAAA,Legal Services,4707,Counsels Fees,Governance & Partnerships
Blackpool Council,1043719,REDACTED PERSONAL DATA,4508073,266469,7/16/2021,768,128,BAAA,Legal Services,4707,Counsels Fees,Governance & Partnerships
Blackpool Council,1043719,REDACTED PERSONAL DATA,4508074,266108,7/16/2021,408,68,BAAA,Legal Services,4707,Counsels Fees,Governance & Partnerships
Blackpool Council,1118307,REDACTED PERSONAL DATA,4508075,263924,7/9/2021,630,105,BAAA,Legal Services,4707,Counsels Fees,Governance & Partnerships
Blackpool Council,1116675,Pickering Psychology Services Ltd,4508081,PPS3461,7/16/2021,2986.96,497.83,JEA,Senior Management,4712,Experts Fees,Children'S Services
Blackpool Council,1113165,Target Psychology Ltd,4508104,6/21/4881,7/9/2021,2808,468,JEA,Senior Management,4712,Experts Fees,Children'S Services
Blackpool Council,1121818,REDACTED PERSONAL DATA,4508117,266470,7/9/2021,630,105,BAAA,Legal Services,4707,Counsels Fees,Governance & Partnerships
Blackpool Council,1085291,REDACTED PERSONAL DATA,4508118,262811,7/9/2021,4482,747,BAAA,Legal Services,4707,Counsels Fees,Governance & Partnerships
Blackpool Council,1054707,REDACTED PERSONAL DATA,4508119,444396,7/9/2021,5040,840,BAAA,Legal Services,4707,Counsels Fees,Governance & Partnerships
Blackpool Council,1123411,REDACTED PERSONAL DATA,4508120,286106,7/9/2021,780,130,BAAA,Legal Services,4707,Counsels Fees,Governance & Partnerships
Blackpool Council,1006453,Lexisnexis,4508180,SG765841K,7/9/2021,636.99,0,BAAA,Legal Services,3304,Books And Periodicals,Governance & Partnerships
Blackpool Council,1008429,Red Rose School,4508182,F4115,7/13/2021,3197.5,0,CWAN,Children With Additional Needs,4501,Private Contractors,Children'S Services
Blackpool Council,1032536,Partner Ship Media Group Ltd,4508183,0000174140,7/16/2021,354,59,JEA,Senior Management,0915,Conferences,Children'S Services
Blackpool Council,1048456,R T C,4508186,9462,7/20/2021,748.8,124.8,CXC21,Hra Capital Programme 2021/22,6501,Contract Payments,Capital - Chief Executive
Blackpool Council,1048456,R T C,4508188,9464,7/14/2021,1314,219,CXC21,Hra Capital Programme 2021/22,6501,Contract Payments,Capital - Chief Executive
Blackpool Council,1104767,North Star Environmental Ltd,4508189,INV-22856,7/21/2021,1686,281,CXC21,Hra Capital Programme 2021/22,6501,Contract Payments,Capital - Chief Executive
Blackpool Council,1107100,Nonstop Consulting Ltd,4508214,184704,7/28/2021,2114.33,352.39,JBT,Looked After Children,0791,Temp/Relief (Bureau Staff),Children'S Services
Blackpool Council,1123190,Cder Group Limted,4508218,169455,7/16/2021,1092.25,182.04,FBBEA,"Income, Recovery & Debtors",3807,Legal & Court Costs,Resources
Blackpool Council,1123190,Cder Group Limted,4508219,169427,7/16/2021,626.75,104.46,FBBEA,"Income, Recovery & Debtors",3807,Legal & Court Costs,Resources
Blackpool Council,1106677,REDACTED PERSONAL DATA,4508220,439964,7/9/2021,3336,556,BAAA,Legal Services,4707,Counsels Fees,Governance & Partnerships
Blackpool Council,1115716,North Liverpool Construction Ltd (Fac067),4508223,128812,7/20/2021,1589.84,264.98,CXXXX,Hra Non Specific Contingency,6501,Contract Payments,Capital - Chief Executive
Blackpool Council,1011518,Tw Joinery & Fencing Contractors,4508226,3404,7/20/2021,2940,490,CXC21,Hra Capital Programme 2021/22,6501,Contract Payments,Capital - Chief Executive
Blackpool Council,1011518,Tw Joinery & Fencing Contractors,4508227,3405,7/20/2021,1602,267,CXC21,Hra Capital Programme 2021/22,6501,Contract Payments,Capital - Chief Executive
Blackpool Council,1088102,Whistl Uk Limited,4508231,IN18US21003057,7/9/2021,3892.93,648.82,FCADA,Customer Services,3511,Postages,Resources
Blackpool Council,1116408,Offigouk Ltd,4508236,1066,7/6/2021,750,0,PVA,Other External Funding,3401,General Services,Places
Blackpool Council,1006492,The William Henry Smith School,4508237,14297,7/14/2021,5370,0,CWAN,Children With Additional Needs,4501,Private Contractors,Children'S Services
Blackpool Council,1105003,Socal Healthcare Ltd,4508239,0621-128-129,7/1/2021,350,0,JDEAAA,Safeguarding Adults,4501,Private Contractors,Adult & Families
Blackpool Council,1077392,Reed Specialist Recruitment Ltd,4508243,E020942253M,7/9/2021,766.67,127.78,JA1531,Independent Reviewing Officers,0791,Temp/Relief (Bureau Staff),Children'S Services
Blackpool Council,1077392,Reed Specialist Recruitment Ltd,4508243,E020942253M,7/9/2021,3015.65,502.61,JAB,Locality,0791,Temp/Relief (Bureau Staff),Children'S Services
Blackpool Council,1077392,Reed Specialist Recruitment Ltd,4508243,E020942253M,7/9/2021,2858.11,476.35,JBR,Lac - Placements,0791,Temp/Relief (Bureau Staff),Children'S Services
Blackpool Council,1077392,Reed Specialist Recruitment Ltd,4508243,E020942253M,7/9/2021,5083.01,847.17,JBT,Looked After Children,0791,Temp/Relief (Bureau Staff),Children'S Services
Blackpool Council,1077392,Reed Specialist Recruitment Ltd,4508243,E020942253M,7/9/2021,5401.28,900.22,JEA,Senior Management,0791,Temp/Relief (Bureau Staff),Children'S Services
Blackpool Council,1077392,Reed Specialist Recruitment Ltd,4508243,E020942253M,7/9/2021,508.62,84.77,PJHA,"Depot, Management & Admin",0791,Temp/Relief (Bureau Staff),Places
Blackpool Council,1077392,Reed Specialist Recruitment Ltd,4508243,E020942253M,7/9/2021,2349.19,391.52,PU0000,Covid Test And Trace,0791,Temp/Relief (Bureau Staff),Public Health
Blackpool Council,1116647,Care In Mind Limited,4508247,3327,7/1/2021,18818.7,0,MFA,Adults Under 65 With Mh,4201,Joint Authorities,Adult & Families
Blackpool Council,1123472,Lancashire Care Ltd T/A Lastminute Care,4508258,14200,7/5/2021,2009.7,0,MTE,Undefined Age Group,4507,Domiciliary Care,Adult & Families
Blackpool Council,1099749,Devonshire Primary Academy,4508261,DEV241,7/26/2021,960,0,CWAN,Children With Additional Needs,0911,Training Expenses,Children'S Services
Blackpool Council,1115716,North Liverpool Construction Ltd (Fac067),4508313,128607,7/20/2021,825,137.51,CXC21,Hra Capital Programme 2021/22,6501,Contract Payments,Capital - Chief Executive
Blackpool Council,1115716,North Liverpool Construction Ltd (Fac067),4508314,128642,7/20/2021,2293.35,382.24,CXB91,Hra Capital Programme 2020/21,6501,Contract Payments,Capital - Chief Executive
Blackpool Council,1124113,Innovate Therapeutic Care Ltd,4508319,TCI00000072,7/27/2021,1440,240,JEA,Senior Management,4701,Other Contracted Services,Children'S Services
Blackpool Council,1099749,Devonshire Primary Academy,4508489,0621 422 3106,7/26/2021,6091.2,0,EYT,Early Years Team,3701,Grants,Children'S Services
Blackpool Council,1099749,Devonshire Primary Academy,4508490,0621 422 3110,7/26/2021,457.92,0,EYT,Early Years Team,3701,Grants,Children'S Services
Blackpool Council,1099749,Devonshire Primary Academy,4508491,0621 422 3109,7/26/2021,855.36,0,EYT,Early Years Team,3701,Grants,Children'S Services
Blackpool Council,1108371,REDACTED PERSONAL DATA,4508757,395364,7/1/2021,735,0,JBR,Lac - Placements,4832,Carer Level 2,Children'S Services
Blackpool Council,1108371,REDACTED PERSONAL DATA,4508757,395364,7/1/2021,456,0,JBR,Lac - Placements,4801,Gen (Ie Wkly Basic),Children'S Services
Blackpool Council,1060410,REDACTED PERSONAL DATA,4508908,395088,7/1/2021,2858.8,0,MHA,Older People ( U65) With Ld,5604,Direct Payments,Adult & Families
Blackpool Council,1111582,REDACTED PERSONAL DATA,4508915,395089,7/1/2021,678.45,0,MVC,75-84,5604,Direct Payments,Adult & Families
Blackpool Council,1122690,REDACTED PERSONAL DATA,4508920,395094,7/1/2021,382.62,0,MSC,75-84,5604,Direct Payments,Adult & Families
Blackpool Council,1123472,Lancashire Care Ltd T/A Lastminute Care,4509002,14203,7/5/2021,554.4,0,MTE,Undefined Age Group,4507,Domiciliary Care,Adult & Families
Blackpool Council,1007183,Royal Mail Group Ltd,4509007,9063102267,7/16/2021,580.66,96.78,BGA,Electoral Services,3511,Postages,Governance & Partnerships
Blackpool Council,1013690,Enterprise Rent-A-Car Uk Ltd,4509036,95004443581,7/16/2021,361.8,60.3,CVMU,Cvmu,2211,Casual Hire,Community & Env Services
Blackpool Council,1029067,Johnston Sweepers Limited,4509037,61995674,7/16/2021,1175.04,195.84,CVMU,Cvmu,3041,Other Materials,Community & Env Services
Blackpool Council,1066422,Metcalf'S The Atv Centre,4509043,11714,7/15/2021,280.82,46.8,CVMU,Cvmu,3041,Other Materials,Community & Env Services
Blackpool Council,1098134,Towrite Electric Vehicles (Harborough) Ltd,4509054,23614,7/9/2021,25704,4284,CVMU,Cvmu,2001,Purchases,Community & Env Services
Blackpool Council,1099264,Vehicle Weighing Solutions Ltd,4509055,INV35408,7/22/2021,582,97,CVMU,Cvmu,4501,Private Contractors,Community & Env Services
Blackpool Council,1101279,Greenpass Training,4509056,160601,7/16/2021,5426,0,CVMU,Cvmu,3426,Course Fees,Community & Env Services
Blackpool Council,1104767,North Star Environmental Ltd,4509129,INV-22930,7/22/2021,282,47,CXC21,Hra Capital Programme 2021/22,6501,Contract Payments,Capital - Chief Executive
Blackpool Council,1123190,Cder Group Limted,4509457,170443,7/23/2021,1546.01,257.67,FBBEA,"Income, Recovery & Debtors",3807,Legal & Court Costs,Resources
Blackpool Council,1128861,Quality Medical Solutions Limited,4509458,871,7/23/2021,3600,600,PUBH03,Nhs Health Check Programme,4501,Private Contractors,Public Health
Blackpool Council,1006202,I Care Gb Limited,4509463,BPLEX/2006E,7/2/2021,16275.6,0,MVB,65-74,4512,Other Care Block Payments,Adult & Families
Blackpool Council,1117457,Wrps Ltd,4509464,8680,7/20/2021,1085.68,180.95,CXC21,Hra Capital Programme 2021/22,6501,Contract Payments,Capital - Chief Executive
Blackpool Council,1006202,I Care Gb Limited,4509465,BPLEX/2006T,7/2/2021,13494.69,0,MVB,65-74,4512,Other Care Block Payments,Adult & Families
Blackpool Council,1041219,Abelglass Trade Supplies Ltd,4509466,INV-6115,7/5/2021,4850.4,808.4,CXC21,Hra Capital Programme 2021/22,6501,Contract Payments,Capital - Chief Executive
Blackpool Council,1041219,Abelglass Trade Supplies Ltd,4509466,INV-6115,7/5/2021,727.2,121.2,CXXXX,Hra Non Specific Contingency,6501,Contract Payments,Capital - Chief Executive
Blackpool Council,1115716,North Liverpool Construction Ltd (Fac067),4509467,128871,7/23/2021,712.13,118.69,CXXXX,Hra Non Specific Contingency,6501,Contract Payments,Capital - Chief Executive
Blackpool Council,1115716,North Liverpool Construction Ltd (Fac067),4509468,128872,7/23/2021,712.13,118.69,CXXXX,Hra Non Specific Contingency,6501,Contract Payments,Capital - Chief Executive
Blackpool Council,1115716,North Liverpool Construction Ltd (Fac067),4509524,128875,7/23/2021,2532.94,422.15,CXXXX,Hra Non Specific Contingency,6501,Contract Payments,Capital - Chief Executive
Blackpool Council,1115716,North Liverpool Construction Ltd (Fac067),4509525,128870,7/23/2021,5088.05,848.01,CXC21,Hra Capital Programme 2021/22,6501,Contract Payments,Capital - Chief Executive
Blackpool Council,1115716,North Liverpool Construction Ltd (Fac067),4509526,128873,7/23/2021,3637.19,606.2,CXXXX,Hra Non Specific Contingency,6501,Contract Payments,Capital - Chief Executive
Blackpool Council,1115716,North Liverpool Construction Ltd (Fac067),4509527,128874,7/23/2021,1623.43,270.57,CXC21,Hra Capital Programme 2021/22,6501,Contract Payments,Capital - Chief Executive
Blackpool Council,1115716,North Liverpool Construction Ltd (Fac067),4509528,128865,7/23/2021,4411.09,735.18,CXXXX,Hra Non Specific Contingency,6501,Contract Payments,Capital - Chief Executive
Blackpool Council,1007814,Water Plus Limited,4509726,INV06553425,7/30/2021,960.37,0,FL1302,A&E - Academies Hold A/C,1401,Water Charges-Metered,Resources
Blackpool Council,1031820,Corona Energy (Gas Usage Only),4509753,16117765,7/22/2021,475.2,79.2,FL1309,Blackpool Airport Utilities,1203,Gas,Resources
Blackpool Council,1031820,Corona Energy (Gas Usage Only),4509754,16117757,7/22/2021,476.6,79.43,FL1309,Blackpool Airport Utilities,1203,Gas,Resources
Blackpool Council,1044395,Sellick Partnership Limited,4509943,INV362994,7/23/2021,2203.2,367.2,BAAA,Legal Services,0793,Supply Cost Of Other Agency,Governance & Partnerships
Blackpool Council,1105003,Socal Healthcare Ltd,4509991,0621-130-131,7/2/2021,350,0,JDEAAA,Safeguarding Adults,4501,Private Contractors,Adult & Families
Blackpool Council,1129768,REDACTED PERSONAL DATA,4509996,285556,7/15/2021,576,96,BAAA,Legal Services,4707,Counsels Fees,Governance & Partnerships
Blackpool Council,1093061,Michael Jones,4509997,454440,7/9/2021,1278,213,BAAA,Legal Services,4701,Other Contracted Services,Governance & Partnerships
Blackpool Council,1118306,REDACTED PERSONAL DATA,4510002,266381,7/2/2021,1170,195,BAAA,Legal Services,4707,Counsels Fees,Governance & Partnerships
Blackpool Council,1106677,REDACTED PERSONAL DATA,4510003,435067,7/2/2021,1158,193,BAAA,Legal Services,4707,Counsels Fees,Governance & Partnerships
Blackpool Council,1118127,REDACTED PERSONAL DATA,4510004,265109,7/2/2021,1362,227,BAAA,Legal Services,4707,Counsels Fees,Governance & Partnerships
Blackpool Council,1085291,REDACTED PERSONAL DATA,4510005,266316,7/2/2021,900,150,BAAA,Legal Services,4707,Counsels Fees,Governance & Partnerships
Blackpool Council,1087253,Routes Healthcare North Limited,4510007,240621,7/6/2021,21554.68,3592.45,MTE,Undefined Age Group,3801,Other Expenses,Adult & Families
Blackpool Council,1043100,Traffic Enforcement Centre,4510168,RBP03021,7/2/2021,992,0,PARADM,Parking Administration,3801,Other Expenses,Budgets Outside Cash Limits
Blackpool Council,1117318,REDACTED PERSONAL DATA,4510226,160421-150422,7/1/2021,10020.82,0,MHA,Older People ( U65) With Ld,5604,Direct Payments,Adult & Families
Blackpool Council,1107526,REDACTED PERSONAL DATA,4510227,180521-170522,7/1/2021,6371.04,0,MHA,Older People ( U65) With Ld,5604,Direct Payments,Adult & Families
Blackpool Council,1120943,REDACTED PERSONAL DATA,4510228,130421-120422,7/1/2021,3185.52,0,MHA,Older People ( U65) With Ld,5604,Direct Payments,Adult & Families
Blackpool Council,1122310,REDACTED PERSONAL DATA,4510230,030421-020422,7/1/2021,2879.22,0,MHA,Older People ( U65) With Ld,5604,Direct Payments,Adult & Families
Blackpool Council,1127255,REDACTED PERSONAL DATA,4510251,141020 - 131021,7/1/2021,420,0,MSA,18-64,5604,Direct Payments,Adult & Families
Blackpool Council,1011121,Fylde Coast Gate Ltd,4510718,29430,7/2/2021,429.6,71.6,AEB,Buildings,1012,Premises Maint-Priv.Contractor,Resources
Blackpool Council,1011973,Automatic Alarms Ltd,4510723,341049,7/20/2021,262.33,43.72,PTA,Economic Development,1171,Alarms,Places
Blackpool Council,1020179,The James Mercer Group Ltd,4510728,137892,7/22/2021,293.52,48.92,AEB,Buildings,1121,Heating & Ventilation,Resources
Blackpool Council,1073045,Bradley Environmental Consultants Ltd,4510743,52672,7/23/2021,480,80,BLMTCE,Building Maintenence,1012,Premises Maint-Priv.Contractor,Resources
Blackpool Council,1073045,Bradley Environmental Consultants Ltd,4510744,52673,7/23/2021,714,119,AEV,Vacant & Under Used,1012,Premises Maint-Priv.Contractor,Resources
Blackpool Council,1073045,Bradley Environmental Consultants Ltd,4510745,52674,7/23/2021,300,50,CGOAAA,Quality Corridor,6502,Grants & Advances,Capital - Commnctn & Regen
Blackpool Council,1090042,Sbg Contracts Ltd T/A Blackpool Fylde Glass,4510748,14028,7/2/2021,366,61,AEB,Buildings,1012,Premises Maint-Priv.Contractor,Resources
Blackpool Council,1112757,Corona Contracts Ltd,4510752,3846,7/23/2021,462,77,AER,Dual Use Properties,1012,Premises Maint-Priv.Contractor,Resources
Blackpool Council,1113964,Weldlag Limited,4510753,INV-1546,7/16/2021,10946.68,1824.45,BLMTCE,Building Maintenence,1012,Premises Maint-Priv.Contractor,Resources
Blackpool Council,1120588,G2 Recruitment Solutions,4510769,84278,7/16/2021,2835,472.5,AEF,Facilities,1012,Premises Maint-Priv.Contractor,Resources
Blackpool Council,1120588,G2 Recruitment Solutions,4510770,84277,7/16/2021,1403.1,233.85,AEF,Facilities,0791,Temp/Relief (Bureau Staff),Resources
Blackpool Council,1120588,G2 Recruitment Solutions,4510771,84573,7/23/2021,2806.2,467.7,AEF,Facilities,0791,Temp/Relief (Bureau Staff),Resources
Blackpool Council,1099703,Anchorsholme Academy,4511054,LACPPSUM21PEP,7/1/2021,700,0,VIRTUL,Virtual Hub,5101,Transfer Payments - General,Children'S Services
Blackpool Council,1101039,Ashton Community Science College,4511055,LACPPSUM21PEP,7/1/2021,1400,0,VIRTUL,Virtual Hub,5101,Transfer Payments - General,Children'S Services
Blackpool Council,1012997,Baines School,4511056,LACPPSUM21PEP,7/1/2021,791,0,VIRTUL,Virtual Hub,5101,Transfer Payments - General,Children'S Services
Blackpool Council,1104384,Blackpool Aspire Academy & Highfurlong School,4511057,LACPPSUM21PEP,7/1/2021,2800,0,VIRTUL,Virtual Hub,5101,Transfer Payments - General,Children'S Services
Blackpool Council,1010554,Cidari Education Ltd,4511058,LACPPSUM21PEP,7/1/2021,2000,0,VIRTUL,Virtual Hub,5101,Transfer Payments - General,Children'S Services
Blackpool Council,1099469,Fylde Coast Academy Trust,4511059,LACPPSUM21PEP,7/1/2021,1400,0,VIRTUL,Virtual Hub,5101,Transfer Payments - General,Children'S Services
Blackpool Council,1083448,Clifton Primary School,4511060,LACPPSUM21PEP,7/1/2021,650,0,VIRTUL,Virtual Hub,5101,Transfer Payments - General,Children'S Services
Blackpool Council,1039717,Chaucer Community Primary School,4511061,LACPPSUM21PEP,7/1/2021,1350,0,VIRTUL,Virtual Hub,5101,Transfer Payments - General,Children'S Services
Blackpool Council,1101046,Lancashire County Council,4511062,LACPPSUM21PEP,7/1/2021,700,0,VIRTUL,Virtual Hub,5101,Transfer Payments - General,Children'S Services
Blackpool Council,1041391,Hodgson Academy,4511064,LACPPSUM21PEP,7/1/2021,700,0,VIRTUL,Virtual Hub,5101,Transfer Payments - General,Children'S Services
Blackpool Council,1123916,Larches High School,4511065,LACPPSUM21PEP,7/1/2021,682,0,VIRTUL,Virtual Hub,5101,Transfer Payments - General,Children'S Services
Blackpool Council,1038738,Layton Primary School,4511066,LACPPSUM21PEP,7/1/2021,2100,0,VIRTUL,Virtual Hub,5101,Transfer Payments - General,Children'S Services
Blackpool Council,1123419,Champion Education Trust,4511067,LACPPSUM21PEP,7/1/2021,1268,0,VIRTUL,Virtual Hub,5101,Transfer Payments - General,Children'S Services
Blackpool Council,1048675,Lytham Hall Park Primary School,4511068,LACPPSUM21PEP,7/1/2021,655,0,VIRTUL,Virtual Hub,5101,Transfer Payments - General,Children'S Services
Blackpool Council,1072299,Lsa Technology & Performing Arts College,4511070,LACPPSUM21PEP,7/1/2021,3490,0,VIRTUL,Virtual Hub,5101,Transfer Payments - General,Children'S Services
Blackpool Council,1037691,Manor Beach Primary School,4511071,LACPPSUM21PEP,7/1/2021,282,0,VIRTUL,Virtual Hub,5101,Transfer Payments - General,Children'S Services
Blackpool Council,1099546,Park Community Academy,4511072,LACPPSUM21PEP,7/1/2021,1779,0,VIRTUL,Virtual Hub,5101,Transfer Payments - General,Children'S Services
Blackpool Council,1096691,Parklands High School,4511073,LACPPSUM21PEP,7/1/2021,1075,0,VIRTUL,Virtual Hub,5101,Transfer Payments - General,Children'S Services
Blackpool Council,1102328,Revoe Learning Academy,4511074,LACPPSUM21PEP,7/1/2021,4200,0,VIRTUL,Virtual Hub,5101,Transfer Payments - General,Children'S Services
Blackpool Council,1121277,St James Ce High School,4511076,LACPPSUM21PEP,7/1/2021,700,0,VIRTUL,Virtual Hub,5101,Transfer Payments - General,Children'S Services
Blackpool Council,1012096,St Mary'S Catholic Academy,4511077,LACPPSUM21PEP,7/1/2021,6550,0,VIRTUL,Virtual Hub,5101,Transfer Payments - General,Children'S Services
Blackpool Council,1127944,St Marys Catholic Primary School,4511078,LACPPSUM21PEP,7/1/2021,2190,0,VIRTUL,Virtual Hub,5101,Transfer Payments - General,Children'S Services
Blackpool Council,1099262,Nhs Blackpool Ccg,4511486,7011218362,7/13/2021,2195,0,MFA,Adults Under 65 With Mh,4201,Joint Authorities,Adult & Families
Blackpool Council,1099262,Nhs Blackpool Ccg,4511487,7011218650,7/13/2021,5940.6,0,MFB,65-74,4201,Joint Authorities,Adult & Families
Blackpool Council,1099262,Nhs Blackpool Ccg,4511488,7011218617,7/13/2021,4477.25,0,MGB,65-74,4201,Joint Authorities,Adult & Families
Blackpool Council,1099262,Nhs Blackpool Ccg,4511489,7011218620,7/13/2021,3355.73,0,MGB,65-74,4201,Joint Authorities,Adult & Families
Blackpool Council,1099262,Nhs Blackpool Ccg,4511490,7011218621,7/13/2021,3741.22,0,MGB,65-74,4201,Joint Authorities,Adult & Families
Blackpool Council,1099262,Nhs Blackpool Ccg,4511491,7011218622,7/13/2021,7210.66,0,MFA,Adults Under 65 With Mh,4201,Joint Authorities,Adult & Families
Blackpool Council,1099262,Nhs Blackpool Ccg,4511492,7011218623,7/13/2021,2970.24,0,MFA,Adults Under 65 With Mh,4201,Joint Authorities,Adult & Families
Blackpool Council,1099262,Nhs Blackpool Ccg,4511493,7011218624,7/13/2021,2584.75,0,MVB,65-74,4201,Joint Authorities,Adult & Families
Blackpool Council,1099262,Nhs Blackpool Ccg,4511494,7011218625,7/13/2021,4897.7,0,MFA,Adults Under 65 With Mh,4201,Joint Authorities,Adult & Families
Blackpool Council,1099262,Nhs Blackpool Ccg,4511495,7011218626,7/13/2021,2584.74,0,MFB,65-74,4201,Joint Authorities,Adult & Families
Blackpool Council,1099262,Nhs Blackpool Ccg,4511496,7011218627,7/13/2021,6790.21,0,MGA,Adults Under 65 With Mh Needs,4201,Joint Authorities,Adult & Families
Blackpool Council,1099262,Nhs Blackpool Ccg,4511497,7011218628,7/13/2021,3706.27,0,MFA,Adults Under 65 With Mh,4201,Joint Authorities,Adult & Families
Blackpool Council,1099262,Nhs Blackpool Ccg,4511498,7011218630,7/13/2021,4440.14,0,MFA,Adults Under 65 With Mh,4201,Joint Authorities,Adult & Families
